Ref No,Fund Type,Dept,Cost Centre Description    ,Description    ,Creditor Name    ,GL Code Net Amount,Payment date        
2,Revenue,CCHD,Bed purchasing - Under 65s PWLD - North,Residential Homes,.,6873.04, 15-May-2012
3,Revenue,CCHD,Supporting People Programme,Grants to Voluntary Bodies,1625 Independent People,34429.5, 01-May-2012
4,Revenue,CCHD,Bed purchasing - Phys Dis - North,Nursing Homes,26 Severn Road,21026.69, 15-May-2012
5,Revenue,CCHD,Supported Living - PS,Private & Voluntary Home Care,3 Trees Community Support Ltd,569.62, 22-May-2012
6,Revenue,CCHD,Supported Living - PS,Private & Voluntary Home Care,3 Trees Community Support Ltd,704.31, 14-May-2012
7,Revenue,CCHD,Supported Living - PS,Private & Voluntary Home Care,3 Trees Community Support Ltd,1485.55, 22-May-2012
8,Revenue,CCHD,Supported Living - PS,Private & Voluntary Home Care,3 Trees Community Support Ltd,2371.92, 15-May-2012
9,Revenue,CCHD,Purchase of Non-Res Care - PS,Private & Voluntary Day Care,3 Trees Community Support Ltd,628.99, 15-May-2012
10,Revenue,CCHD,Home Care - Elderly - North,Other Small Contracts,3 Trees Community Support Ltd,47.28, 16-May-2012
11,Revenue,CCHD,Day Care - North,Private & Voluntary Day Care,3 Trees Community Support Ltd,78.8, 16-May-2012
12,Revenue,CCHD,Home Care - LD Under 65 - South,Private & Voluntary Home Care,3 Trees Community Support Ltd,110.32, 16-May-2012
13,Revenue,CCHD,PWLD Home Care - Under 65 - KH,Private & Voluntary Home Care,3 Trees Community Support Ltd,267.92, 16-May-2012
14,Revenue,CCHD,Home Care - Elderly - North,Other Small Contracts,3 Trees Community Support Ltd,47.28, 29-May-2012
15,Revenue,CCHD,Day Care - North,Private & Voluntary Day Care,3 Trees Community Support Ltd,82.74, 29-May-2012
16,Revenue,CCHD,Home Care - LD Under 65 - South,Private & Voluntary Home Care,3 Trees Community Support Ltd,110.32, 29-May-2012
17,Revenue,CCHD,PWLD Home Care - Under 65 - KH,Private & Voluntary Home Care,3 Trees Community Support Ltd,267.92, 29-May-2012
18,Revenue,CCHD,Purchase of Non-Res Care - PS,Private & Voluntary Day Care,3 Trees Community Support Ltd,3853.7, 22-May-2012
19,Revenue,CCHD,Supported Living - KD,Private & Voluntary Home Care,3 Trees Community Support Ltd,9661.25, 08-May-2012
20,Revenue,CCHD,Supported Living (S28a) North,Private & Voluntary Home Care,3 Trees Community Support Ltd,7606.95, 25-May-2012
21,Revenue,CCHD,Purchase of Non-Res Care - KD,Private & Voluntary Day Care,3 Trees Community Support Ltd,4100.04, 25-May-2012
22,Revenue,CCHD,Supported Living - KD,Private & Voluntary Home Care,3 Trees Community Support Ltd,4961.72, 25-May-2012
23,Revenue,CCHD,Purchase of Non-Res Care - PS,Private & Voluntary Day Care,3 Trees Community Support Ltd,584.21, 22-May-2012
24,Revenue,CCHD,Purchase of Non-Res Care - KD,Private & Voluntary Day Care,3 Trees Community Support Ltd,1463.98, 25-May-2012
25,Revenue,CCHD,Purchase of Non-Res Care - KD,Private & Voluntary Day Care,3 Trees Community Support Ltd,1529.38, 29-May-2012
26,Revenue,CCHD,Purchase of Non-Res Care - KD,Private & Voluntary Day Care,3 Trees Community Support Ltd,1208.52, 25-May-2012
27,Revenue,CCHD,Purchase of Non-Res Care - KD,Private & Voluntary Day Care,3 Trees Community Support Ltd,5495.13, 29-May-2012
28,Revenue,CCHD,Direct Payments - Phys Dis - North,Grants to Voluntary Bodies,A4E Management Limited,22857.93, 18-May-2012
29,Revenue,CCHD,Bed Purchasing - Elderly - South,Residential Homes,Ablecare Homes,888.52, 15-May-2012
30,Revenue,CCHD,Bed Purchasing - Elderly - South,Residential Homes,Ablecare Homes,1501, 15-May-2012
31,Revenue,CCHD,Frenchay Hospital Purchasing,Residential Homes,Ablecare Homes,1403.2, 15-May-2012
32,Revenue,CCHD,Southmead Hospital Purchasing,Residential Homes,Ablecare Homes,1342.76, 15-May-2012
33,Revenue,CCHD,Frenchay Hospital Purchasing,Residential Homes,Ablecare Homes,1232.84, 15-May-2012
34,Revenue,CCHD,Bed Purchasing - Elderly - South,Residential Homes,Ablecare Homes,1598.8, 15-May-2012
35,Revenue,CCHD,Bed Purchasing - Elderly - South,Residential Homes,Ablecare Homes,1193.04, 15-May-2012
36,Revenue,CCHD,Bed Purchasing - Elderly - South,Residential Homes,Ablecare Homes,1183.55, 15-May-2012
37,Revenue,CCHD,Bed Purchasing - Elderly - North,Residential Homes,Ablecare Homes,1241.36, 15-May-2012
38,Revenue,CCHD,Southmead Hospital Purchasing,Residential Homes,Ablecare Homes,1165.16, 15-May-2012
39,Revenue,CCHD,Bed Purchasing - Elderly MH - South,Residential Homes,Ablecare Homes,1209.88, 15-May-2012
40,Revenue,CCHD,Bed purchasing - Elderly MH - North,Residential Homes,Ablecare Homes,1394.24, 15-May-2012
41,Revenue,CCHD,Bed Purchasing - Elderly - South,Residential Homes,Ablecare Homes,1281.16, 15-May-2012
42,Revenue,CCHD,Bed Purchasing - Elderly - South,Residential Homes,Ablecare Homes,2149.95, 15-May-2012
43,Revenue,CCHD,Day Care - North,Private & Voluntary Day Care,Action on Hearing Loss,503.38, 14-May-2012
44,Revenue,CCHD,Elderly MH Day Care North,Private & Voluntary Day Care,Age UK South Gloucestershire,923.52, 18-May-2012
45,Revenue,CCHD,Home Care - Elderly - South,Other Small Contracts,Agincare Chippenham,645.29, 18-May-2012
46,Revenue,CCHD,Home Care - Elderly - South,Other Small Contracts,Agincare Chippenham,687.8, 18-May-2012
47,Revenue,CCHD,Home Care - Elderly - South,Other Small Contracts,Agincare Chippenham,710.98, 25-May-2012
48,Revenue,CCHD,Home Care - Elderly - North,Other Small Contracts,Agincare UK Limited,799.96, 09-May-2012
49,Revenue,CCHD,Home Care - Elderly - North,Other Small Contracts,Agincare UK Limited,799.96, 09-May-2012
50,Revenue,CCHD,Home Care - Elderly - North,Other Small Contracts,Agincare UK Limited,799.96, 14-May-2012
51,Revenue,CCHD,Home Care - Elderly - North,Other Small Contracts,Agincare UK Limited,799.96, 09-May-2012
52,Revenue,CCHD,Home Care - Elderly - North,Other Small Contracts,Agincare UK Limited,685.68, 09-May-2012
53,Revenue,CCHD,Home Care - Elderly - North,Other Small Contracts,Agincare UK Limited,799.96, 09-May-2012
54,Revenue,CCHD,Home Care - Elderly - North,Other Small Contracts,Agincare UK Limited,799.96, 09-May-2012
55,Revenue,CCHD,Home Care - Elderly - North,Other Small Contracts,Agincare UK Limited,799.96, 09-May-2012
56,Revenue,CCHD,Home Care - Elderly - North,Other Small Contracts,Agincare UK Limited,799.96, 09-May-2012
57,Revenue,CCHD,Home Care - Elderly - North,Other Small Contracts,Agincare UK Limited,799.96, 09-May-2012
58,Revenue,CCHD,Home Care - Elderly - South,Other Small Contracts,Agincare UK Limited,1201.83, 25-May-2012
59,Revenue,CCHD,Home Care - Elderly - North,Other Small Contracts,Agincare UK Limited,112.09, 25-May-2012
60,Revenue,CCHD,Day Care - South,Private & Voluntary Day Care,Agincare UK Limited,189, 25-May-2012
61,Revenue,CCHD,Elderly MH Day Care North,Private & Voluntary Day Care,Agincare UK Limited,110.2, 25-May-2012
62,Revenue,CCHD,Home Care - Elderly - South,Other Small Contracts,Agincare UK Limited,1236.01, 18-May-2012
63,Revenue,CCHD,Home Care - Elderly - North,Other Small Contracts,Agincare UK Limited,309.16, 18-May-2012
64,Revenue,CCHD,Day Care - South,Private & Voluntary Day Care,Agincare UK Limited,246.45, 18-May-2012
65,Revenue,CCHD,Elderly MH Day Care North,Private & Voluntary Day Care,Agincare UK Limited,106.4, 18-May-2012
66,Revenue,CCHD,Home Care - Elderly - South,Other Small Contracts,Agincare UK Limited,1197.95, 25-May-2012
67,Revenue,CCHD,Home Care - Elderly - North,Other Small Contracts,Agincare UK Limited,305.3, 25-May-2012
68,Revenue,CCHD,Day Care - South,Private & Voluntary Day Care,Agincare UK Limited,258.11, 25-May-2012
69,Revenue,CCHD,Elderly MH Day Care North,Private & Voluntary Day Care,Agincare UK Limited,102.61, 25-May-2012
70,Revenue,CCHD,Home Care - Elderly - South,Other Small Contracts,Agincare UK Limited,1205.7, 18-May-2012
71,Revenue,CCHD,Home Care - Elderly - North,Other Small Contracts,Agincare UK Limited,293.71, 18-May-2012
72,Revenue,CCHD,Day Care - South,Private & Voluntary Day Care,Agincare UK Limited,219.33, 18-May-2012
73,Revenue,CCHD,Elderly MH Day Care North,Private & Voluntary Day Care,Agincare UK Limited,106.4, 18-May-2012
74,Revenue,CCHD,S117 Placements PCT,Residential Homes,Alexandra House,6810.28, 15-May-2012
75,Revenue,CCHD,Home Care - Elderly - South,Other Small Contracts,Allied Healthcare Group,744.91, 16-May-2012
76,Revenue,CCHD,Home Care - Elderly - North,Other Small Contracts,Allied Healthcare Group,882.49, 16-May-2012
77,Revenue,CCHD,Day Care - North,Private & Voluntary Day Care,Allied Healthcare Group,44.91, 16-May-2012
78,Revenue,CCHD,Home Care - Elderly - South,Other Small Contracts,Allied Healthcare Group,729.62, 16-May-2012
79,Revenue,CCHD,Home Care - Elderly - North,Other Small Contracts,Allied Healthcare Group,962.35, 16-May-2012
80,Revenue,CCHD,Day Care - North,Private & Voluntary Day Care,Allied Healthcare Group,44.87, 16-May-2012
81,Revenue,CCHD,Home Care - Elderly - South,Other Small Contracts,Allied Healthcare Group,756.18, 16-May-2012
82,Revenue,CCHD,Home Care - Elderly - North,Other Small Contracts,Allied Healthcare Group,1402.83, 16-May-2012
83,Revenue,CCHD,Day Care - North,Private & Voluntary Day Care,Allied Healthcare Group,44.91, 16-May-2012
84,Revenue,CCHD,Elderly MH Day Care North,Private & Voluntary Day Care,Alzheimer`s Society Bristol,740.08, 25-May-2012
85,Revenue,CCHD,Bed Purchasing - Elderly S117- North,Private & Voluntary Day Care,Alzheimer`s Society Bristol,605.52, 25-May-2012
86,Revenue,CCHD,Bed Purchasing - Elderly S117- North,Private & Voluntary Day Care,Alzheimer`s Society Bristol,605.52, 25-May-2012
87,Revenue,CCHD,Elderly MH Day Care North,Private & Voluntary Day Care,Alzheimer`s Society Bristol,807.36, 21-May-2012
88,Revenue,CCHD,Elderly MH Day Care North,Private & Voluntary Day Care,Alzheimer`s Society Bristol,605.52, 21-May-2012
89,Revenue,CCHD,Frenchay Hospital Purchasing,Residential Homes,Anbridge Care Home,832.51, 15-May-2012
90,Revenue,CCHD,Bed purchasing - Under 65s PWLD - North,Residential Homes,Ark Care Homes Ltd,10492.94, 15-May-2012
91,Revenue,CCHD,Bed and Breakfast,Bed & Breakfast,Ashley Guest Houses Ltd,1608, 11-May-2012
92,Revenue,CCHD,Bed and Breakfast,Bed & Breakfast,Ashley Guest Houses Ltd,1200, 11-May-2012
93,Revenue,CCHD,Bed and Breakfast,Bed & Breakfast,Ashley Guest Houses Ltd,1464, 11-May-2012
94,Revenue,CCHD,Bed and Breakfast,Bed & Breakfast,Ashley Guest Houses Ltd,966, 11-May-2012
95,Revenue,CCHD,Bed and Breakfast,Bed & Breakfast,Ashley Guest Houses Ltd,1344, 11-May-2012
96,Revenue,CCHD,Bed and Breakfast,Bed & Breakfast,Ashley Guest Houses Ltd,1368, 11-May-2012
97,Revenue,CCHD,Bed Purchasing - S28A - Over 65- North,Residential Homes,Aspects &  Milestones Trust,3882.32, 15-May-2012
98,Revenue,CCHD,Bed Purchasing - Elderly - South,Residential Homes,Aspects &  Milestones Trust,1398.4, 15-May-2012
99,Revenue,CCHD,Bed Purchasing - Under 65s PWLD - South,Residential Homes,Aspects &  Milestones Trust,5909.2, 15-May-2012
100,Revenue,CCHD,Bed Purchasing - Elderly S117- North,Residential Homes,Aspects &  Milestones Trust,1325.92, 15-May-2012
101,Revenue,CCHD,Bed Purchasing - Elderly S117- North,Nursing Homes,Aspects &  Milestones Trust,1944.08, 15-May-2012
102,Revenue,CCHD,Bed purchasing - Elderly PWLD - North,Residential Homes,Aspects &  Milestones Trust,3554.88, 15-May-2012
103,Revenue,CCHD,Bed Purchasing - Under 65s PWLD - South,Residential Homes,Aspects &  Milestones Trust,5227.12, 15-May-2012
104,Revenue,CCHD,Bed Purchasing - Under 65s PWLD - South,Residential Homes,Aspects &  Milestones Trust,5683.72, 15-May-2012
105,Revenue,CCHD,Bed purchasing - Elderly PWLD - South,Nursing Homes,Aspects &  Milestones Trust,6916.34, 15-May-2012
106,Revenue,CCHD,Bed Purchasing - Elderly S117- North,Nursing Homes,Aspects &  Milestones Trust,1944, 15-May-2012
107,Revenue,CCHD,Bed purchasing - Elderly MH - North,Nursing Homes,Aspects &  Milestones Trust,1475.2, 15-May-2012
108,Revenue,CCHD,Bed purchasing - Elderly PWLD - South,Residential Homes,Aspects &  Milestones Trust,3199.59, 15-May-2012
109,Revenue,CCHD,Bed Purchasing - Elderly S117- North,Residential Homes,Aspects &  Milestones Trust,1716, 15-May-2012
110,Revenue,CCHD,Bed purchasing - Elderly PWLD - South,Residential Homes,Aspects &  Milestones Trust,4357.8, 15-May-2012
111,Revenue,CCHD,Bed purchasing -S28A  Under 65 - North,Nursing Homes,Aspects &  Milestones Trust,5800.72, 15-May-2012
112,Revenue,CCHD,Bed purchasing -S28A  Under 65 - North,Residential Homes,Aspects &  Milestones Trust,5183.96, 15-May-2012
113,Revenue,CCHD,Bed Purchasing - Under 65s PWLD - South,Residential Homes,Aspects &  Milestones Trust,3495.32, 15-May-2012
114,Revenue,CCHD,Bed purchasing - S28A Under 65 - South,Residential Homes,Aspects &  Milestones Trust,5327.8, 15-May-2012
115,Revenue,CCHD,Bed purchasing - Elderly PWLD - South,Residential Homes,Aspects &  Milestones Trust,5721.6, 15-May-2012
116,Revenue,CCHD,Bed purchasing - Under 65s PWLD - North,Residential Homes,Aspects &  Milestones Trust,3843.72, 15-May-2012
117,Revenue,CCHD,Bed purchasing - S28A Under 65 - South,Nursing Homes,Aspects &  Milestones Trust,7576.08, 15-May-2012
118,Revenue,CCHD,MH Purchasing - Younger,Residential Homes,Aspects &  Milestones Trust,710.85, 15-May-2012
119,Revenue,CCHD,Bed purchasing - Elderly PWLD - South,Residential Homes,Aspects &  Milestones Trust,5276.32, 15-May-2012
120,Revenue,CCHD,Elderly PWLD - KH,Residential Homes,Aspects &  Milestones Trust,3791.92, 15-May-2012
121,Revenue,CCHD,Bed purchasing - Elderly PWLD - North,Residential Homes,Aspects &  Milestones Trust,4732.52, 15-May-2012
122,Revenue,CCHD,Bed purchasing -S28A  Under 65 - North,Residential Homes,Aspects &  Milestones Trust,5268.68, 15-May-2012
123,Revenue,CCHD,Bed purchasing -S28A  Under 65 - North,Residential Homes,Aspects &  Milestones Trust,6125.96, 15-May-2012
124,Revenue,CCHD,Bed purchasing -S28A  Under 65 - North,Nursing Homes,Aspects &  Milestones Trust,6213.88, 15-May-2012
125,Revenue,CCHD,Bed Purchasing - Under 65s PWLD - South,Residential Homes,Aspects &  Milestones Trust,3699.6, 15-May-2012
126,Revenue,CCHD,Bed purchasing -S28A  Under 65 - North,Residential Homes,Aspects &  Milestones Trust,6125.96, 15-May-2012
127,Revenue,CCHD,Bed purchasing - S28A Under 65 - South,Residential Homes,Aspects &  Milestones Trust,4856.92, 15-May-2012
128,Revenue,CCHD,Bed Purchasing - S28A - Over 65- North,Residential Homes,Aspects &  Milestones Trust,4732.76, 15-May-2012
129,Revenue,CCHD,Bed Purchasing - LD S28A- Over 65- South,Residential Homes,Aspects &  Milestones Trust,4015.52, 15-May-2012
130,Revenue,CCHD,Bed purchasing -S28A  Under 65 - North,Residential Homes,Aspects &  Milestones Trust,6125.96, 15-May-2012
131,Revenue,CCHD,Bed Purchasing - S28A - Over 65- North,Residential Homes,Aspects &  Milestones Trust,4239.2, 15-May-2012
132,Revenue,CCHD,Bed purchasing -S28A  Under 65 - North,Residential Homes,Aspects &  Milestones Trust,6125.96, 15-May-2012
133,Revenue,CCHD,Bed Purchasing - LD S28A- Over 65- South,Residential Homes,Aspects &  Milestones Trust,3905.44, 15-May-2012
134,Revenue,CCHD,Bed purchasing - S28A Under 65 - South,Residential Homes,Aspects &  Milestones Trust,5052.2, 15-May-2012
135,Revenue,CCHD,Bed purchasing - S28A Under 65 - South,Residential Homes,Aspects &  Milestones Trust,6626.28, 15-May-2012
136,Revenue,CCHD,Bed purchasing - S28A Under 65 - South,Residential Homes,Aspects &  Milestones Trust,4047.8, 15-May-2012
137,Revenue,CCHD,Bed Purchasing - LD S28A- Over 65- South,Residential Homes,Aspects &  Milestones Trust,5824.28, 15-May-2012
138,Revenue,CCHD,Bed Purchasing - S28A - Over 65- North,Residential Homes,Aspects &  Milestones Trust,3397.72, 15-May-2012
139,Revenue,CCHD,Bed Purchasing - LD S28A- Over 65- South,Residential Homes,Aspects &  Milestones Trust,4760.52, 15-May-2012
140,Revenue,CCHD,Bed Purchasing - LD S28A- Over 65- South,Residential Homes,Aspects &  Milestones Trust,4908.2, 15-May-2012
141,Revenue,CCHD,Bed Purchasing - LD S28A- Over 65- South,Residential Homes,Aspects &  Milestones Trust,4622.6, 15-May-2012
142,Revenue,CCHD,Bed Purchasing - LD S28A- Over 65- South,Residential Homes,Aspects &  Milestones Trust,97344.01, 15-May-2012
143,Revenue,CCHD,Bed purchasing -S28A  Under 65 - North,Residential Homes,Aspects &  Milestones Trust,7309.52, 15-May-2012
144,Revenue,CCHD,Bed purchasing -S28A  Under 65 - North,Nursing Homes,Aspects &  Milestones Trust,6296.44, 15-May-2012
145,Revenue,CCHD,Bed Purchasing - LD S28A- Over 65- South,Residential Homes,Aspects &  Milestones Trust,3492.92, 15-May-2012
146,Revenue,CCHD,Bed Purchasing - LD S28A- Over 65- South,Residential Homes,Aspects &  Milestones Trust,3251.48, 15-May-2012
147,Revenue,CCHD,Bed Purchasing - S28A - Over 65- North,Residential Homes,Aspects &  Milestones Trust,3308.72, 15-May-2012
148,Revenue,CCHD,Bed Purchasing - LD S28A- Over 65- South,Residential Homes,Aspects &  Milestones Trust,4720.44, 15-May-2012
149,Revenue,CCHD,Section 117 Placements MH Younger,Residential Homes,Aspects &  Milestones Trust,1324, 15-May-2012
150,Revenue,CCHD,Bed purchasing - Elderly MH - North,Residential Homes,Aspects &  Milestones Trust,836.13, 15-May-2012
151,Revenue,CCHD,Bed purchasing - S28A Under 65 - South,Residential Homes,Aspects &  Milestones Trust,4790.96, 15-May-2012
152,Revenue,CCHD,Bed purchasing - Elderly PWLD - North,Residential Homes,Aspects &  Milestones Trust,2758.52, 15-May-2012
153,Revenue,CCHD,Bed purchasing - Elderly PWLD - North,Residential Homes,Aspects &  Milestones Trust,5424.04, 15-May-2012
154,Revenue,CCHD,Bed purchasing - Under 65s PWLD - North,Residential Homes,Aspects &  Milestones Trust,5511.12, 15-May-2012
155,Revenue,CCHD,Bed purchasing - Elderly MH - North,Nursing Homes,Aspects &  Milestones Trust,1096.68, 15-May-2012
156,Revenue,CCHD,Bed Purchasing - Under 65s PWLD - South,Residential Homes,Aspects &  Milestones Trust,3849.4, 15-May-2012
157,Revenue,CCHD,Bed purchasing -S28A  Under 65 - North,Residential Homes,Aspects &  Milestones Trust,5771.6, 15-May-2012
158,Revenue,CCHD,Bed Purchasing - S28A - Over 65- North,Residential Homes,Aspects &  Milestones Trust,3271.48, 15-May-2012
159,Revenue,CCHD,Section 117 Placements MH Younger,Residential Homes,Aspects &  Milestones Trust,1716, 15-May-2012
160,Revenue,CCHD,MH Purchasing - Younger,Residential Homes,Aspects &  Milestones Trust,1012.6, 15-May-2012
161,Revenue,CCHD,Bed Purchasing - S28A - Over 65- North,Residential Homes,Aspects &  Milestones Trust,3511.28, 15-May-2012
162,Revenue,CCHD,Bed purchasing - S28A Under 65 - South,Residential Homes,Aspects &  Milestones Trust,3563.92, 15-May-2012
163,Revenue,CCHD,Bed purchasing - S28A Under 65 - South,Residential Homes,Aspects &  Milestones Trust,5052.2, 15-May-2012
164,Revenue,CCHD,Bed purchasing - S28A Under 65 - South,Residential Homes,Aspects &  Milestones Trust,6024.64, 15-May-2012
165,Revenue,CCHD,Bed Purchasing - LD S28A- Over 65- South,Residential Homes,Aspects &  Milestones Trust,5898.16, 15-May-2012
166,Revenue,CCHD,Bed Purchasing - LD S28A- Over 65- South,Residential Homes,Aspects &  Milestones Trust,4164.96, 15-May-2012
167,Revenue,CCHD,Bed Purchasing - LD S28A- Over 65- South,Residential Homes,Aspects &  Milestones Trust,4720.44, 15-May-2012
168,Revenue,CCHD,Bed Purchasing - S28A - Over 65- North,Residential Homes,Aspects &  Milestones Trust,4762.64, 15-May-2012
169,Revenue,CCHD,Bed Purchasing - LD S28A- Over 65- South,Residential Homes,Aspects &  Milestones Trust,5607.6, 15-May-2012
170,Revenue,CCHD,Bed purchasing - S28A Under 65 - South,Residential Homes,Aspects &  Milestones Trust,7738.32, 15-May-2012
171,Revenue,CCHD,Bed Purchasing - LD S28A- Over 65- South,Residential Homes,Aspects &  Milestones Trust,4902.32, 15-May-2012
172,Revenue,CCHD,Bed purchasing -S28A  Under 65 - North,Residential Homes,Aspects &  Milestones Trust,4743.92, 15-May-2012
173,Revenue,CCHD,Bed Purchasing - S28A - Over 65- North,Residential Homes,Aspects &  Milestones Trust,4885.4, 15-May-2012
174,Revenue,CCHD,Bed Purchasing - S28A - Over 65- North,Residential Homes,Aspects &  Milestones Trust,5473.64, 15-May-2012
175,Revenue,CCHD,Bed purchasing - S28A Under 65 - South,Residential Homes,Aspects &  Milestones Trust,4611.44, 15-May-2012
176,Revenue,CCHD,Bed Purchasing - S28A - Over 65- North,Residential Homes,Aspects &  Milestones Trust,4885.4, 15-May-2012
177,Revenue,CCHD,Bed Purchasing - S28A - Over 65- North,Residential Homes,Aspects &  Milestones Trust,5277.28, 15-May-2012
178,Revenue,CCHD,Bed Purchasing - LD S28A- Over 65- South,Residential Homes,Aspects &  Milestones Trust,4908.2, 15-May-2012
179,Revenue,CCHD,Bed purchasing - S28A Under 65 - South,Residential Homes,Aspects &  Milestones Trust,4734.4, 15-May-2012
180,Revenue,CCHD,Bed purchasing -S28A  Under 65 - North,Residential Homes,Aspects &  Milestones Trust,6125.96, 15-May-2012
181,Revenue,CCHD,Bed Purchasing - S28A - Over 65- North,Residential Homes,Aspects &  Milestones Trust,5621.68, 15-May-2012
182,Revenue,CCHD,Bed purchasing -S28A  Under 65 - North,Residential Homes,Aspects &  Milestones Trust,3468.84, 15-May-2012
183,Revenue,CCHD,Bed Purchasing - S28A - Over 65- North,Residential Homes,Aspects &  Milestones Trust,3275.16, 15-May-2012
184,Revenue,CCHD,Bed Purchasing - S28A - Over 65- North,Residential Homes,Aspects &  Milestones Trust,3412.88, 15-May-2012
185,Revenue,CCHD,Bed Purchasing - LD S28A- Over 65- South,Residential Homes,Aspects &  Milestones Trust,3204.2, 15-May-2012
186,Revenue,CCHD,Bed Purchasing - Under 65s PWLD - South,Residential Homes,Aspects &  Milestones Trust,7097.28, 15-May-2012
187,Revenue,CCHD,Bed purchasing - Elderly S117 - South,Residential Homes,Aspects &  Milestones Trust,1945.16, 15-May-2012
188,Revenue,CCHD,Bed purchasing - Elderly MH - North,Nursing Homes,Aspects &  Milestones Trust,1337.2, 15-May-2012
189,Revenue,CCHD,Bed purchasing - Under 65s PWLD - North,Residential Homes,Aspects &  Milestones Trust,6125.96, 15-May-2012
190,Revenue,CCHD,MH Purchasing - Younger,Nursing Homes,Aspects &  Milestones Trust,920.56, 15-May-2012
191,Revenue,CCHD,MH Purchasing - Younger,Nursing Homes,Aspects &  Milestones Trust,939.2, 15-May-2012
192,Revenue,CCHD,MH Purchasing - Younger,Residential Homes,Aspects &  Milestones Trust,1012.6, 15-May-2012
193,Revenue,CCHD,Elderly PWLD - KH,Residential Homes,Aspects &  Milestones Trust,3399.76, 15-May-2012
194,Revenue,CCHD,Section 117 Placements MH Younger,Nursing Homes,Aspects &  Milestones Trust,1415.4, 15-May-2012
195,Revenue,CCHD,Bed purchasing - S28A Under 65 - South,Residential Homes,Aspects &  Milestones Trust,7168.2, 15-May-2012
196,Revenue,CCHD,Bed purchasing - S28A Under 65 - South,Residential Homes,Aspects &  Milestones Trust,5609.7, 15-May-2012
197,Revenue,CCHD,Bed purchasing - S28A Under 65 - South,Residential Homes,Aspects &  Milestones Trust,4866.72, 15-May-2012
198,Revenue,CCHD,Bed Purchasing - LD S28A- Over 65- South,Residential Homes,Aspects &  Milestones Trust,4628.68, 15-May-2012
199,Revenue,CCHD,Bed Purchasing - Under 65s PWLD - South,Residential Homes,Aspects &  Milestones Trust,4173.08, 15-May-2012
200,Revenue,CCHD,Bed Purchasing - S28A - Over 65- North,Residential Homes,Aspects &  Milestones Trust,4095.72, 15-May-2012
201,Revenue,CCHD,Bed Purchasing - LD S28A- Over 65- South,Residential Homes,Aspects &  Milestones Trust,3801.96, 15-May-2012
202,Revenue,CCHD,Bed Purchasing - LD S28A- Over 65- South,Residential Homes,Aspects &  Milestones Trust,5898.16, 15-May-2012
203,Revenue,CCHD,Bed Purchasing - S28A - Over 65- North,Residential Homes,Aspects &  Milestones Trust,4473.28, 15-May-2012
204,Revenue,CCHD,Bed Purchasing - LD S28A- Over 65- South,Residential Homes,Aspects &  Milestones Trust,3973.08, 15-May-2012
205,Revenue,CCHD,Bed Purchasing - LD S28A- Over 65- South,Residential Homes,Aspects &  Milestones Trust,4406.8, 15-May-2012
206,Revenue,CCHD,Bed Purchasing - LD S28A- Over 65- South,Residential Homes,Aspects &  Milestones Trust,5155.88, 15-May-2012
207,Revenue,CCHD,Bed Purchasing - Elderly MH - South,Residential Homes,Aspects &  Milestones Trust,1206.56, 15-May-2012
208,Revenue,CCHD,Bed Purchasing - S28A - Over 65- North,Residential Homes,Aspects &  Milestones Trust,4762.64, 15-May-2012
209,Revenue,CCHD,Bed Purchasing - Elderly S117- North,Nursing Homes,Aspects &  Milestones Trust,1944, 15-May-2012
210,Revenue,CCHD,Bed Purchasing - Elderly S117- North,Nursing Homes,Aspects &  Milestones Trust,1944, 15-May-2012
211,Revenue,CCHD,Bed Purchasing - Elderly S117- North,Residential Homes,Aspects &  Milestones Trust,1324, 15-May-2012
212,Revenue,CCHD,Bed purchasing - Under 65s PWLD - North,Residential Homes,Aspects & Milestones Trust,8841.64, 15-May-2012
213,Revenue,CCHD,Supporting People Programme,Grants to Voluntary Bodies,Aspects and Milestones Trust,8828.54, 01-May-2012
214,Revenue,CCHD,Supporting People Programme,Grants to Voluntary Bodies,Aspects and Milestones Trust,4782.73, 01-May-2012
215,Revenue,CCHD,Supporting People Programme,Grants to Voluntary Bodies,Aspects and Milestones Trust,3150.86, 01-May-2012
216,Revenue,CCHD,Supporting People Programme,Grants to Voluntary Bodies,Aspects and Milestones Trust,6149.16, 01-May-2012
217,Revenue,CCHD,Supporting People Programme,Grants to Voluntary Bodies,Aspects and Milestones Trust,6284.84, 01-May-2012
218,Revenue,CCHD,Supporting People Programme,Grants to Voluntary Bodies,Aspects and Milestones Trust,3837.82, 01-May-2012
219,Revenue,CCHD,Purchase of Non-Res Care - PS,Private & Voluntary Day Care,Aspirations Support Bristol Limited,2434.8, 03-May-2012
220,Revenue,CCHD,Woodleaze,Maintenance by Contractor,Aspire Environmental,586, 22-May-2012
221,Revenue,CCHD,Bed Purchasing - Under 65s PWLD - South,Residential Homes,Autism Specialised Care Homes,5515.04, 15-May-2012
222,Revenue,CCHD,Purchase of Non-Res Care - KD,Private & Voluntary Day Care,Avon Autistic Foundation Limited,3836.76, 28-May-2012
223,Revenue,CCHD,Frenchay Hospital Purchasing,Residential Homes,Beaufort House,661.44, 15-May-2012
224,Revenue,CCHD,Bed purchasing - Elderly MH - North,Residential Homes,Beaufort House,1418.36, 15-May-2012
225,Revenue,CCHD,Bed Purchasing - Elderly - South,Residential Homes,Beaufort House,1402.28, 15-May-2012
226,Revenue,CCHD,Frenchay Hospital Purchasing,Residential Homes,Beaufort House,1276.24, 15-May-2012
227,Revenue,CCHD,Bed purchasing - Elderly MH - North,Residential Homes,Beaufort House,1303.96, 15-May-2012
228,Revenue,CCHD,Bed purchasing - Elderly MH - North,Residential Homes,Beaufort House,1318.88, 15-May-2012
229,Revenue,CCHD,Bed Purchasing - Elderly - North,Residential Homes,Beaufort House,1697.4, 15-May-2012
230,Revenue,CCHD,Bed purchasing - Elderly MH - North,Residential Homes,Beaufort House,4676.28, 15-May-2012
231,Revenue,CCHD,Bed purchasing - Elderly MH - North,Residential Homes,Beaufort House,875.84, 15-May-2012
232,Revenue,CCHD,Bed purchasing - Elderly MH - North,Residential Homes,Beaufort House,908.13, 15-May-2012
233,Revenue,CCHD,Bed purchasing - Elderly MH - North,Residential Homes,Beaufort House,1011.32, 15-May-2012
234,Revenue,CCHD,Bed purchasing - Elderly MH - North,Residential Homes,Beaufort House,1672.68, 15-May-2012
235,Revenue,CCHD,Bed purchasing - Elderly PWLD - South,Residential Homes,Bedrock Lodge,2858.6, 15-May-2012
236,Revenue,CCHD,Section 117 Placements MH Younger,Residential Homes,Bedrock Lodge,1820.2, 15-May-2012
237,Revenue,CCHD,South Glos Users in South Glos Homes,Residential Homes,Beech House Nursing Home,27500, 15-May-2012
238,Revenue,CCHD,Bed purchasing - Under 65s PWLD - North,Residential Homes,Beechwood Residential College,59820.28, 15-May-2012
239,Revenue,CCHD,South Glos Users in South Glos Homes,Nursing Homes,Blossom Field,605.61, 15-May-2012
240,Revenue,CCHD,Bed purchasing - Elderly MH - North,Nursing Homes,Blossom Field,1391.16, 15-May-2012
241,Revenue,CCHD,Bed Purchasing - Elderly - South,Nursing Homes,Blossom Fields,2951.31, 21-May-2012
242,Revenue,CCHD,Bed Purchasing - Elderly - North,Nursing Homes,Blossom Fields,7146.69, 21-May-2012
243,Revenue,CCHD,South Glos Users in South Glos Homes,Nursing Homes,Blossom Fields,1211.23, 21-May-2012
244,Revenue,CCHD,Bed purchasing - Elderly MH - North,Nursing Homes,Blossom Fields,1538.56, 21-May-2012
245,Revenue,CCHD,Training - Adult Services,Training Expenses,Bob Dawson,1025, 25-May-2012
246,Revenue,CCHD,Frenchay Hospital Purchasing,Nursing Homes,Bradbury House,1366.76, 15-May-2012
247,Revenue,CCHD,Bed Purchasing - Elderly - North,Residential Homes,Bradley House,1239.2, 15-May-2012
248,Revenue,CCHD,Home Care - Elderly - South,Other Small Contracts,Bradley House Home Care Services,145.95, 16-May-2012
249,Revenue,CCHD,Home Care - Elderly - North,Other Small Contracts,Bradley House Home Care Services,1452.18, 16-May-2012
250,Revenue,CCHD,Day Care - South,Private & Voluntary Day Care,Bradley House Home Care Services,45.87, 16-May-2012
251,Revenue,CCHD,Day Care - North,Private & Voluntary Day Care,Bradley House Home Care Services,136.8, 16-May-2012
252,Revenue,CCHD,Home Care - Elderly - South,Other Small Contracts,Bradley House Home Care Services,150.12, 16-May-2012
253,Revenue,CCHD,Home Care - Elderly - North,Other Small Contracts,Bradley House Home Care Services,1481.44, 16-May-2012
254,Revenue,CCHD,Day Care - South,Private & Voluntary Day Care,Bradley House Home Care Services,45.87, 16-May-2012
255,Revenue,CCHD,Day Care - North,Private & Voluntary Day Care,Bradley House Home Care Services,128.32, 16-May-2012
256,Revenue,CCHD,Woodleaze,"Provisions (Food, etc)",Brake Bros,506.45, 31-May-2012
257,Revenue,CCHD,Woodleaze,"Provisions (Food, etc)",Brake Bros,664.67, 04-May-2012
258,Revenue,CCHD,Woodleaze,"Provisions (Food, etc)",Brake Bros,1017.65, 09-May-2012
259,Revenue,CCHD,Newton House,"Provisions (Food, etc)",Brake Bros,650.05, 23-May-2012
260,Revenue,CCHD,Alexandra Way,"Provisions (Food, etc)",Brake Bros,560.63, 01-May-2012
261,Revenue,CCHD,Woodleaze,"Provisions (Food, etc)",Brake Bros,604.68, 24-May-2012
262,Revenue,CCHD,Woodleaze,"Provisions (Food, etc)",Brake Bros,1272.55, 24-May-2012
263,Revenue,CCHD,Alexandra Way,"Provisions (Food, etc)",Brake Bros,555.69, 21-May-2012
264,Revenue,CCHD,Alexandra Way,"Provisions (Food, etc)",Brake Bros,577.99, 31-May-2012
265,Revenue,CCHD,Bed Purchasing - Elderly - North,Residential Homes,Bridge House Care Home,1227.08, 15-May-2012
266,Revenue,CCHD,Bed Purchasing - Elderly - North,Residential Homes,Bridge House Care Home,1503.04, 15-May-2012
267,Revenue,CCHD,Bed Purchasing - Elderly - North,Residential Homes,Bridge House Care Home,1072.84, 15-May-2012
268,Revenue,CCHD,Bed Purchasing - Elderly - North,Residential Homes,Bridge House Care Home,1079.72, 15-May-2012
269,Revenue,CCHD,Bed Purchasing - Elderly MH - South,Residential Homes,Brightbow,2529, 15-May-2012
270,Revenue,CCHD,MH Purchasing - Younger,Residential Homes,Brightbow,922.36, 15-May-2012
271,Revenue,CCHD,Purchase of RAC places,Other L.A.'s - General,Bristol City Council,60223.83, 23-May-2012
272,Revenue,CCHD,Purchase of RAC places,Other L.A.'s - General,Bristol City Council,13237.02, 23-May-2012
273,Revenue,CCHD,Purchase of Day Centre places,Other L.A.'s - General,Bristol City Council,2382.01, 25-May-2012
274,Revenue,CCHD,Supported Living - KD,Private & Voluntary Home Care,Bristol Houses UK Ltd,1280.27, 24-May-2012
275,Revenue,CCHD,Supported Living - KD,Private & Voluntary Home Care,Bristol Houses UK Ltd,1029.13, 24-May-2012
276,Revenue,CCHD,Supported Living - KD,Private & Voluntary Home Care,Bristol Houses UK Ltd,1289.94, 24-May-2012
277,Revenue,CCHD,Day Care - North,Private & Voluntary Day Care,Bristol Houses UK Ltd,875.72, 14-May-2012
278,Revenue,CCHD,Supported Living - KD,Private & Voluntary Home Care,Bristol Houses UK Ltd,812.72, 24-May-2012
279,Revenue,CCHD,Supported Living - KD,Private & Voluntary Home Care,Bristol Houses UK Ltd,908.13, 24-May-2012
280,Revenue,CCHD,Younger MH non-res purchasing,Private & Voluntary Day Care,Bristol Houses UK Ltd,1071, 25-May-2012
281,Revenue,CCHD,Supported Living - KD,Private & Voluntary Home Care,Bristol Houses UK Ltd,595, 24-May-2012
282,Revenue,CCHD,Day Care - North,Private & Voluntary Day Care,Bristol Houses UK Ltd,1664.96, 14-May-2012
283,Revenue,CCHD,Supported Living - KD,Private & Voluntary Home Care,Bristol Houses UK Ltd,557.48, 24-May-2012
284,Revenue,CCHD,Bed and Breakfast,Bed & Breakfast,Bristol Housing & Support Limited,1120, 11-May-2012
285,Revenue,CCHD,Bed and Breakfast,Bed & Breakfast,Bristol Housing & Support Limited,1120, 11-May-2012
286,Revenue,CCHD,Bed and Breakfast,Bed & Breakfast,Bristol Housing & Support Limited,1144, 11-May-2012
287,Revenue,CCHD,Bed and Breakfast,Bed & Breakfast,Bristol Housing & Support Limited,1120, 11-May-2012
288,Revenue,CCHD,Bed and Breakfast,Bed & Breakfast,Bristol Housing & Support Limited,976, 11-May-2012
289,Revenue,CCHD,Bed and Breakfast,Bed & Breakfast,Bristol Housing & Support Limited,712, 11-May-2012
290,Revenue,CCHD,Bed and Breakfast,Bed & Breakfast,Bristol Housing & Support Limited,784, 11-May-2012
291,Revenue,CCHD,Kerr House NRC,Water Charges,Bristol Wessex Billing Services Limited,5525.99, 11-May-2012
292,Revenue,CCHD,Bed Purchasing - Elderly S117- North,Residential Homes,Brockley Court Care Home,1818.04, 15-May-2012
293,Revenue,CCHD,Supporting People Programme,Grants to Voluntary Bodies,Bromford Housing Group,27833.3, 01-May-2012
294,Revenue,CCHD,Bed Purchasing - Elderly - North,Residential Homes,Brook Lane Residential Home,877.36, 15-May-2012
295,Revenue,CCHD,Bed Purchasing - Elderly - South,Nursing Homes,Brunel Care,2905.49, 15-May-2012
296,Revenue,CCHD,Bed Purchasing - Elderly - South,Nursing Homes,Brunel Care,1224.72, 15-May-2012
297,Revenue,CCHD,Bed Purchasing - Elderly - South,Nursing Homes,Brunel Care,963.62, 15-May-2012
298,Revenue,CCHD,Southmead Hospital Purchasing,Residential Homes,Brunel Care,1239.36, 15-May-2012
299,Revenue,CCHD,Bed Purchasing - Elderly MH - South,Nursing Homes,Brunel Care,2029.8, 15-May-2012
300,Revenue,CCHD,Southmead Hospital Purchasing,Nursing Homes,Brunel Care,1267.64, 15-May-2012
301,Revenue,CCHD,Southmead Hospital Purchasing,Nursing Homes,Brunel Care,950.73, 15-May-2012
302,Revenue,CCHD,Southmead Hospital Purchasing,Residential Homes,Brunel Care,1316.4, 15-May-2012
303,Revenue,CCHD,Home Care - Elderly - North,Private & Voluntary Home Care,Brunelcare,6720, 04-May-2012
304,Revenue,CCHD,Home Care - Elderly - North,Private & Voluntary Home Care,Brunelcare,6720, 14-May-2012
305,Revenue,CCHD,Home Care - Elderly - North,Private & Voluntary Home Care,Brunelcare,6720, 21-May-2012
306,Revenue,CCHD,Home Care - Elderly - North,Private & Voluntary Home Care,Brunelcare,6720, 28-May-2012
307,Revenue,CCHD,Bed Purchasing - Elderly - South,Nursing Homes,Brunelcare,9466.95, 29-May-2012
308,Revenue,CCHD,Bed Purchasing - Elderly - North,Nursing Homes,Brunelcare,3018.74, 29-May-2012
309,Revenue,CCHD,Frenchay Hospital Purchasing,Nursing Homes,Brunelcare,3027.43, 29-May-2012
310,Revenue,CCHD,Southmead Hospital Purchasing,Nursing Homes,Brunelcare,7043.41, 29-May-2012
311,Revenue,CCHD,South Glos Users in South Glos Homes,Nursing Homes,Brunelcare,9689.83, 29-May-2012
312,Revenue,CCHD,Bed purchasing - Elderly MH - North,Nursing Homes,Brunelcare,8551.97, 29-May-2012
313,Revenue,CCHD,Bed Purchasing - Elderly S117- North,Nursing Homes,Brunelcare,6471.86, 29-May-2012
314,Revenue,CCHD,Home Care - Elderly - South,Other Small Contracts,Brunelcare,2799, 21-May-2012
315,Revenue,CCHD,Home Care - Elderly - North,Other Small Contracts,Brunelcare,4569.49, 21-May-2012
316,Revenue,CCHD,Day Care - South,Private & Voluntary Day Care,Brunelcare,167.87, 21-May-2012
317,Revenue,CCHD,Day Care - North,Private & Voluntary Day Care,Brunelcare,76.05, 21-May-2012
318,Revenue,CCHD,Carer`s Grant - North,Carers Breaks & Services,Brunelcare,12.08, 21-May-2012
319,Revenue,CCHD,Home care - Elderly MH - North,Other Small Contracts,Brunelcare,342.19, 21-May-2012
320,Revenue,CCHD,Elderly MH Day Care North,Private & Voluntary Day Care,Brunelcare,326.25, 21-May-2012
321,Revenue,CCHD,Home Care - Elderly - South,Other Small Contracts,Brunelcare,2726.53, 16-May-2012
322,Revenue,CCHD,Home Care - Elderly - North,Other Small Contracts,Brunelcare,4666.14, 16-May-2012
323,Revenue,CCHD,Day Care - South,Private & Voluntary Day Care,Brunelcare,175.88, 16-May-2012
324,Revenue,CCHD,Day Care - North,Private & Voluntary Day Care,Brunelcare,128.88, 16-May-2012
325,Revenue,CCHD,Carer`s Grant - North,Carers Breaks & Services,Brunelcare,24.15, 16-May-2012
326,Revenue,CCHD,Home care - Elderly MH - North,Other Small Contracts,Brunelcare,627.96, 16-May-2012
327,Revenue,CCHD,Elderly MH Day Care North,Private & Voluntary Day Care,Brunelcare,398.76, 16-May-2012
328,Revenue,CCHD,Information Systems - Software,Computer Equipment - Purchase,BT Global Services Solutions,759.31, 15-May-2012
329,Revenue,CCHD,Woodleaze,Cleaning & Domestic Supplies,Bunzl Cleaning & Hygiene Supplies,734.24, 31-May-2012
330,Revenue,CCHD,Bed purchasing - Phys Dis - North,Nursing Homes,Bupa Care Services  Bridge House,5795.92, 15-May-2012
331,Revenue,CCHD,South Glos Users in all other LA Homes,Nursing Homes,Bupa Care Services  Bridge House,598.4, 15-May-2012
332,Revenue,CCHD,Bed purchasing - Elderly MH - North,Residential Homes,Bupa Care Services  Bridge House,809.44, 15-May-2012
333,Revenue,CCHD,Woodleaze,Maintenance by Contractor,C B Decorators,2380, 23-May-2012
334,Revenue,CCHD,Supported Living - PS,Private & Voluntary Home Care,Camphill Communities Thornbury Limited,1707.72, 24-May-2012
335,Revenue,CCHD,Supported Living - KD,Private & Voluntary Home Care,Camphill Communities Thornbury Limited,2231.64, 08-May-2012
336,Revenue,CCHD,Supported Living - KD,Private & Voluntary Home Care,Camphill Communities Thornbury Limited,1996.72, 08-May-2012
337,Revenue,CCHD,Supported Living - KD,Private & Voluntary Home Care,Camphill Communities Thornbury Limited,2211.36, 08-May-2012
338,Revenue,CCHD,Supported Living - KD,Private & Voluntary Home Care,Camphill Communities Thornbury Limited,2086.45, 08-May-2012
339,Revenue,CCHD,Supported Living - KD,Private & Voluntary Home Care,Camphill Communities Thornbury Limited,1025.76, 08-May-2012
340,Revenue,CCHD,Supported Living - KD,Private & Voluntary Home Care,Camphill Communities Thornbury Limited,1972.57, 14-May-2012
341,Revenue,CCHD,Supported Living - KD,Private & Voluntary Home Care,Camphill Communities Thornbury Limited,2188.59, 14-May-2012
342,Revenue,CCHD,Bed purchasing - Under 65s PWLD - North,Residential Homes,Camphill Devon Community,3185.24, 15-May-2012
343,Revenue,CCHD,Bed purchasing - Under 65s PWLD - North,Residential Homes,Camphill Devon Community,2221.78, 15-May-2012
344,Revenue,CCHD,Supported Living - PS,Private & Voluntary Home Care,Camphill Village Trust,1449.11, 09-May-2012
345,Revenue,CCHD,Housing Needs,Training Expenses,Capita Business Services Ltd,700, 08-May-2012
346,Revenue,CCHD,Bed Purchasing - PWLD S 117 Placements,Residential Homes,Care Community Ltd,7557.21, 15-May-2012
347,Revenue,CCHD,Purchase of Non-Res Care - KD,Private & Voluntary Day Care,Care Horizons Limited,1033.1, 08-May-2012
348,Revenue,CCHD,Supported Living - PS,Private & Voluntary Home Care,Care Horizons Limited,1836.63, 21-May-2012
349,Revenue,CCHD,Supported Living - KD,Private & Voluntary Home Care,Care Horizons Limited,5275.78, 08-May-2012
350,Revenue,CCHD,Day Care - South,Private & Voluntary Day Care,Care Horizons Limited,625.9, 22-May-2012
351,Revenue,CCHD,Day Care - South,Private & Voluntary Day Care,Care Horizons Limited,307.58, 01-May-2012
352,Revenue,CCHD,Day Care - North,Private & Voluntary Day Care,Care Horizons Limited,355.27, 01-May-2012
353,Revenue,CCHD,Electronic Home Care Monitoring,Other Supplies & Services,Care Monitoring 2000 Limited,5632.4, 17-May-2012
354,Revenue,CCHD,Home Care - General,Other Supplies & Services,Care Monitoring 2000 Limited,6959.6, 17-May-2012
355,Revenue,CCHD,Electronic Home Care Monitoring,Other Supplies & Services,Care Monitoring 2000 Limited,5000, 31-May-2012
356,Revenue,CCHD,Electronic Home Care Monitoring,Other Supplies & Services,Care Monitoring 2000 Limited,860, 29-May-2012
357,Revenue,CCHD,Home Care - General,Other Supplies & Services,Care Monitoring 2000 Limited,739.94, 31-May-2012
358,Revenue,CCHD,Home Care - Elderly - South,Other Small Contracts,Carewatch (Bristol),231.55, 21-May-2012
359,Revenue,CCHD,Home Care - Elderly - North,Other Small Contracts,Carewatch (Bristol),311.54, 21-May-2012
360,Revenue,CCHD,Home Care - Elderly - South,Other Small Contracts,Carewatch (Bristol),244.18, 16-May-2012
361,Revenue,CCHD,Home Care - Elderly - North,Other Small Contracts,Carewatch (Bristol),231.55, 16-May-2012
362,Revenue,CCHD,Day Care - North,Private & Voluntary Day Care,Carewatch (Bristol),101.04, 16-May-2012
363,Revenue,CCHD,Home Care - Elderly - South,Other Small Contracts,Carewatch (Bristol),235.76, 16-May-2012
364,Revenue,CCHD,Home Care - Elderly - North,Other Small Contracts,Carewatch (Bristol),315.75, 16-May-2012
365,Revenue,CCHD,Elderly MH Day Care South,Private & Voluntary Day Care,Caring Home Healthcare Grp Ltd,1150, 25-May-2012
366,Revenue,CCHD,Home Care - Elderly - South,Other Small Contracts,Cash Friday at Lloyds TSB,185.03, 10-May-2012
367,Revenue,CCHD,Home Care - Elderly - North,Other Small Contracts,Cash Friday at Lloyds TSB,1391.28, 10-May-2012
368,Revenue,CCHD,Day Care - South,Private & Voluntary Day Care,Cash Friday at Lloyds TSB,30.82, 10-May-2012
369,Revenue,CCHD,Day Care - North,Private & Voluntary Day Care,Cash Friday at Lloyds TSB,88.61, 10-May-2012
370,Revenue,CCHD,Home Care - Elderly - South,Other Small Contracts,Cash Friday at Lloyds TSB,185.03, 10-May-2012
371,Revenue,CCHD,Home Care - Elderly - North,Other Small Contracts,Cash Friday at Lloyds TSB,1379.71, 10-May-2012
372,Revenue,CCHD,Day Care - South,Private & Voluntary Day Care,Cash Friday at Lloyds TSB,30.82, 10-May-2012
373,Revenue,CCHD,Day Care - North,Private & Voluntary Day Care,Cash Friday at Lloyds TSB,88.61, 10-May-2012
374,Revenue,CCHD,Home Care - Elderly - South,Other Small Contracts,Cash Friday at Lloyds TSB,185.03, 28-May-2012
375,Revenue,CCHD,Home Care - Elderly - North,Other Small Contracts,Cash Friday at Lloyds TSB,1418.26, 28-May-2012
376,Revenue,CCHD,Day Care - South,Private & Voluntary Day Care,Cash Friday at Lloyds TSB,30.82, 28-May-2012
377,Revenue,CCHD,Day Care - North,Private & Voluntary Day Care,Cash Friday at Lloyds TSB,88.61, 28-May-2012
378,Revenue,CCHD,Home Care - Elderly - South,Other Small Contracts,Cash Friday at Lloyds TSB,185.03, 28-May-2012
379,Revenue,CCHD,Home Care - Elderly - North,Other Small Contracts,Cash Friday at Lloyds TSB,1406.7, 28-May-2012
380,Revenue,CCHD,Day Care - South,Private & Voluntary Day Care,Cash Friday at Lloyds TSB,30.82, 28-May-2012
381,Revenue,CCHD,Day Care - North,Private & Voluntary Day Care,Cash Friday at Lloyds TSB,88.61, 28-May-2012
382,Revenue,CCHD,Bed Purchasing - Elderly - North,Nursing Homes,Cedar Care Homes Ltd,1160.36, 15-May-2012
383,Revenue,CCHD,Frenchay Hospital Purchasing,Nursing Homes,Cedar Care Homes Ltd,1041.52, 15-May-2012
384,Revenue,CCHD,Frenchay Hospital Purchasing,Residential Homes,Centenary Care Homes Ltd,1239.2, 15-May-2012
385,Revenue,CCHD,Bed Purchasing - Elderly - South,Residential Homes,Cepen Lodge Care Home,2155.6, 15-May-2012
386,Revenue,CCHD,Bed Purchasing - Elderly - South,Residential Homes,Cepen Lodge Care Home,2155.6, 15-May-2012
387,Revenue,CCHD,Tenancy Start Up Scheme,Other Supplies & Services,Charlies Letting Agents,1150, 10-May-2012
388,Revenue,CCHD,Housing Needs,Training Expenses,Chartered Institute Of Housing,995, 28-May-2012
389,Revenue,CCHD,Frenchay Hospital Purchasing,Residential Homes,Chatsworth House,1052.4, 15-May-2012
390,Revenue,CCHD,Southmead Hospital Purchasing,Residential Homes,Chatsworth House,751.59, 15-May-2012
391,Revenue,CCHD,Home Care - Elderly - South,Other Small Contracts,Cherish Able Care Limited,2372.43, 18-May-2012
392,Revenue,CCHD,Home care - Elderly MH - North,Other Small Contracts,Cherish Able Care Limited,403.62, 18-May-2012
393,Revenue,CCHD,Home Care - Elderly - South,Other Small Contracts,Cherish Able Care Limited,2101.95, 04-May-2012
394,Revenue,CCHD,Home care - Elderly MH - North,Other Small Contracts,Cherish Able Care Limited,409.05, 04-May-2012
395,Revenue,CCHD,Home Care - Elderly - South,Other Small Contracts,Cherish Able Care Limited,2280.15, 11-May-2012
396,Revenue,CCHD,Home care - Elderly MH - North,Other Small Contracts,Cherish Able Care Limited,388.8, 11-May-2012
397,Revenue,CCHD,Home Care - Elderly - South,Other Small Contracts,Cherish Able Care Limited,2368.5, 25-May-2012
398,Revenue,CCHD,Home care - Elderly MH - North,Other Small Contracts,Cherish Able Care Limited,407.74, 25-May-2012
399,Revenue,CCHD,Bed purchasing -S28A  Under 65 - North,Residential Homes,Chescombe Lodge,8476.74, 15-May-2012
400,Revenue,CCHD,Day Care - South,Private & Voluntary Day Care,Chosen Care Limited,547.3, 25-May-2012
401,Revenue,CCHD,Bed Purchasing - Under 65s PWLD - South,Residential Homes,Chosen Court,13192.22, 15-May-2012
402,Revenue,CCHD,Bed Purchasing - PWLD S 117 Placements,Residential Homes,Chosen Court,7506.28, 15-May-2012
403,Revenue,CCHD,Training - Adult Services,Training Expenses,Chris Garnier,830, 29-May-2012
404,Revenue,CCHD,Bed purchasing - Under 65s PWLD - North,Residential Homes,Church House,5761.36, 15-May-2012
405,Revenue,CCHD,Bed purchasing - Under 65s PWLD - North,Residential Homes,Churchill House,9662.72, 15-May-2012
406,Revenue,CCHD,Under 65s PWLD - KH,Residential Homes,Churchill House,256013.68, 15-May-2012
407,Revenue,CCHD,Bed Purchasing - Under 65s PWLD - South,Residential Homes,Churchill House,12596.88, 15-May-2012
408,Revenue,CCHD,Training - Adult Services,Training Expenses,City & Guilds,616, 29-May-2012
409,Revenue,CCHD,Bed Purchasing - Elderly - South,Residential Homes,Cleeve Lodge,1597.04, 15-May-2012
410,Revenue,CCHD,Southmead Hospital Purchasing,Residential Homes,Cleeve Lodge,1425.36, 15-May-2012
411,Revenue,CCHD,Bed Purchasing - Elderly - South,Residential Homes,Cleeve Lodge,1237.01, 15-May-2012
412,Revenue,CCHD,Bed Purchasing - Elderly - South,Residential Homes,Cleeve Lodge,1659.48, 15-May-2012
413,Revenue,CCHD,Bed Purchasing - Elderly - South,Residential Homes,Cleeve Lodge,1673.84, 15-May-2012
414,Revenue,CCHD,Bed Purchasing - Elderly - South,Residential Homes,Cleeve Lodge,1449.08, 15-May-2012
415,Revenue,CCHD,Bed Purchasing - Elderly - South,Residential Homes,Cleeve Lodge,1086.81, 15-May-2012
416,Revenue,CCHD,Bed Purchasing - Elderly - South,Residential Homes,Cleeve Lodge,2236.96, 15-May-2012
417,Revenue,CCHD,Bed Purchasing - Elderly - South,Residential Homes,Cleeve Lodge,1767.96, 15-May-2012
418,Revenue,CCHD,Southmead Hospital Purchasing,Residential Homes,Cleeve Lodge,1434.8, 15-May-2012
419,Revenue,CCHD,Training - Adult Services,Training Expenses,Cleve Rugby Football Club Limited,576, 25-May-2012
420,Revenue,CCHD,Southmead Hospital Purchasing,Residential Homes,Clifftop Care Home,1189.84, 15-May-2012
421,Revenue,CCHD,Frenchay Hospital Purchasing,Residential Homes,Collingwood Residential Home,1027.68, 15-May-2012
422,Revenue,CCHD,Bed Purchasing - Elderly - South,Residential Homes,Collingwood Residential Home,1387.69, 15-May-2012
423,Revenue,CCHD,Bed Purchasing - Elderly - South,Residential Homes,Collingwood Residential Home,1284.12, 15-May-2012
424,Revenue,CCHD,Frenchay Hospital Purchasing,Residential Homes,Collingwood Residential Home,1237.28, 15-May-2012
425,Revenue,CCHD,Bed Purchasing - Elderly - South,Residential Homes,Collingwood Residential Home,813.55, 15-May-2012
426,Revenue,CCHD,Frenchay Hospital Purchasing,Residential Homes,Collingwood Residential Home,1318.54, 15-May-2012
427,Revenue,CCHD,Bed Purchasing - Elderly - South,Residential Homes,Collingwood Residential Home,842.84, 15-May-2012
428,Revenue,CCHD,Bed Purchasing - Elderly - South,Residential Homes,Collingwood Residential Home,929.4, 15-May-2012
429,Revenue,CCHD,Bed Purchasing - Elderly - South,Residential Homes,Collingwood Residential Home,1351.16, 15-May-2012
430,Revenue,CCHD,Bed Purchasing - Elderly - South,Residential Homes,Collingwood Residential Home,1058.6, 15-May-2012
431,Revenue,CCHD,Bed Purchasing - Elderly - South,Residential Homes,Collingwood Residential Home,1323.64, 15-May-2012
432,Revenue,CCHD,Frenchay Hospital Purchasing,Residential Homes,Collingwood Residential Home,1232, 15-May-2012
433,Revenue,CCHD,Bed Purchasing - Elderly MH - South,Residential Homes,Collingwood Residential Home,1298.4, 15-May-2012
434,Revenue,CCHD,Bed Purchasing - Elderly - South,Residential Homes,Collingwood Residential Home,1247.92, 15-May-2012
435,Revenue,CCHD,Bed Purchasing - Elderly - South,Residential Homes,Collingwood Residential Home,1373.76, 15-May-2012
436,Revenue,CCHD,Bed Purchasing - Elderly - South,Residential Homes,Collingwood Residential Home,1245.88, 15-May-2012
437,Revenue,CCHD,Southmead Hospital Purchasing,Residential Homes,Collingwood Residential Home,7408.01, 15-May-2012
438,Revenue,CCHD,Bed Purchasing - Elderly - South,Residential Homes,Collingwood Residential Home,1396.72, 15-May-2012
439,Revenue,CCHD,Bed and Breakfast,Bed & Breakfast,Connolly & Callaghan Limited,581, 03-May-2012
440,Revenue,CCHD,Bed and Breakfast,Bed & Breakfast,Connolly & Callaghan Limited,546, 03-May-2012
441,Revenue,CCHD,Bed and Breakfast,Bed & Breakfast,Connolly & Callaghan Limited,511, 03-May-2012
442,Revenue,CCHD,Bed and Breakfast,Bed & Breakfast,Connolly & Callaghan Limited,581, 14-May-2012
443,Revenue,CCHD,Bed and Breakfast,Bed & Breakfast,Connolly & Callaghan Limited,440, 09-May-2012
444,Revenue,CCHD,Bed and Breakfast,Bed & Breakfast,Connolly & Callaghan Limited,546, 14-May-2012
445,Revenue,CCHD,Bed and Breakfast,Bed & Breakfast,Connolly & Callaghan Limited,581, 14-May-2012
446,Revenue,CCHD,Bed and Breakfast,Bed & Breakfast,Connolly & Callaghan Limited,616, 15-May-2012
447,Revenue,CCHD,Bed and Breakfast,Bed & Breakfast,Connolly & Callaghan Limited,581, 15-May-2012
448,Revenue,CCHD,Bed and Breakfast,Bed & Breakfast,Connolly & Callaghan Limited,616, 15-May-2012
449,Revenue,CCHD,Bed and Breakfast,Bed & Breakfast,Connolly & Callaghan Limited,692, 14-May-2012
450,Revenue,CCHD,Bed and Breakfast,Bed & Breakfast,Connolly & Callaghan Limited,546, 15-May-2012
451,Revenue,CCHD,Bed and Breakfast,Bed & Breakfast,Connolly & Callaghan Limited,581, 14-May-2012
452,Revenue,CCHD,Bed and Breakfast,Bed & Breakfast,Connolly & Callaghan Limited,616, 15-May-2012
453,Revenue,CCHD,Bed and Breakfast,Bed & Breakfast,Connolly & Callaghan Limited,546, 15-May-2012
454,Revenue,CCHD,Bed and Breakfast,Bed & Breakfast,Connolly & Callaghan Limited,581, 15-May-2012
455,Revenue,CCHD,Bed and Breakfast,Bed & Breakfast,Connolly & Callaghan Limited,528, 15-May-2012
456,Revenue,CCHD,Bed and Breakfast,Bed & Breakfast,Connolly & Callaghan Limited,546, 15-May-2012
457,Revenue,CCHD,Bed and Breakfast,Bed & Breakfast,Connolly & Callaghan Limited,441, 15-May-2012
458,Revenue,CCHD,Bed and Breakfast,Bed & Breakfast,Connolly & Callaghan Limited,803, 15-May-2012
459,Revenue,CCHD,Bed and Breakfast,Bed & Breakfast,Connolly & Callaghan Limited,616, 24-May-2012
460,Revenue,CCHD,Bed and Breakfast,Bed & Breakfast,Connolly & Callaghan Limited,1428, 23-May-2012
461,Revenue,CCHD,Bed and Breakfast,Bed & Breakfast,Connolly & Callaghan Limited,546, 15-May-2012
462,Revenue,CCHD,Bed and Breakfast,Bed & Breakfast,Connolly & Callaghan Limited,581, 23-May-2012
463,Revenue,CCHD,Bed and Breakfast,Bed & Breakfast,Connolly & Callaghan Limited,616, 23-May-2012
464,Revenue,CCHD,Bed and Breakfast,Bed & Breakfast,Connolly & Callaghan Limited,546, 23-May-2012
465,Revenue,CCHD,Bed and Breakfast,Bed & Breakfast,Connolly & Callaghan Limited,511, 23-May-2012
466,Revenue,CCHD,Bed and Breakfast,Bed & Breakfast,Connolly & Callaghan Limited,441, 23-May-2012
467,Revenue,CCHD,Bed and Breakfast,Bed & Breakfast,Connolly & Callaghan Limited,616, 23-May-2012
468,Revenue,CCHD,Bed and Breakfast,Bed & Breakfast,Connolly & Callaghan Limited,476, 23-May-2012
469,Revenue,CCHD,Bed and Breakfast,Bed & Breakfast,Connolly & Callaghan Limited,450, 25-May-2012
470,Revenue,CCHD,Bed and Breakfast,Bed & Breakfast,Connolly & Callaghan Limited,581, 28-May-2012
471,Revenue,CCHD,Bed and Breakfast,Bed & Breakfast,Connolly & Callaghan Limited,616, 28-May-2012
472,Revenue,CCHD,Bed and Breakfast,Bed & Breakfast,Connolly & Callaghan Limited,546, 28-May-2012
473,Revenue,CCHD,Bed and Breakfast,Bed & Breakfast,Connolly & Callaghan Limited,511, 28-May-2012
474,Revenue,CCHD,Bed and Breakfast,Bed & Breakfast,Connolly & Callaghan Limited,511, 28-May-2012
475,Revenue,CCHD,Bed and Breakfast,Bed & Breakfast,Connolly & Callaghan Limited,441, 28-May-2012
476,Revenue,CCHD,Bed and Breakfast,Bed & Breakfast,Connolly & Callaghan Limited,616, 28-May-2012
477,Revenue,CCHD,Bed and Breakfast,Bed & Breakfast,Connolly & Callaghan Limited,476, 28-May-2012
478,Revenue,CCHD,Bed and Breakfast,Bed & Breakfast,Connolly & Callaghan Limited,525, 28-May-2012
479,Revenue,CCHD,Bed purchasing - Under 65s PWLD - North,Residential Homes,Consensus Support Services Ltd,8938, 02-May-2012
480,Revenue,CCHD,Bed purchasing - Under 65s PWLD - North,Residential Homes,Consensus Support Services Ltd,8938, 30-May-2012
481,Revenue,CCHD,Woodleaze,Gas,Corona Energy Retail 3 Limited,1395.71, 14-May-2012
482,Revenue,CCHD,Kerr House,Gas,Corona Energy Retail 3 Limited,832.5, 14-May-2012
483,Revenue,CCHD,Newton House,Gas,Corona Energy Retail 3 Limited,1622.17, 14-May-2012
484,Revenue,CCHD,Alexandra Way,Gas,Corona Energy Retail 3 Limited,1757.27, 14-May-2012
485,Revenue,CCHD,Charlton,Gas,Corona Energy Retail 3 Limited,1079.19, 14-May-2012
486,Revenue,CCHD,Cambrian Drive,Gas,Corona Energy Retail 3 Limited,486.34, 14-May-2012
487,Revenue,CCHD,Woodleaze,Furniture & Fittings Loose,Countrywide Healthcare Supplies Ltd,1365.95, 01-May-2012
488,Revenue,CCHD,Alexandra Way,Prop.Serv. General Repairs,Countrywide Healthcare Supplies Ltd,1377.7, 01-May-2012
489,Revenue,CCHD,Research & Conferences,Consultation Expenses,CPEA Ltd,6260.78, 04-May-2012
490,Revenue,CCHD,Bed purchasing -S28A  Under 65 - North,Residential Homes,Cream Ii Ltd  Longrun House,14108.82, 15-May-2012
491,Revenue,CCHD,Bed purchasing -S28A  Under 65 - North,Residential Homes,Creedy Court,9074.84, 15-May-2012
492,Revenue,CCHD,Bed Purchasing - S28A - Over 65- North,Residential Homes,Creedy Court,7548.92, 15-May-2012
493,Revenue,CCHD,Minor Adaptations Service,Prop.Serv. General Repairs,D H B Building Contractors,421.02, 23-May-2012
494,Revenue,CCHD,Brokerage and Information Service,Grants to Voluntary Bodies,D H I,9210.09, 25-May-2012
495,Revenue,CCHD,Purchase of Non-Res Care - PS,Private & Voluntary Day Care,Daneswood,5187, 23-May-2012
496,Revenue,CCHD,Purchase of Non-Res Care - PS,Private & Voluntary Day Care,Daneswood,5434, 25-May-2012
497,Revenue,CCHD,Bed Purchasing - Under 65s PWLD - South,Residential Homes,Daneswood,10754.88, 15-May-2012
498,Revenue,CCHD,Bed purchasing - Under 65s PWLD - North,Residential Homes,Daneswood,8901.24, 15-May-2012
499,Revenue,CCHD,Learning Difficulties PSL,Other Supplies & Services,Individual,2016.44, 22-May-2012
500,Revenue,CCHD,S28a Day Care,Private & Voluntary Day Care,DCF Premier Workshops Trust,1538.86, 23-May-2012
501,Revenue,CCHD,General EPH budgets,Other Supplies & Services,Derek Browne & Associates,1990.98, 21-May-2012
502,Revenue,CCHD,Purchase of Non-Res Care - KD,Private & Voluntary Day Care,Design 4 Life Ltd,1482, 04-May-2012
503,Revenue,CCHD,Purchase of Non-Res Care - KD,Private & Voluntary Day Care,Design 4 Life Ltd,730.02, 25-May-2012
504,Revenue,CCHD,Day Care - South,Private & Voluntary Day Care,Dhek Bhal,919.16, 22-May-2012
505,Revenue,CCHD,Day Care - South,Private & Voluntary Day Care,Dhek Bhal,877.38, 18-May-2012
506,Revenue,CCHD,Day Care - South,Private & Voluntary Day Care,Dhek Bhal,919.16, 18-May-2012
507,Revenue,CCHD,Bed Purchasing - Elderly - South,Nursing Homes,Dunkirk Memorial House,1158.2, 15-May-2012
508,Revenue,CCHD,Bed and Breakfast,Bed & Breakfast,E J Bartlett,420, 08-May-2012
509,Revenue,CCHD,Bed and Breakfast,Bed & Breakfast,E J Bartlett,630, 03-May-2012
510,Revenue,CCHD,Bed and Breakfast,Bed & Breakfast,E J Bartlett,630, 03-May-2012
511,Revenue,CCHD,Bed and Breakfast,Bed & Breakfast,E J Bartlett,420, 08-May-2012
512,Revenue,CCHD,Bed and Breakfast,Bed & Breakfast,E J Bartlett,525, 03-May-2012
513,Revenue,CCHD,Bed and Breakfast,Bed & Breakfast,E J Bartlett,735, 03-May-2012
514,Revenue,CCHD,Bed and Breakfast,Bed & Breakfast,E J Bartlett,525, 03-May-2012
515,Revenue,CCHD,Bed and Breakfast,Bed & Breakfast,E J Bartlett,420, 03-May-2012
516,Revenue,CCHD,Bed and Breakfast,Bed & Breakfast,E J Bartlett,420, 03-May-2012
517,Revenue,CCHD,Bed and Breakfast,Bed & Breakfast,E J Bartlett,840, 03-May-2012
518,Revenue,CCHD,Bed and Breakfast,Bed & Breakfast,E J Bartlett,630, 11-May-2012
519,Revenue,CCHD,Bed and Breakfast,Bed & Breakfast,E J Bartlett,525, 11-May-2012
520,Revenue,CCHD,Bed and Breakfast,Bed & Breakfast,E J Bartlett,630, 11-May-2012
521,Revenue,CCHD,Bed and Breakfast,Bed & Breakfast,E J Bartlett,450, 11-May-2012
522,Revenue,CCHD,Bed and Breakfast,Bed & Breakfast,E J Bartlett,525, 11-May-2012
523,Revenue,CCHD,Bed and Breakfast,Bed & Breakfast,E J Bartlett,630, 11-May-2012
524,Revenue,CCHD,Bed and Breakfast,Bed & Breakfast,E J Bartlett,420, 11-May-2012
525,Revenue,CCHD,Bed and Breakfast,Bed & Breakfast,E J Bartlett,840, 11-May-2012
526,Revenue,CCHD,Bed and Breakfast,Bed & Breakfast,E J Bartlett,630, 17-May-2012
527,Revenue,CCHD,Bed and Breakfast,Bed & Breakfast,E J Bartlett,525, 17-May-2012
528,Revenue,CCHD,Bed and Breakfast,Bed & Breakfast,E J Bartlett,630, 17-May-2012
529,Revenue,CCHD,Bed and Breakfast,Bed & Breakfast,E J Bartlett,420, 17-May-2012
530,Revenue,CCHD,Bed and Breakfast,Bed & Breakfast,E J Bartlett,840, 29-May-2012
531,Revenue,CCHD,Bed and Breakfast,Bed & Breakfast,E J Bartlett,525, 23-May-2012
532,Revenue,CCHD,Bed and Breakfast,Bed & Breakfast,E J Bartlett,420, 23-May-2012
533,Revenue,CCHD,Bed and Breakfast,Bed & Breakfast,E J Bartlett,840, 23-May-2012
534,Revenue,CCHD,Bed purchasing - Under 65s PWLD - North,Residential Homes,East Court,2160.8, 15-May-2012
535,Revenue,CCHD,Charlton,Electricity,EDF Energy 1 Limited,1162.74, 28-May-2012
536,Revenue,CCHD,Woodleaze,Electricity,EDF Energy 1 Limited,1060.43, 28-May-2012
537,Revenue,CCHD,Newton House,Electricity,EDF Energy 1 Limited,916.67, 28-May-2012
538,Revenue,CCHD,Alexandra Way,Electricity,EDF Energy 1 Limited,1274.75, 04-May-2012
539,Revenue,CCHD,Alexandra Way,Electricity,EDF Energy 1 Limited,1219.32, 28-May-2012
540,Revenue,CCHD,Frenchay Hospital Purchasing,Residential Homes,Edgecumbe Lodge,1183.84, 15-May-2012
541,Revenue,CCHD,Southmead Hospital Purchasing,Residential Homes,Edgecumbe Lodge,1239.2, 15-May-2012
542,Revenue,CCHD,Bed Purchasing - Elderly - South,Residential Homes,Edgecumbe Lodge,1229.4, 15-May-2012
543,Revenue,CCHD,Frenchay Hospital Purchasing,Residential Homes,Edgecumbe Lodge,1110.52, 15-May-2012
544,Revenue,CCHD,Frenchay Hospital Purchasing,Residential Homes,Edgecumbe Lodge,1056, 15-May-2012
545,Revenue,CCHD,Bed Purchasing - Elderly MH - South,Residential Homes,Edgecumbe Lodge,1147.84, 15-May-2012
546,Revenue,CCHD,Bed purchasing - Elderly PWLD - South,Residential Homes,Edgemont House Ltd,1310.88, 15-May-2012
547,Revenue,CCHD,Bed Purchasing - Elderly - South,Residential Homes,Edgemont House Ltd,1353.44, 15-May-2012
548,Revenue,CCHD,Bed Purchasing - Elderly - South,Residential Homes,Edgemont House Ltd,1243.44, 15-May-2012
549,Revenue,CCHD,Frenchay Hospital Purchasing,Residential Homes,Edgemont House Ltd,1361.56, 15-May-2012
550,Revenue,CCHD,Bed Purchasing - Elderly - South,Nursing Homes,Edgemont View Nursing Home,1418.52, 15-May-2012
551,Revenue,CCHD,Frenchay Hospital Purchasing,Nursing Homes,Edgemont View Nursing Home,1341.28, 15-May-2012
552,Revenue,CCHD,Bed Purchasing - Elderly - South,Nursing Homes,Edgemont View Nursing Home,2210.6, 15-May-2012
553,Revenue,CCHD,Bed Purchasing - Elderly - South,Nursing Homes,Edgemont View Nursing Home,1602.76, 15-May-2012
554,Revenue,CCHD,Frenchay Hospital Purchasing,Nursing Homes,Edgemont View Nursing Home,606.84, 15-May-2012
555,Revenue,CCHD,Supporting People Programme,Grants to Voluntary Bodies,Elim Housing Association Ltd,9796.43, 01-May-2012
556,Revenue,CCHD,Home Care - Elderly - South,Other Small Contracts,Elite Home Care Ltd,3085.5, 01-May-2012
557,Revenue,CCHD,Day Care - South,Private & Voluntary Day Care,Elite Home Care Ltd,85, 01-May-2012
558,Revenue,CCHD,Home care - Elderly MH - North,Other Small Contracts,Elite Home Care Ltd,284.75, 01-May-2012
559,Revenue,CCHD,Home Care - Elderly - South,Other Small Contracts,Elite Home Care Ltd,3430.08, 09-May-2012
560,Revenue,CCHD,Day Care - South,Private & Voluntary Day Care,Elite Home Care Ltd,86.45, 09-May-2012
561,Revenue,CCHD,Under 65s -MH  Home Care Purch,Other Small Contracts,Elite Home Care Ltd,86.43, 09-May-2012
562,Revenue,CCHD,Home care - Elderly MH - North,Other Small Contracts,Elite Home Care Ltd,280.8, 09-May-2012
563,Revenue,CCHD,Home Care - Elderly - South,Other Small Contracts,Elite Home Care Ltd,3451.68, 09-May-2012
564,Revenue,CCHD,Day Care - South,Private & Voluntary Day Care,Elite Home Care Ltd,242.06, 09-May-2012
565,Revenue,CCHD,Under 65s -MH  Home Care Purch,Other Small Contracts,Elite Home Care Ltd,86.43, 09-May-2012
566,Revenue,CCHD,Home care - Elderly MH - North,Other Small Contracts,Elite Home Care Ltd,293.76, 09-May-2012
567,Revenue,CCHD,Home Care - Elderly - South,Other Small Contracts,Elite Home Care Ltd,3576.96, 29-May-2012
568,Revenue,CCHD,Day Care - South,Private & Voluntary Day Care,Elite Home Care Ltd,242.06, 29-May-2012
569,Revenue,CCHD,Under 65s -MH  Home Care Purch,Other Small Contracts,Elite Home Care Ltd,86.43, 29-May-2012
570,Revenue,CCHD,Home care - Elderly MH - North,Other Small Contracts,Elite Home Care Ltd,293.76, 29-May-2012
571,Revenue,CCHD,Home Care - Elderly - South,Other Small Contracts,Elite Home Care Ltd,3503.52, 21-May-2012
572,Revenue,CCHD,Day Care - South,Private & Voluntary Day Care,Elite Home Care Ltd,233.42, 21-May-2012
573,Revenue,CCHD,Under 65s -MH  Home Care Purch,Other Small Contracts,Elite Home Care Ltd,90.75, 21-May-2012
574,Revenue,CCHD,Home care - Elderly MH - North,Other Small Contracts,Elite Home Care Ltd,289.44, 21-May-2012
575,Revenue,CCHD,Home Care - Elderly - South,Other Small Contracts,Elite Home Care Ltd,3313.44, 29-May-2012
576,Revenue,CCHD,Day Care - South,Private & Voluntary Day Care,Elite Home Care Ltd,242.06, 29-May-2012
577,Revenue,CCHD,Under 65s -MH  Home Care Purch,Other Small Contracts,Elite Home Care Ltd,82.11, 29-May-2012
578,Revenue,CCHD,Home care - Elderly MH - North,Other Small Contracts,Elite Home Care Ltd,362.92, 29-May-2012
579,Revenue,CCHD,Electronic Home Care Monitoring,Other Supplies & Services,Elite Home Care Ltd,1554, 29-May-2012
580,Revenue,CCHD,Home Care - Elderly - South,Other Small Contracts,Everycare (Bristol) Ltd,474.95, 04-May-2012
581,Revenue,CCHD,Home Care - Elderly - North,Other Small Contracts,Everycare (Bristol) Ltd,925.12, 04-May-2012
582,Revenue,CCHD,Home Care - Elderly - South,Other Small Contracts,Everycare (Bristol) Ltd,479.08, 04-May-2012
583,Revenue,CCHD,Home Care - Elderly - North,Other Small Contracts,Everycare (Bristol) Ltd,528.64, 04-May-2012
584,Revenue,CCHD,Home Care - Elderly - South,Other Small Contracts,Everycare (Bristol) Ltd,392.35, 04-May-2012
585,Revenue,CCHD,Home Care - Elderly - North,Other Small Contracts,Everycare (Bristol) Ltd,446.04, 04-May-2012
586,Revenue,CCHD,Home Care - Elderly - South,Other Small Contracts,Everycare (Bristol) Ltd,454.3, 04-May-2012
587,Revenue,CCHD,Home Care - Elderly - North,Other Small Contracts,Everycare (Bristol) Ltd,1003.59, 04-May-2012
588,Revenue,CCHD,Home Care - Elderly - North,Other Small Contracts,Everycare (Bristol) Ltd,1125.6, 04-May-2012
589,Revenue,CCHD,Home Care - Elderly - North,Other Small Contracts,Everycare (Bristol) Ltd,1108.8, 16-May-2012
590,Revenue,CCHD,Home Care - Elderly - North,Other Small Contracts,Everycare (Bristol) Ltd,1209.6, 16-May-2012
591,Revenue,CCHD,Day Care - North,Private & Voluntary Day Care,Everycare (Bristol) Ltd,58.8, 16-May-2012
592,Revenue,CCHD,Bed Purchasing - Elderly MH - South,Residential Homes,Exmouth House,1382.92, 15-May-2012
593,Revenue,CCHD,Bed Purchasing - Elderly MH - South,Residential Homes,Fairview Court,1403.2, 15-May-2012
594,Revenue,CCHD,Bed Purchasing - Elderly - South,Residential Homes,Fairview Court,2623.36, 15-May-2012
595,Revenue,CCHD,Bed Purchasing - Elderly - South,Residential Homes,Fairview Court,2118.56, 15-May-2012
596,Revenue,CCHD,South Glos Users in South Glos Homes,Nursing Homes,Fairview Court,1506.27, 15-May-2012
597,Revenue,CCHD,Frenchay Hospital Purchasing,Nursing Homes,Fairview Court Care Home,1470.58, 29-May-2012
598,Revenue,CCHD,South Glos Users in South Glos Homes,Nursing Homes,Fairview Court Care Home,3385.23, 29-May-2012
599,Revenue,CCHD,Bed purchasing - Phys Dis - North,Nursing Homes,Fairview Court Care Home,1905.77, 29-May-2012
600,Revenue,CCHD,Bed purchasing - Elderly MH - North,Nursing Homes,Fairview Court Care Home,2935.99, 29-May-2012
601,Revenue,CCHD,Bed Purchasing - Elderly S117- North,Nursing Homes,Fairview Court Care Home,2456.9, 29-May-2012
602,Revenue,CCHD,Frenchay Hospital Purchasing,Nursing Homes,Fairview Court Care Home,1491.69, 29-May-2012
603,Revenue,CCHD,South Glos Users in South Glos Homes,Nursing Homes,Fairview Court Care Home,2406.93, 29-May-2012
604,Revenue,CCHD,Bed purchasing - Phys Dis - North,Nursing Homes,Fairview Court Care Home,1976.58, 29-May-2012
605,Revenue,CCHD,Bed Purchasing - Elderly MH - South,Nursing Homes,Fairview Court Care Home,3030.11, 29-May-2012
606,Revenue,CCHD,Bed purchasing - Elderly S117 - South,Nursing Homes,Fairview Court Care Home,2550.03, 29-May-2012
607,Revenue,CCHD,Bed Purchasing - Elderly - South,Residential Homes,Fairview House,634.12, 15-May-2012
608,Revenue,CCHD,Frenchay Hospital Purchasing,Residential Homes,Fairview House,1233.32, 15-May-2012
609,Revenue,CCHD,Frenchay Hospital Purchasing,Residential Homes,Fairview House,924.99, 15-May-2012
610,Revenue,CCHD,Frenchay Hospital Purchasing,Residential Homes,Fairview House,995.44, 15-May-2012
611,Revenue,CCHD,Bed purchasing - Elderly S117 - South,Residential Homes,Fairview House,1870.92, 15-May-2012
612,Revenue,CCHD,Southmead Hospital Purchasing,Residential Homes,Fairview House,1021.08, 15-May-2012
613,Revenue,CCHD,Southmead Hospital Purchasing,Residential Homes,Fairview House,4117.22, 15-May-2012
614,Revenue,CCHD,Southmead Hospital Purchasing,Residential Homes,Fairview House,1003.13, 15-May-2012
615,Revenue,CCHD,Southmead Hospital Purchasing,Residential Homes,Fairview House,1111.28, 15-May-2012
616,Revenue,CCHD,Frenchay Hospital Purchasing,Residential Homes,Fairview House,1272.9, 15-May-2012
617,Revenue,CCHD,Bed Purchasing - Elderly MH - South,Residential Homes,Fairview House,1097.2, 15-May-2012
618,Revenue,CCHD,Frenchay Hospital Purchasing,Residential Homes,Fairview House,1239.2, 15-May-2012
619,Revenue,CCHD,Bed Purchasing - Elderly MH - South,Residential Homes,Fairview House,1038.44, 15-May-2012
620,Revenue,CCHD,Bed Purchasing - Elderly MH - South,Residential Homes,Fairview House,1198.68, 15-May-2012
621,Revenue,CCHD,Bed Purchasing - Elderly MH - South,Residential Homes,Fairview House,899.01, 15-May-2012
622,Revenue,CCHD,Bed Purchasing - Elderly - North,Residential Homes,Faith House,871.16, 15-May-2012
623,Revenue,CCHD,Frenchay Hospital Purchasing,Residential Homes,Faith House,1302, 15-May-2012
624,Revenue,CCHD,Bed Purchasing - Elderly - North,Residential Homes,Faith House,1099.08, 15-May-2012
625,Revenue,CCHD,Bed purchasing - Under 65s PWLD - North,Residential Homes,Fernbank,8479.4, 15-May-2012
626,Revenue,CCHD,Purchase of Non-Res Care - PS,Private & Voluntary Day Care,Firstpoint Homecare Ltd,1010.99, 31-May-2012
627,Revenue,CCHD,Purchase of Non-Res Care - PS,Private & Voluntary Day Care,Firstpoint Homecare Ltd,1238.77, 31-May-2012
628,Revenue,CCHD,Purchase of Non-Res Care - PS,Private & Voluntary Day Care,Firstpoint Homecare Ltd,1238.77, 31-May-2012
629,Revenue,CCHD,Bed Purchasing - Elderly - South,Nursing Homes,Four Seasons Health Care,1281.72, 15-May-2012
630,Revenue,CCHD,Bed Purchasing - Elderly - South,Nursing Homes,Four Seasons Health Care,961.29, 15-May-2012
631,Revenue,CCHD,Frenchay Hospital Purchasing,Residential Homes,Four Seasons Health Care,892.12, 15-May-2012
632,Revenue,CCHD,Bed Purchasing - Elderly MH - South,Nursing Homes,Four Seasons Health Care,1363.2, 15-May-2012
633,Revenue,CCHD,Southmead Hospital Purchasing,Nursing Homes,Four Seasons Health Care,1363.2, 15-May-2012
634,Revenue,CCHD,South Glos Users in South Glos Homes,Nursing Homes,Four Seasons Health Care,1149.11, 15-May-2012
635,Revenue,CCHD,Bed Purchasing - Elderly - South,Nursing Homes,Four Seasons Health Care,819.03, 15-May-2012
636,Revenue,CCHD,Frenchay Hospital Purchasing,Nursing Homes,Four Seasons Health Care,1363.2, 15-May-2012
637,Revenue,CCHD,Frenchay Hospital Purchasing,Nursing Homes,Four Seasons Health Care,1840, 15-May-2012
638,Revenue,CCHD,Southmead Hospital Purchasing,Nursing Homes,Four Seasons Health Care,1363.2, 15-May-2012
639,Revenue,CCHD,Bed purchasing - Elderly MH - North,Residential Homes,Four Seasons Health Care,1239.2, 15-May-2012
640,Revenue,CCHD,Southmead Hospital Purchasing,Nursing Homes,Four Seasons Health Care,980.49, 15-May-2012
641,Revenue,CCHD,Section 117 Placements MH Younger,Nursing Homes,Four Seasons Health Care,4390.86, 15-May-2012
642,Revenue,CCHD,Section 117 Placements MH Younger,Nursing Homes,Four Seasons Health Care,1840, 15-May-2012
643,Revenue,CCHD,Section 117 Placements MH Younger,Nursing Homes,Four Seasons Health Care,1380, 15-May-2012
644,Revenue,CCHD,Section 117 Placements MH Younger,Nursing Homes,Four Seasons Health Care,1380, 15-May-2012
645,Revenue,CCHD,Section 117 Placements MH Younger,Nursing Homes,Four Seasons Health Care,4390.86, 15-May-2012
646,Revenue,CCHD,Bed Purchasing - Elderly - South,Nursing Homes,Four Seasons Health Care,903.84, 15-May-2012
647,Revenue,CCHD,Southmead Hospital Purchasing,Nursing Homes,Four Seasons Health Care,1363.2, 15-May-2012
648,Revenue,CCHD,Bed Purchasing - Elderly - South,Nursing Homes,Four Seasons Health Care,1361.64, 15-May-2012
649,Revenue,CCHD,Cash for Change Discharges,Nursing Homes,Four Seasons Health Care,1363.2, 15-May-2012
650,Revenue,CCHD,Southmead Hospital Purchasing,Nursing Homes,Four Seasons Health Care,1782.6, 15-May-2012
651,Revenue,CCHD,Southmead Hospital Purchasing,Nursing Homes,Four Seasons Health Care,1363.2, 15-May-2012
652,Revenue,CCHD,Bed Purchasing - Elderly - South,Nursing Homes,Four Seasons Health Care,1327.2, 15-May-2012
653,Revenue,CCHD,Southmead Hospital Purchasing,Nursing Homes,Four Seasons Health Care,1363.2, 15-May-2012
654,Revenue,CCHD,Bed Purchasing - Elderly - South,Nursing Homes,Four Seasons Health Care,1260.92, 15-May-2012
655,Revenue,CCHD,Southmead Hospital Purchasing,Residential Homes,Four Seasons Health Care,543.56, 15-May-2012
656,Revenue,CCHD,Southmead Hospital Purchasing,Nursing Homes,Four Seasons Health Care,1269.2, 15-May-2012
657,Revenue,CCHD,Bed Purchasing - Elderly - South,Nursing Homes,Four Seasons Health Care,1363.2, 15-May-2012
658,Revenue,CCHD,South Glos Users in South Glos Homes,Nursing Homes,Four Seasons Health Care,512.45, 15-May-2012
659,Revenue,CCHD,Bed Purchasing - Elderly - South,Nursing Homes,Four Seasons Health Care,1308.24, 15-May-2012
660,Revenue,CCHD,Bed Purchasing - Elderly - South,Nursing Homes,Four Seasons Health Care,981.18, 15-May-2012
661,Revenue,CCHD,Bed Purchasing - Elderly MH - South,Nursing Homes,Four Seasons Health Care,1363.2, 15-May-2012
662,Revenue,CCHD,South Glos Users in South Glos Homes,Nursing Homes,Four Seasons Health Care,1770.26, 15-May-2012
663,Revenue,CCHD,Bed Purchasing - Elderly - South,Nursing Homes,Four Seasons Health Care,1067.16, 15-May-2012
664,Revenue,CCHD,Bed Purchasing - Elderly - South,Nursing Homes,Four Seasons Health Care,1327.2, 15-May-2012
665,Revenue,CCHD,Bed Purchasing - Elderly - South,Nursing Homes,Four Seasons Health Care,995.4, 15-May-2012
666,Revenue,CCHD,Frenchay Hospital Purchasing,Nursing Homes,Four Seasons Health Care,1071.6, 15-May-2012
667,Revenue,CCHD,Bed Purchasing - Elderly MH - South,Residential Homes,Four Seasons Health Care,1084.52, 15-May-2012
668,Revenue,CCHD,Bed Purchasing - Elderly - South,Nursing Homes,Four Seasons Health Care,1363.2, 15-May-2012
669,Revenue,CCHD,Bed Purchasing - Elderly - South,Nursing Homes,Four Seasons Health Care,1361.8, 15-May-2012
670,Revenue,CCHD,Southmead Hospital Purchasing,Nursing Homes,Four Seasons Health Care,1337.88, 15-May-2012
671,Revenue,CCHD,Southmead Hospital Purchasing,Nursing Homes,Four Seasons Health Care,1003.41, 15-May-2012
672,Revenue,CCHD,Southmead Hospital Purchasing,Nursing Homes,Four Seasons Health Care,517.81, 15-May-2012
673,Revenue,CCHD,Frenchay Hospital Purchasing,Nursing Homes,Four Seasons Health Care,1204.47, 15-May-2012
674,Revenue,CCHD,Frenchay Hospital Purchasing,Nursing Homes,Four Seasons Health Care,1371.2, 15-May-2012
675,Revenue,CCHD,Bed Purchasing - Elderly MH - South,Nursing Homes,Four Seasons Health Care,1212.44, 15-May-2012
676,Revenue,CCHD,Bed Purchasing - Elderly - North,Nursing Homes,Four Seasons Health Care,956.44, 15-May-2012
677,Revenue,CCHD,Frenchay Hospital Purchasing,Nursing Homes,Four Seasons Health Care,1535.2, 15-May-2012
678,Revenue,CCHD,Frenchay Hospital Purchasing,Nursing Homes,Four Seasons Health Care,1271.88, 15-May-2012
679,Revenue,CCHD,Frenchay Hospital Purchasing,Nursing Homes,Four Seasons Health Care,953.91, 15-May-2012
680,Revenue,CCHD,Southmead Hospital Purchasing,Residential Homes,Four Seasons Health Care,1230.28, 15-May-2012
681,Revenue,CCHD,Southmead Hospital Purchasing,Residential Homes,Four Seasons Health Care,922.71, 15-May-2012
682,Revenue,CCHD,Bed Purchasing - Elderly - North,Residential Homes,Four Seasons Health Care,1026.48, 15-May-2012
683,Revenue,CCHD,Bed Purchasing - Elderly - North,Nursing Homes,Four Seasons Health Care,1220.44, 15-May-2012
684,Revenue,CCHD,Bed purchasing - Elderly MH - North,Nursing Homes,Four Seasons Health Care,1327.2, 15-May-2012
685,Revenue,CCHD,Frenchay Hospital Purchasing,Nursing Homes,Four Seasons Health Care,1289.28, 15-May-2012
686,Revenue,CCHD,Bed Purchasing - Elderly - North,Nursing Homes,Four Seasons Health Care,1363.2, 15-May-2012
687,Revenue,CCHD,Southmead Hospital Purchasing,Nursing Homes,Four Seasons Health Care,1363.2, 15-May-2012
688,Revenue,CCHD,Bed Purchasing - Elderly - North,Nursing Homes,Four Seasons Health Care,1363.2, 15-May-2012
689,Revenue,CCHD,Bed purchasing - Elderly MH - North,Nursing Homes,Four Seasons Health Care,1457.48, 15-May-2012
690,Revenue,CCHD,Bed Purchasing - Elderly - North,Nursing Homes,Four Seasons Health Care,1264.2, 15-May-2012
691,Revenue,CCHD,Bed Purchasing - Elderly - North,Nursing Homes,Four Seasons Health Care,1096.56, 15-May-2012
692,Revenue,CCHD,Southmead Hospital Purchasing,Nursing Homes,Four Seasons Health Care,1356.56, 15-May-2012
693,Revenue,CCHD,Frenchay Hospital Purchasing,Nursing Homes,Four Seasons Health Care,1284.4, 15-May-2012
694,Revenue,CCHD,Bed purchasing - Elderly MH - North,Nursing Homes,Four Seasons Health Care,1435.64, 15-May-2012
695,Revenue,CCHD,Frenchay Hospital Purchasing,Nursing Homes,Four Seasons Health Care,1343.4, 15-May-2012
696,Revenue,CCHD,Bed Purchasing - Elderly - North,Nursing Homes,Four Seasons Health Care,1027.36, 15-May-2012
697,Revenue,CCHD,Bed Purchasing - Elderly - North,Nursing Homes,Four Seasons Health Care,973.72, 15-May-2012
698,Revenue,CCHD,Bed Purchasing - Elderly - North,Nursing Homes,Four Seasons Health Care,1499.2, 15-May-2012
699,Revenue,CCHD,Bed Purchasing - Elderly - North,Nursing Homes,Four Seasons Health Care,1363.2, 15-May-2012
700,Revenue,CCHD,Bed Purchasing - Elderly - North,Nursing Homes,Four Seasons Health Care,1431.8, 15-May-2012
701,Revenue,CCHD,Southmead Hospital Purchasing,Residential Homes,Four Seasons Health Care,705.16, 15-May-2012
702,Revenue,CCHD,Bed purchasing - Elderly MH - North,Nursing Homes,Four Seasons Health Care,1421.44, 15-May-2012
703,Revenue,CCHD,Southmead Hospital Purchasing,Nursing Homes,Four Seasons Health Care,1442.32, 15-May-2012
704,Revenue,CCHD,Frenchay Hospital Purchasing,Nursing Homes,Four Seasons Health Care,1211.32, 15-May-2012
705,Revenue,CCHD,Frenchay Hospital Purchasing,Nursing Homes,Four Seasons Health Care,908.49, 15-May-2012
706,Revenue,CCHD,Southmead Hospital Purchasing,Nursing Homes,Four Seasons Health Care,1535.2, 15-May-2012
707,Revenue,CCHD,Bed Purchasing - Elderly S117- North,Nursing Homes,Four Seasons Health Care,1535.2, 15-May-2012
708,Revenue,CCHD,Bed Purchasing - Elderly S117- North,Nursing Homes,Four Seasons Health Care,712.77, 15-May-2012
709,Revenue,CCHD,Bed purchasing - Elderly MH - North,Residential Homes,Four Seasons Health Care,1197.16, 15-May-2012
710,Revenue,CCHD,Southmead Hospital Purchasing,Residential Homes,Four Seasons Health Care,1239.2, 15-May-2012
711,Revenue,CCHD,Southmead Hospital Purchasing,Nursing Homes,Four Seasons Health Care,940.68, 15-May-2012
712,Revenue,CCHD,Southmead Hospital Purchasing,Nursing Homes,Four Seasons Health Care,705.51, 15-May-2012
713,Revenue,CCHD,Bed purchasing - Elderly MH - North,Residential Homes,Four Seasons Health Care,1366.04, 15-May-2012
714,Revenue,CCHD,Bed Purchasing - Elderly - North,Nursing Homes,Four Seasons Health Care,1346.6, 15-May-2012
715,Revenue,CCHD,Bed purchasing - Elderly MH - North,Residential Homes,Four Seasons Health Care,1427.2, 15-May-2012
716,Revenue,CCHD,Bed purchasing - Elderly MH - North,Residential Homes,Four Seasons Health Care,1019.43, 15-May-2012
717,Revenue,CCHD,Bed purchasing - Elderly MH - North,Nursing Homes,Four Seasons Health Care,1025.24, 15-May-2012
718,Revenue,CCHD,Frenchay Hospital Purchasing,Nursing Homes,Four Seasons Health Care,1363.2, 15-May-2012
719,Revenue,CCHD,Southmead Hospital Purchasing,Nursing Homes,Four Seasons Health Care,571.56, 15-May-2012
720,Revenue,CCHD,Bed Purchasing - Elderly - North,Residential Homes,Four Seasons Health Care,1239.2, 15-May-2012
721,Revenue,CCHD,Frenchay Hospital Purchasing,Nursing Homes,Four Seasons Health Care,1204.44, 15-May-2012
722,Revenue,CCHD,Frenchay Hospital Purchasing,Nursing Homes,Four Seasons Health Care,1363.2, 15-May-2012
723,Revenue,CCHD,Bed Purchasing - Elderly - North,Nursing Homes,Four Seasons Health Care,1273.72, 15-May-2012
724,Revenue,CCHD,Southmead Hospital Purchasing,Nursing Homes,Four Seasons Health Care,1875.99, 15-May-2012
725,Revenue,CCHD,Southmead Hospital Purchasing,Nursing Homes,Four Seasons Health Care,1303.36, 15-May-2012
726,Revenue,CCHD,Southmead Hospital Purchasing,Nursing Homes,Four Seasons Health Care,977.52, 15-May-2012
727,Revenue,CCHD,Frenchay Hospital Purchasing,Nursing Homes,Four Seasons Health Care,1294.16, 15-May-2012
728,Revenue,CCHD,Frenchay Hospital Purchasing,Nursing Homes,Four Seasons Health Care,1363.2, 15-May-2012
729,Revenue,CCHD,Frenchay Hospital Purchasing,Residential Homes,Four Seasons Health Care,18142.23, 15-May-2012
730,Revenue,CCHD,Bed Purchasing - Elderly - North,Nursing Homes,Four Seasons Health Care,1399.2, 15-May-2012
731,Revenue,CCHD,Frenchay Hospital Purchasing,Nursing Homes,Four Seasons Health Care,1363.2, 15-May-2012
732,Revenue,CCHD,Frenchay Hospital Purchasing,Nursing Homes,Four Seasons Health Care,1363.2, 15-May-2012
733,Revenue,CCHD,Frenchay Hospital Purchasing,Nursing Homes,Four Seasons Health Care,1379.2, 15-May-2012
734,Revenue,CCHD,Bed Purchasing - Elderly - South,Nursing Homes,Four Seasons Health Care,1060.72, 15-May-2012
735,Revenue,CCHD,Southmead Hospital Purchasing,Residential Homes,Four Seasons Health Care,1118.04, 15-May-2012
736,Revenue,CCHD,Southmead Hospital Purchasing,Nursing Homes,Four Seasons Health Care,1363.2, 15-May-2012
737,Revenue,CCHD,Southmead Hospital Purchasing,Nursing Homes,Four Seasons Health Care,1365.12, 15-May-2012
738,Revenue,CCHD,Southmead Hospital Purchasing,Residential Homes,Four Seasons Health Care,1356, 15-May-2012
739,Revenue,CCHD,Bed purchasing - Phys Dis - North,Nursing Homes,Four Seasons Health Care,1168.64, 15-May-2012
740,Revenue,CCHD,Frenchay Hospital Purchasing,Nursing Homes,Four Seasons Health Care,1591.44, 15-May-2012
741,Revenue,CCHD,Frenchay Hospital Purchasing,Nursing Homes,Four Seasons Health Care,1329.52, 15-May-2012
742,Revenue,CCHD,Southmead Hospital Purchasing,Nursing Homes,Four Seasons Health Care,1336.84, 15-May-2012
743,Revenue,CCHD,Bed purchasing - Phys Dis - North,Nursing Homes,Four Seasons Health Care,1367.76, 15-May-2012
744,Revenue,CCHD,Southmead Hospital Purchasing,Nursing Homes,Four Seasons Health Care,1292.36, 15-May-2012
745,Revenue,CCHD,Bed purchasing - Elderly MH - North,Residential Homes,Four Seasons Health Care,1396.2, 15-May-2012
746,Revenue,CCHD,Southmead Hospital Purchasing,Residential Homes,Four Seasons Health Care,1163.68, 15-May-2012
747,Revenue,CCHD,Frenchay Hospital Purchasing,Nursing Homes,Four Seasons Health Care,1225.56, 15-May-2012
748,Revenue,CCHD,Bed Purchasing - Elderly - North,Residential Homes,Four Seasons Health Care,619.6, 15-May-2012
749,Revenue,CCHD,South Glos Users in South Glos Homes,Nursing Homes,Four Seasons Health Care,1646.03, 15-May-2012
750,Revenue,CCHD,Bed purchasing - Elderly PWLD - South,Residential Homes,Four Seasons Health Care,1239.2, 15-May-2012
751,Revenue,CCHD,Frenchay Hospital Purchasing,Nursing Homes,Four Seasons Health Care,1363.2, 15-May-2012
752,Revenue,CCHD,Southmead Hospital Purchasing,Nursing Homes,Four Seasons Health Care,1103.76, 15-May-2012
753,Revenue,CCHD,Bed Purchasing - Elderly - South,Nursing Homes,Four Seasons Health Care,1286.52, 15-May-2012
754,Revenue,CCHD,Bed Purchasing - Elderly - South,Nursing Homes,Four Seasons Health Care,1363.2, 15-May-2012
755,Revenue,CCHD,South Glos Users in South Glos Homes,Nursing Homes,Four Seasons Health Care,1180.17, 15-May-2012
756,Revenue,CCHD,Bed Purchasing - Elderly - South,Nursing Homes,Four Seasons Health Care,1352.48, 15-May-2012
757,Revenue,CCHD,Southmead Hospital Purchasing,Nursing Homes,Four Seasons Health Care,1138.92, 15-May-2012
758,Revenue,CCHD,Bed Purchasing - Elderly - South,Residential Homes,Four Seasons Health Care,865.28, 15-May-2012
759,Revenue,CCHD,Southmead Hospital Purchasing,Nursing Homes,Four Seasons Health Care,1304.96, 15-May-2012
760,Revenue,CCHD,Southmead Hospital Purchasing,Residential Homes,Four Seasons Health Care,1386, 15-May-2012
761,Revenue,CCHD,Frenchay Hospital Purchasing,Nursing Homes,Four Seasons Health Care,769.44, 15-May-2012
762,Revenue,CCHD,Bed Purchasing - Elderly - South,Nursing Homes,Four Seasons Health Care,947.2, 15-May-2012
763,Revenue,CCHD,Frenchay Hospital Purchasing,Residential Homes,Four Seasons Health Care,1239.2, 15-May-2012
764,Revenue,CCHD,Bed purchasing - Elderly S117 - South,Nursing Homes,Four Seasons Health Care,1840, 15-May-2012
765,Revenue,CCHD,Frenchay Hospital Purchasing,Residential Homes,Four Seasons Health Care,1102.84, 15-May-2012
766,Revenue,CCHD,Bed Purchasing - Elderly MH - South,Nursing Homes,Four Seasons Health Care,1174.8, 15-May-2012
767,Revenue,CCHD,Frenchay Hospital Purchasing,Nursing Homes,Four Seasons Health Care,1363.2, 15-May-2012
768,Revenue,CCHD,Southmead Hospital Purchasing,Nursing Homes,Four Seasons Health Care,1363.2, 15-May-2012
769,Revenue,CCHD,Southmead Hospital Purchasing,Nursing Homes,Four Seasons Health Care,1022.4, 15-May-2012
770,Revenue,CCHD,Bed Purchasing - Elderly MH - South,Residential Homes,Four Seasons Health Care,936.64, 15-May-2012
771,Revenue,CCHD,Southmead Hospital Purchasing,Nursing Homes,Four Seasons Health Care,1363.2, 15-May-2012
772,Revenue,CCHD,Frenchay Hospital Purchasing,Nursing Homes,Four Seasons Health Care,1109.56, 15-May-2012
773,Revenue,CCHD,Southmead Hospital Purchasing,Nursing Homes,Four Seasons Health Care,711.24, 15-May-2012
774,Revenue,CCHD,Bed Purchasing - Elderly - North,Nursing Homes,Four Seasons Health Care,1302.76, 15-May-2012
775,Revenue,CCHD,Southmead Hospital Purchasing,Nursing Homes,Four Seasons Health Care,991.8, 15-May-2012
776,Revenue,CCHD,Southmead Hospital Purchasing,Nursing Homes,Four Seasons Health Care,894.36, 15-May-2012
777,Revenue,CCHD,Bed Purchasing - Elderly S117- North,Residential Homes,Four Seasons Health Care,2011.04, 15-May-2012
778,Revenue,CCHD,Frenchay Hospital Purchasing,Residential Homes,Four Seasons Health Care,1515.84, 15-May-2012
779,Revenue,CCHD,Freeways,Residential Homes,Freeways Trust Limited,43873.45, 21-May-2012
780,Revenue,CCHD,Purchase of Non-Res Care - KD,Private & Voluntary Day Care,Freeways Trust Limited,620.88, 08-May-2012
781,Revenue,CCHD,Supported Living - PS,Private & Voluntary Home Care,Freeways Trust Limited,1485, 15-May-2012
782,Revenue,CCHD,Purchase of Non-Res Care - KD,Private & Voluntary Day Care,Freeways Trust Limited,620.88, 08-May-2012
783,Revenue,CCHD,Purchase of Non-Res Care - KD,Private & Voluntary Day Care,Freeways Trust Limited,540, 14-May-2012
784,Revenue,CCHD,Purchase of Non-Res Care - KD,Private & Voluntary Day Care,Freeways Trust Limited,626.84, 28-May-2012
785,Revenue,CCHD,Bed purchasing - Under 65s PWLD - North,Residential Homes,Freeways Trust Ltd,2791.88, 15-May-2012
786,Revenue,CCHD,Bed purchasing - S28A Under 65 - South,Residential Homes,Freeways Trust Ltd,2876.4, 15-May-2012
787,Revenue,CCHD,Bed purchasing - Under 65s PWLD - North,Residential Homes,Freeways Trust Ltd,2220.22, 15-May-2012
788,Revenue,CCHD,Bed purchasing - Under 65s PWLD - North,Residential Homes,Freeways Trust Ltd,2657.64, 15-May-2012
789,Revenue,CCHD,Bed purchasing - Under 65s PWLD - North,Residential Homes,Freeways Trust Ltd,2232.52, 15-May-2012
790,Revenue,CCHD,Bed purchasing - Under 65s PWLD - North,Residential Homes,Freeways Trust Ltd,2666.28, 15-May-2012
791,Revenue,CCHD,Bed Purchasing - Under 65s PWLD - South,Residential Homes,Freeways Trust Ltd,3259.12, 15-May-2012
792,Revenue,CCHD,Bed purchasing - Elderly PWLD - North,Residential Homes,Freeways Trust Ltd,2219.24, 15-May-2012
793,Revenue,CCHD,Bed Purchasing - Under 65s PWLD - South,Residential Homes,Freeways Trust Ltd,2364.28, 15-May-2012
794,Revenue,CCHD,Bed purchasing - Under 65s PWLD - North,Residential Homes,Freeways Trust Ltd,4570.76, 15-May-2012
795,Revenue,CCHD,Bed purchasing - Elderly PWLD - North,Residential Homes,Freeways Trust Ltd,2492.24, 15-May-2012
796,Revenue,CCHD,Section 117 Placements MH Younger,Residential Homes,Freeways Trust Ltd,3292.4, 15-May-2012
797,Revenue,CCHD,Frenchay Hospital Purchasing,Nursing Homes,Frenchay Park Nursing Home,1212.36, 15-May-2012
798,Revenue,CCHD,Bed Purchasing - Under 65s PWLD - South,Residential Homes,Glasallt Fawr,4493.1, 15-May-2012
799,Revenue,CCHD,Bed Purchasing - Elderly - North,Nursing Homes,Glebe House Nursing Home,1381.88, 15-May-2012
800,Revenue,CCHD,Bed Purchasing - Elderly - North,Nursing Homes,Glebe House Nursing Home,1081.5, 15-May-2012
801,Revenue,CCHD,South Glos Users in South Glos Homes,Nursing Homes,Glebe House Nursing Home,1040.42, 15-May-2012
802,Revenue,CCHD,Bed Purchasing - Elderly - South,Residential Homes,Glebe House Nursing Home,1963.52, 15-May-2012
803,Revenue,CCHD,Bed Purchasing - Elderly - North,Nursing Homes,Glebe House Nursing Home,1328.48, 15-May-2012
804,Revenue,CCHD,Southmead Hospital Purchasing,Nursing Homes,Glebe House Nursing Home,1295.2, 15-May-2012
805,Revenue,CCHD,Bed purchasing - Phys Dis - South,Nursing Homes,Glenside Centre For Brain Injury,7072.36, 15-May-2012
806,Revenue,CCHD,Homelessness Grant,Office Supplies & Equipment,Global Radio Services Ltd,650, 18-May-2012
807,Revenue,CCHD,Bed Purchasing - Under 65s PWLD - South,Residential Homes,Gordena Care Home,2063.36, 15-May-2012
808,Revenue,CCHD,Bed purchasing - Elderly PWLD - South,Residential Homes,Gordena Care Home,4691.96, 15-May-2012
809,Revenue,CCHD,Bed purchasing - Elderly PWLD - South,Residential Homes,Gordena Care Home,2904.2, 15-May-2012
810,Revenue,CCHD,Bed Purchasing - Under 65s PWLD - South,Residential Homes,Gordena Care Home,1894.04, 15-May-2012
811,Revenue,CCHD,Bed purchasing - S28A Under 65 - South,Residential Homes,Gordena Care Limited,4018.24, 15-May-2012
812,Revenue,CCHD,Home Care - Elderly - South,Other Small Contracts,Greenbanks Homecare (Western) Limited,3609.74, 21-May-2012
813,Revenue,CCHD,Home Care - Elderly - North,Other Small Contracts,Greenbanks Homecare (Western) Limited,168.75, 21-May-2012
814,Revenue,CCHD,Day Care - South,Private & Voluntary Day Care,Greenbanks Homecare (Western) Limited,281.3, 21-May-2012
815,Revenue,CCHD,Day Care - North,Private & Voluntary Day Care,Greenbanks Homecare (Western) Limited,62.8, 21-May-2012
816,Revenue,CCHD,Carer`s Grant - South,Carers Breaks & Services,Greenbanks Homecare (Western) Limited,105.98, 21-May-2012
817,Revenue,CCHD,Home care - Elderly MH - North,Other Small Contracts,Greenbanks Homecare (Western) Limited,439.53, 21-May-2012
818,Revenue,CCHD,Elderly MH Day Care North,Private & Voluntary Day Care,Greenbanks Homecare (Western) Limited,23.58, 21-May-2012
819,Revenue,CCHD,Home Care - Elderly - South,Other Small Contracts,Greenbanks Homecare (Western) Limited,3601.88, 21-May-2012
820,Revenue,CCHD,Home Care - Elderly - North,Other Small Contracts,Greenbanks Homecare (Western) Limited,207.99, 21-May-2012
821,Revenue,CCHD,Day Care - South,Private & Voluntary Day Care,Greenbanks Homecare (Western) Limited,211.82, 21-May-2012
822,Revenue,CCHD,Day Care - North,Private & Voluntary Day Care,Greenbanks Homecare (Western) Limited,62.8, 21-May-2012
823,Revenue,CCHD,Carer`s Grant - South,Carers Breaks & Services,Greenbanks Homecare (Western) Limited,109.9, 21-May-2012
824,Revenue,CCHD,Home care - Elderly MH - North,Other Small Contracts,Greenbanks Homecare (Western) Limited,459.15, 21-May-2012
825,Revenue,CCHD,Elderly MH Day Care North,Private & Voluntary Day Care,Greenbanks Homecare (Western) Limited,23.57, 21-May-2012
826,Revenue,CCHD,Home Care - Elderly - South,Other Small Contracts,Greenbanks Homecare (Western) Limited,3397.96, 25-May-2012
827,Revenue,CCHD,Home Care - Elderly - North,Other Small Contracts,Greenbanks Homecare (Western) Limited,188.37, 25-May-2012
828,Revenue,CCHD,Day Care - South,Private & Voluntary Day Care,Greenbanks Homecare (Western) Limited,167.54, 25-May-2012
829,Revenue,CCHD,Day Care - North,Private & Voluntary Day Care,Greenbanks Homecare (Western) Limited,66.73, 25-May-2012
830,Revenue,CCHD,Carer`s Grant - South,Carers Breaks & Services,Greenbanks Homecare (Western) Limited,109.9, 25-May-2012
831,Revenue,CCHD,Home care - Elderly MH - North,Other Small Contracts,Greenbanks Homecare (Western) Limited,435.6, 25-May-2012
832,Revenue,CCHD,Elderly MH Day Care North,Private & Voluntary Day Care,Greenbanks Homecare (Western) Limited,23.55, 25-May-2012
833,Revenue,CCHD,Bed Purchasing - Elderly - North,Residential Homes,Greensleeves,1305.56, 15-May-2012
834,Revenue,CCHD,Bed Purchasing - Elderly - South,Residential Homes,Grove Care,2118.13, 15-May-2012
835,Revenue,CCHD,Swift Dump Code,Residential Homes,Gwendoline House,10617.53, 28-May-2012
836,Revenue,CCHD,Home Care - Elderly - South,Private & Voluntary Home Care,Hanover Housing Association,1207.57, 23-May-2012
837,Revenue,CCHD,Bed Purchasing - Elderly - South,Residential Homes,Harefield Hall,799, 15-May-2012
838,Revenue,CCHD,Bed Purchasing - Elderly MH - South,Residential Homes,Harefield Hall,1091.48, 15-May-2012
839,Revenue,CCHD,Southmead Hospital Purchasing,Nursing Homes,Hc-One Ltd,1602.76, 15-May-2012
840,Revenue,CCHD,Southmead Hospital Purchasing,Residential Homes,Heather House,5367.04, 15-May-2012
841,Revenue,CCHD,Supported Living - PS,Private & Voluntary Home Care,HFT,3660.6, 24-May-2012
842,Revenue,CCHD,Southmead Hospital Purchasing,Residential Homes,Highgate Studios,1167.44, 15-May-2012
843,Revenue,CCHD,Bed purchasing - Under 65s PWLD - North,Residential Homes,Holmleigh Care Homes Ltd,6796.1, 15-May-2012
844,Revenue,CCHD,Bed Purchasing - Under 65s PWLD - South,Residential Homes,Holmleigh Care Homes Ltd,4968.42, 15-May-2012
845,Revenue,CCHD,South Glos Users in South Glos Homes,Nursing Homes,Holmwood House,3726.86, 15-May-2012
846,Revenue,CCHD,Bed purchasing - Under 65s PWLD - North,Residential Homes,Home Farm Trust Ltd  5-6 Brook Office Pa,2784.12, 15-May-2012
847,Revenue,CCHD,Bed Purchasing - Under 65s PWLD - South,Residential Homes,Home Farm Trust Ltd  5-6 Brook Office Pa,2427.64, 15-May-2012
848,Revenue,CCHD,Bed Purchasing - Under 65s PWLD - South,Residential Homes,Home Farm Trust Ltd  5-6 Brook Office Pa,3021.2, 15-May-2012
849,Revenue,CCHD,Bed purchasing - Under 65s PWLD - North,Residential Homes,Home Farm Trust Ltd  5-6 Brook Office Pa,3367.08, 15-May-2012
850,Revenue,CCHD,Bed Purchasing - Under 65s PWLD - South,Residential Homes,Home Farm Trust Ltd  5-6 Brook Office Pa,4491.6, 15-May-2012
851,Revenue,CCHD,Bed purchasing - Under 65s PWLD - North,Residential Homes,Home From Home Care Ltd,9029.56, 15-May-2012
852,Revenue,CCHD,Bed Purchasing - Elderly - North,Nursing Homes,Horfield Care Limited,5364.51, 21-May-2012
853,Revenue,CCHD,Frenchay Hospital Purchasing,Nursing Homes,Horfield Care Limited,5052.35, 21-May-2012
854,Revenue,CCHD,Southmead Hospital Purchasing,Nursing Homes,Horfield Care Limited,5647.62, 21-May-2012
855,Revenue,CCHD,Bed Purchasing - Elderly - North,Nursing Homes,Horfield Care Limited,3583.24, 21-May-2012
856,Revenue,CCHD,Frenchay Hospital Purchasing,Nursing Homes,Horfield Care Limited,3167.14, 21-May-2012
857,Revenue,CCHD,Southmead Hospital Purchasing,Nursing Homes,Horfield Care Limited,6635.45, 21-May-2012
858,Revenue,CCHD,Home Care - Elderly - North,Private & Voluntary Home Care,Housing 21,35812.8, 10-May-2012
859,Revenue,CCHD,Home Care - Elderly - South,Private & Voluntary Home Care,Housing 21,22092.54, 01-May-2012
860,Revenue,CCHD,Supporting People Programme,Grants to Voluntary Bodies,Housing 21,1825.24, 01-May-2012
861,Revenue,CCHD,Supporting People Programme,Grants to Voluntary Bodies,Housing 21,1203.18, 01-May-2012
862,Revenue,CCHD,Information Systems - Software,Software Support & Maintenance,Housing Partners Limited,37715.8, 17-May-2012
863,Revenue,CCHD,Tenancy Start Up Scheme,Other Supplies & Services,Individual,725, 29-May-2012
864,Revenue,CCHD,Training - Adult Services,Training Expenses,Jo Williams,544, 22-May-2012
865,Revenue,CCHD,Bed purchasing - Elderly PWLD - South,Residential Homes,Julia Simone- Supp. Ind.,3529.24, 15-May-2012
866,Revenue,CCHD,Bed purchasing -S28A  Under 65 - North,Residential Homes,Julia Simone- Supp. Ind.,3411.16, 15-May-2012
867,Revenue,CCHD,Bed Purchasing - Elderly - North,Residential Homes,Katherine House,1194.16, 15-May-2012
868,Revenue,CCHD,Bed Purchasing - Elderly MH - South,Residential Homes,Kenver House Residential Home,1513.84, 15-May-2012
869,Revenue,CCHD,Bed purchasing - Elderly S117 - South,Residential Homes,Kenver House Residential Home,1402.24, 15-May-2012
870,Revenue,CCHD,Frenchay Hospital Purchasing,Residential Homes,Kenver House Residential Home,893.88, 15-May-2012
871,Revenue,CCHD,Bed Purchasing - Elderly MH - South,Residential Homes,Kenver House Residential Home,1354.08, 15-May-2012
872,Revenue,CCHD,Bed Purchasing - Elderly MH - South,Residential Homes,Kenver House Residential Home,1638.16, 15-May-2012
873,Revenue,CCHD,Frenchay Hospital Purchasing,Residential Homes,Kenver House Residential Home,947.36, 15-May-2012
874,Revenue,CCHD,Bed purchasing - Elderly S117 - South,Residential Homes,Kenver House Residential Home,1879.04, 15-May-2012
875,Revenue,CCHD,Bed Purchasing - Elderly MH - South,Residential Homes,Kenver House Residential Home,1273.72, 15-May-2012
876,Revenue,CCHD,Bed Purchasing - Elderly S117- North,Residential Homes,Kenver House Residential Home,7600, 15-May-2012
877,Revenue,CCHD,Bed Purchasing - Elderly S117- North,Residential Homes,Kenver House Residential Home,1584, 15-May-2012
878,Revenue,CCHD,Bed Purchasing - Elderly - North,Residential Homes,Kenver House Residential Home,1052.4, 15-May-2012
879,Revenue,CCHD,Bed Purchasing - Elderly - North,Residential Homes,Kenver House Residential Home,644.89, 15-May-2012
880,Revenue,CCHD,Southmead Hospital Purchasing,Residential Homes,Kenver House Residential Home,1528.4, 15-May-2012
881,Revenue,CCHD,Bed Purchasing - Elderly MH - South,Residential Homes,Kenver House Residential Home,1638.16, 15-May-2012
882,Revenue,CCHD,Frenchay Hospital Purchasing,Residential Homes,Kenver House Residential Home,1638.16, 15-May-2012
883,Revenue,CCHD,Frenchay Hospital Purchasing,Residential Homes,Kenver House Residential Home,1100.4, 15-May-2012
884,Revenue,CCHD,Bed Purchasing - Elderly MH - South,Residential Homes,Kenver House Residential Home,1184.36, 15-May-2012
885,Revenue,CCHD,Bed Purchasing - Elderly MH - South,Residential Homes,Kenver House Residential Home,1226.32, 15-May-2012
886,Revenue,CCHD,Frenchay Hospital Purchasing,Residential Homes,Kenver House Residential Home,1410.6, 15-May-2012
887,Revenue,CCHD,Bed Purchasing - Elderly MH - South,Residential Homes,Kenver House Residential Home,1167.88, 15-May-2012
888,Revenue,CCHD,Bed Purchasing - Elderly MH - South,Residential Homes,Kenver House Residential Home,1402.24, 15-May-2012
889,Revenue,CCHD,Bed Purchasing - Elderly MH - South,Residential Homes,Kenver House Residential Home,1051.68, 15-May-2012
890,Revenue,CCHD,Bed Purchasing - Elderly - South,Residential Homes,Kenver House Residential Home,1529.44, 15-May-2012
891,Revenue,CCHD,Frenchay Hospital Purchasing,Residential Homes,Kenver House Residential Home,1561.28, 15-May-2012
892,Revenue,CCHD,Bed Purchasing - Elderly MH - South,Residential Homes,Kenver House Residential Home,1454.08, 15-May-2012
893,Revenue,CCHD,Frenchay Hospital Purchasing,Residential Homes,Kenver House Residential Home,1716.46, 15-May-2012
894,Revenue,CCHD,Frenchay Hospital Purchasing,Residential Homes,Kenver House Residential Home,1522, 15-May-2012
895,Revenue,CCHD,Frenchay Hospital Purchasing,Residential Homes,Kenver House Residential Home,1179.84, 15-May-2012
896,Revenue,CCHD,Supporting People Programme,Grants to Voluntary Bodies,Keyring Living Support Networks,5694.25, 01-May-2012
897,Revenue,CCHD,Supporting People Programme,Grants to Voluntary Bodies,Kingswood Young Homeless Project,34250, 01-May-2012
898,Revenue,CCHD,Bed purchasing - Under 65s PWLD - North,Residential Homes,Kisimul Group,11255.24, 15-May-2012
899,Revenue,CCHD,Supporting People Programme,Grants to Voluntary Bodies,Knightstone Housing Association Limited,57872.05, 01-May-2012
900,Revenue,CCHD,Supporting People Programme,Grants to Voluntary Bodies,Knightstone Housing Association Limited,4347.58, 01-May-2012
901,Revenue,CCHD,Supporting People Programme,Grants to Voluntary Bodies,Knightstone Housing Association Limited,9694.16, 01-May-2012
902,Revenue,CCHD,Supporting People Programme,Grants to Voluntary Bodies,Knightstone Housing Association Limited,3732, 01-May-2012
903,Revenue,CCHD,Home Care - Elderly - South,Other Small Contracts,Kumari Care Limited,4409.25, 16-May-2012
904,Revenue,CCHD,Home Care - Elderly - North,Other Small Contracts,Kumari Care Limited,823.46, 16-May-2012
905,Revenue,CCHD,Day Care - South,Private & Voluntary Day Care,Kumari Care Limited,244, 16-May-2012
906,Revenue,CCHD,Under 65s -MH  Home Care Purch,Other Small Contracts,Kumari Care Limited,144.97, 16-May-2012
907,Revenue,CCHD,Home care - Elderly MH - North,Other Small Contracts,Kumari Care Limited,38.15, 16-May-2012
908,Revenue,CCHD,PWLD Home Care - Under 65 - KH,Private & Voluntary Home Care,Kumari Care Limited,203.2, 16-May-2012
909,Revenue,CCHD,Home Care - Elderly - South,Other Small Contracts,Kumari Care Limited,4176.6, 22-May-2012
910,Revenue,CCHD,Home Care - Elderly - North,Other Small Contracts,Kumari Care Limited,823.68, 22-May-2012
911,Revenue,CCHD,Day Care - South,Private & Voluntary Day Care,Kumari Care Limited,228.75, 22-May-2012
912,Revenue,CCHD,Under 65s -MH  Home Care Purch,Other Small Contracts,Kumari Care Limited,148.78, 22-May-2012
913,Revenue,CCHD,Home care - Elderly MH - North,Other Small Contracts,Kumari Care Limited,45.78, 22-May-2012
914,Revenue,CCHD,PWLD Home Care - Under 65 - KH,Private & Voluntary Home Care,Kumari Care Limited,312.63, 22-May-2012
915,Revenue,CCHD,Home Care - Elderly - South,Other Small Contracts,Kumari Care Limited,4168.99, 22-May-2012
916,Revenue,CCHD,Home Care - Elderly - North,Other Small Contracts,Kumari Care Limited,823.64, 22-May-2012
917,Revenue,CCHD,Day Care - South,Private & Voluntary Day Care,Kumari Care Limited,183, 22-May-2012
918,Revenue,CCHD,Under 65s -MH  Home Care Purch,Other Small Contracts,Kumari Care Limited,148.78, 22-May-2012
919,Revenue,CCHD,Home care - Elderly MH - North,Other Small Contracts,Kumari Care Limited,30.52, 22-May-2012
920,Revenue,CCHD,PWLD Home Care - Under 65 - KH,Private & Voluntary Home Care,Kumari Care Limited,76.25, 22-May-2012
921,Revenue,CCHD,Home Care - Elderly - South,Other Small Contracts,Kumari Care Limited,4372.83, 30-May-2012
922,Revenue,CCHD,Home Care - Elderly - North,Other Small Contracts,Kumari Care Limited,823.63, 30-May-2012
923,Revenue,CCHD,Day Care - South,Private & Voluntary Day Care,Kumari Care Limited,228.75, 30-May-2012
924,Revenue,CCHD,Under 65s -MH  Home Care Purch,Other Small Contracts,Kumari Care Limited,148.78, 30-May-2012
925,Revenue,CCHD,Home care - Elderly MH - North,Other Small Contracts,Kumari Care Limited,45.78, 30-May-2012
926,Revenue,CCHD,PWLD Home Care - Under 65 - KH,Private & Voluntary Home Care,Kumari Care Limited,305, 30-May-2012
927,Revenue,CCHD,Bed purchasing - Phys Dis - North,Nursing Homes,Ladymead Care Home,846.99, 15-May-2012
928,Revenue,CCHD,Bed purchasing - Phys Dis - North,Nursing Homes,Leonard Cheshire  National Account Centr,2631.76, 15-May-2012
929,Revenue,CCHD,Bed purchasing - Phys Dis - North,Residential Homes,Leonard Cheshire  National Account Centr,2330.6, 15-May-2012
930,Revenue,CCHD,Bed Purchasing - Under 65s PWLD - South,Residential Homes,Leonard Cheshire  National Account Centr,2932.12, 15-May-2012
931,Revenue,CCHD,Bed Purchasing - Elderly - North,Nursing Homes,Leonard Cheshire  National Account Centr,3436.6, 15-May-2012
932,Revenue,CCHD,Bed purchasing - Phys Dis - North,Nursing Homes,Leonard Cheshire  National Account Centr,2736.6, 15-May-2012
933,Revenue,CCHD,Bed Purchasing - Elderly - North,Residential Homes,Leonard Cheshire  National Account Centr,3122.24, 15-May-2012
934,Revenue,CCHD,Bed purchasing - Under 65s PWLD - North,Residential Homes,Leonard Cheshire  National Account Centr,5817.08, 15-May-2012
935,Revenue,CCHD,Bed purchasing - Under 65s PWLD - North,Residential Homes,Leonard Cheshire  National Account Centr,5815.56, 15-May-2012
936,Revenue,CCHD,Bed Purchasing - Elderly - South,Residential Homes,Leonard Cheshire  National Account Centr,4398.92, 15-May-2012
937,Revenue,CCHD,Bed purchasing - Phys Dis - North,Nursing Homes,Leonard Cheshire  National Account Centr,3183.12, 15-May-2012
938,Revenue,CCHD,Bed Purchasing - Elderly - North,Nursing Homes,Leonard Cheshire  National Account Centr,3521.32, 15-May-2012
939,Revenue,CCHD,Bed purchasing - Phys Dis - South,Nursing Homes,Leonard Cheshire  National Account Centr,6056.64, 15-May-2012
940,Revenue,CCHD,Bed purchasing - Phys Dis - North,Nursing Homes,Leonard Cheshire  National Account Centr,5468.84, 15-May-2012
941,Revenue,CCHD,Bed Purchasing - Elderly - South,Nursing Homes,Leonard Cheshire  National Account Centr,2841.24, 15-May-2012
942,Revenue,CCHD,Southmead Hospital Purchasing,Nursing Homes,Leonard Cheshire  National Account Centr,2977.88, 15-May-2012
943,Revenue,CCHD,South Glos Users in all other LA Homes,Nursing Homes,Leonard Cheshire  National Account Centr,598.4, 15-May-2012
944,Revenue,CCHD,Frenchay Hospital Purchasing,Residential Homes,Leonard Cheshire  National Account Centr,3738.32, 15-May-2012
945,Revenue,CCHD,Bed Purchasing - Elderly - South,Nursing Homes,Leonard Cheshire  National Account Centr,4327.48, 15-May-2012
946,Revenue,CCHD,Bed Purchasing - LD S28A- Over 65- South,Residential Homes,Leonard Cheshire  National Account Centr,2865.73, 15-May-2012
947,Revenue,CCHD,Tenancy Start Up Scheme,Other Supplies & Services,Lifestyle Lettings (Deposit),1380, 14-May-2012
948,Revenue,CCHD,Supported Living - KD,Private & Voluntary Home Care,Lifeways Community Care (Gloucester) Ltd,11373, 22-May-2012
949,Revenue,CCHD,Supported Living - KD,Private & Voluntary Home Care,Lifeways Community Care (Gloucester) Ltd,11373, 31-May-2012
950,Revenue,CCHD,Supported Living - KD,Private & Voluntary Home Care,Lifeways Community Care (Gloucester) Ltd,8792, 14-May-2012
951,Revenue,CCHD,Supported Living - KD,Private & Voluntary Home Care,Lifeways Community Care (Gloucester) Ltd,10990, 31-May-2012
952,Revenue,CCHD,Bed Purchasing - Elderly - South,Residential Homes,Little Croft,1286.68, 15-May-2012
953,Revenue,CCHD,Bed Purchasing - Elderly - South,Residential Homes,Little Croft,1239.2, 15-May-2012
954,Revenue,CCHD,Bed Purchasing - Elderly - South,Residential Homes,Little Croft,1418.6, 15-May-2012
955,Revenue,CCHD,Bed Purchasing - Elderly - South,Residential Homes,Little Croft,1838.36, 15-May-2012
956,Revenue,CCHD,Bed Purchasing - Elderly - South,Residential Homes,Little Croft,1250.72, 15-May-2012
957,Revenue,CCHD,Bed Purchasing - Elderly - South,Residential Homes,Little Croft,686.31, 15-May-2012
958,Revenue,CCHD,Southmead Hospital Purchasing,Residential Homes,Little Croft,732.96, 15-May-2012
959,Revenue,CCHD,Southmead Hospital Purchasing,Residential Homes,Little Croft,1212.76, 15-May-2012
960,Revenue,CCHD,Bed Purchasing - Elderly MH - South,Residential Homes,Little Croft,1167.08, 15-May-2012
961,Revenue,CCHD,Southmead Hospital Purchasing,Residential Homes,Little Croft,1242.76, 15-May-2012
962,Revenue,CCHD,Southmead Hospital Purchasing,Residential Homes,Little Croft,1235.8, 15-May-2012
963,Revenue,CCHD,Frenchay Hospital Purchasing,Residential Homes,Little Croft,1239.2, 15-May-2012
964,Revenue,CCHD,Kingswood Centre - Maples Suite,Contract Hire & Operational Leases,Lloyds TSB Commercial Finance Limited,499, 03-May-2012
965,Revenue,CCHD,Supported Living - PS,Private & Voluntary Home Care,Lloyds TSB Commercial Finance Limited,5589.25, 04-May-2012
966,Revenue,CCHD,Supported Living - PS,Private & Voluntary Home Care,Lloyds TSB Commercial Finance Limited,3753.37, 04-May-2012
967,Revenue,CCHD,Supported Living - PS,Private & Voluntary Home Care,Lloyds TSB Commercial Finance Limited,3880.05, 04-May-2012
968,Revenue,CCHD,Supported Living - KD,Private & Voluntary Home Care,Lloyds TSB Commercial Finance Limited,3710.62, 28-May-2012
969,Revenue,CCHD,Supported Living - PS,Private & Voluntary Home Care,Lloyds TSB Commercial Finance Limited,6077.68, 04-May-2012
970,Revenue,CCHD,Supported Living - PS,Private & Voluntary Home Care,Lloyds TSB Commercial Finance Limited,4052.28, 04-May-2012
971,Revenue,CCHD,Supported Living - PS,Private & Voluntary Home Care,Lloyds TSB Commercial Finance Limited,3652.22, 04-May-2012
972,Revenue,CCHD,Home Care - Elderly - South,Other Small Contracts,Lloyds TSB Commercial Finance Limited,796.08, 21-May-2012
973,Revenue,CCHD,Home Care - Elderly - North,Other Small Contracts,Lloyds TSB Commercial Finance Limited,4455.86, 21-May-2012
974,Revenue,CCHD,Day Care - South,Private & Voluntary Day Care,Lloyds TSB Commercial Finance Limited,131.41, 21-May-2012
975,Revenue,CCHD,Day Care - North,Private & Voluntary Day Care,Lloyds TSB Commercial Finance Limited,449.54, 21-May-2012
976,Revenue,CCHD,Home care - Elderly MH - North,Other Small Contracts,Lloyds TSB Commercial Finance Limited,641.48, 21-May-2012
977,Revenue,CCHD,Elderly MH Day Care North,Private & Voluntary Day Care,Lloyds TSB Commercial Finance Limited,45.61, 21-May-2012
978,Revenue,CCHD,Home Care - Elderly - South,Other Small Contracts,Lloyds TSB Commercial Finance Limited,769.02, 16-May-2012
979,Revenue,CCHD,Home Care - Elderly - North,Other Small Contracts,Lloyds TSB Commercial Finance Limited,4413.48, 16-May-2012
980,Revenue,CCHD,Day Care - South,Private & Voluntary Day Care,Lloyds TSB Commercial Finance Limited,127.55, 16-May-2012
981,Revenue,CCHD,Day Care - North,Private & Voluntary Day Care,Lloyds TSB Commercial Finance Limited,411.35, 16-May-2012
982,Revenue,CCHD,Home care - Elderly MH - North,Other Small Contracts,Lloyds TSB Commercial Finance Limited,653.07, 16-May-2012
983,Revenue,CCHD,Elderly MH Day Care North,Private & Voluntary Day Care,Lloyds TSB Commercial Finance Limited,45.63, 16-May-2012
984,Revenue,CCHD,Home Care - Elderly - South,Other Small Contracts,Lloyds TSB Commercial Finance Limited,765.16, 16-May-2012
985,Revenue,CCHD,Home Care - Elderly - North,Other Small Contracts,Lloyds TSB Commercial Finance Limited,4255.06, 16-May-2012
986,Revenue,CCHD,Day Care - South,Private & Voluntary Day Care,Lloyds TSB Commercial Finance Limited,112.09, 16-May-2012
987,Revenue,CCHD,Day Care - North,Private & Voluntary Day Care,Lloyds TSB Commercial Finance Limited,457.21, 16-May-2012
988,Revenue,CCHD,Home care - Elderly MH - North,Other Small Contracts,Lloyds TSB Commercial Finance Limited,649.21, 16-May-2012
989,Revenue,CCHD,Elderly MH Day Care North,Private & Voluntary Day Care,Lloyds TSB Commercial Finance Limited,45.56, 16-May-2012
990,Revenue,CCHD,Supported Living - KD,Private & Voluntary Home Care,Lloyds TSB Commercial Finance Limited,3392.96, 28-May-2012
991,Revenue,CCHD,Supported Living - PS,Private & Voluntary Home Care,Lloyds TSB Commercial Finance Limited,3549.31, 04-May-2012
992,Revenue,CCHD,Supported Living - PS,Private & Voluntary Home Care,Lloyds TSB Commercial Finance Limited,533.8, 04-May-2012
993,Revenue,CCHD,Bed Purchasing - Under 65s PWLD - South,Residential Homes,Longton Court,9508.88, 15-May-2012
994,Revenue,CCHD,Social Lettings Agency,Other Supplies & Services,Individual,565, 08-May-2012
995,Revenue,CCHD,Southmead Hospital Purchasing,Nursing Homes,Majestic 3 Limited,1001.88, 15-May-2012
996,Revenue,CCHD,Frenchay Hospital Purchasing,Residential Homes,Manor Cottage,2080.09, 15-May-2012
997,Revenue,CCHD,South Glos Users in South Glos Homes,Nursing Homes,Manor Cottage,838.54, 15-May-2012
998,Revenue,CCHD,Bed Purchasing - Elderly - South,Residential Homes,Manor Cottage,747.32, 15-May-2012
999,Revenue,CCHD,Bed Purchasing - Elderly - South,Residential Homes,Manor Cottage,1424.84, 15-May-2012
1000,Revenue,CCHD,Bed Purchasing - Elderly - South,Residential Homes,Manor Cottage,1298.84, 15-May-2012
1001,Revenue,CCHD,Bed Purchasing - Elderly - North,Residential Homes,Manton Hall Residential Home,4423.51, 15-May-2012
1002,Revenue,CCHD,Supporting People Programme,Grants to Voluntary Bodies,Maples Community Housing Limited,5304.34, 01-May-2012
1003,Revenue,CCHD,Bed Purchasing - Under 65s PWLD - South,Residential Homes,Marsden Healthcare Limited,894.48, 11-May-2012
1004,Revenue,CCHD,Elderly PWLD - KH,Residential Homes,Marsden Healthcare Limited,1496.2, 11-May-2012
1005,Revenue,CCHD,Home Care - Elderly - South,Private & Voluntary Home Care,Mears Care,47442.58, 28-May-2012
1006,Revenue,CCHD,Home Care - Elderly - South,Other Small Contracts,Mears Care,439.2, 21-May-2012
1007,Revenue,CCHD,Home Care - Elderly - North,Other Small Contracts,Mears Care,6602.4, 21-May-2012
1008,Revenue,CCHD,Day Care - South,Private & Voluntary Day Care,Mears Care,100.8, 21-May-2012
1009,Revenue,CCHD,Day Care - North,Private & Voluntary Day Care,Mears Care,309.6, 21-May-2012
1010,Revenue,CCHD,Under 65s -MH  Home Care Purch,Other Small Contracts,Mears Care,108, 21-May-2012
1011,Revenue,CCHD,Home care - Elderly MH - North,Other Small Contracts,Mears Care,662.4, 21-May-2012
1012,Revenue,CCHD,Elderly MH Day Care North,Private & Voluntary Day Care,Mears Care,28.8, 21-May-2012
1013,Revenue,CCHD,Home Care - Elderly LD - KH,Private & Voluntary Home Care,Mears Care,50.4, 21-May-2012
1014,Revenue,CCHD,Home Care - Elderly - South,Other Small Contracts,Mears Care,352.8, 04-May-2012
1015,Revenue,CCHD,Home Care - Elderly - North,Other Small Contracts,Mears Care,6426, 04-May-2012
1016,Revenue,CCHD,Day Care - South,Private & Voluntary Day Care,Mears Care,100.8, 04-May-2012
1017,Revenue,CCHD,Day Care - North,Private & Voluntary Day Care,Mears Care,309.6, 04-May-2012
1018,Revenue,CCHD,Under 65s -MH  Home Care Purch,Other Small Contracts,Mears Care,93.6, 04-May-2012
1019,Revenue,CCHD,Home care - Elderly MH - North,Other Small Contracts,Mears Care,648, 04-May-2012
1020,Revenue,CCHD,Elderly MH Day Care North,Private & Voluntary Day Care,Mears Care,28.8, 04-May-2012
1021,Revenue,CCHD,Home Care - Elderly LD - KH,Private & Voluntary Home Care,Mears Care,50.4, 04-May-2012
1022,Revenue,CCHD,Home Care - Elderly - South,Other Small Contracts,Mears Care,489.6, 04-May-2012
1023,Revenue,CCHD,Home Care - Elderly - North,Other Small Contracts,Mears Care,6469.2, 04-May-2012
1024,Revenue,CCHD,Day Care - South,Private & Voluntary Day Care,Mears Care,147.6, 04-May-2012
1025,Revenue,CCHD,Day Care - North,Private & Voluntary Day Care,Mears Care,266.4, 04-May-2012
1026,Revenue,CCHD,Under 65s -MH  Home Care Purch,Other Small Contracts,Mears Care,108, 04-May-2012
1027,Revenue,CCHD,Home care - Elderly MH - North,Other Small Contracts,Mears Care,655.2, 04-May-2012
1028,Revenue,CCHD,Elderly MH Day Care North,Private & Voluntary Day Care,Mears Care,14.4, 04-May-2012
1029,Revenue,CCHD,Home Care - Elderly LD - KH,Private & Voluntary Home Care,Mears Care,36, 04-May-2012
1030,Revenue,CCHD,Home Care - Elderly - South,Other Small Contracts,Medacs Home Care,55.32, 21-May-2012
1031,Revenue,CCHD,Home Care - Elderly - North,Other Small Contracts,Medacs Home Care,1016.18, 21-May-2012
1032,Revenue,CCHD,Home care - Elderly MH - North,Other Small Contracts,Medacs Home Care,120.93, 21-May-2012
1033,Revenue,CCHD,Elderly MH Day Care North,Private & Voluntary Day Care,Medacs Home Care,69.14, 21-May-2012
1034,Revenue,CCHD,Home Care - Elderly - South,Other Small Contracts,Medacs Home Care,13.83, 16-May-2012
1035,Revenue,CCHD,Home Care - Elderly - North,Other Small Contracts,Medacs Home Care,908.97, 16-May-2012
1036,Revenue,CCHD,Home care - Elderly MH - North,Other Small Contracts,Medacs Home Care,117.47, 16-May-2012
1037,Revenue,CCHD,Elderly MH Day Care North,Private & Voluntary Day Care,Medacs Home Care,34.58, 16-May-2012
1038,Revenue,CCHD,Home Care - Elderly - South,Other Small Contracts,Medacs Home Care,55.32, 16-May-2012
1039,Revenue,CCHD,Home Care - Elderly - North,Other Small Contracts,Medacs Home Care,1026.55, 16-May-2012
1040,Revenue,CCHD,Home care - Elderly MH - North,Other Small Contracts,Medacs Home Care,124.38, 16-May-2012
1041,Revenue,CCHD,Elderly MH Day Care North,Private & Voluntary Day Care,Medacs Home Care,69.17, 16-May-2012
1042,Revenue,CCHD,NRS Contract,Daily Living Equipment,Medequip Assistive Technology Ltd,34058.88, 25-May-2012
1043,Revenue,CCHD,NRS Contract,Daily Living Equipment,Medequip Assistive Technology Ltd,58695.08, 25-May-2012
1044,Revenue,CCHD,Home Care - Elderly - South,Other Small Contracts,Medico Nursing & Homecare Ltd,2029.35, 21-May-2012
1045,Revenue,CCHD,Home Care - Elderly - North,Other Small Contracts,Medico Nursing & Homecare Ltd,7278.2, 21-May-2012
1046,Revenue,CCHD,Day Care - South,Private & Voluntary Day Care,Medico Nursing & Homecare Ltd,112.05, 21-May-2012
1047,Revenue,CCHD,Day Care - North,Private & Voluntary Day Care,Medico Nursing & Homecare Ltd,676.45, 21-May-2012
1048,Revenue,CCHD,Home care - Elderly MH - North,Other Small Contracts,Medico Nursing & Homecare Ltd,1012.6, 21-May-2012
1049,Revenue,CCHD,Elderly MH Day Care North,Private & Voluntary Day Care,Medico Nursing & Homecare Ltd,116.2, 21-May-2012
1050,Revenue,CCHD,Home Care - LD Under 65 - South,Private & Voluntary Home Care,Medico Nursing & Homecare Ltd,257.3, 21-May-2012
1051,Revenue,CCHD,Home Care - LD Under 65 - North,Private & Voluntary Home Care,Medico Nursing & Homecare Ltd,124.5, 21-May-2012
1052,Revenue,CCHD,PWLD Home Care - Under 65 - KH,Private & Voluntary Home Care,Medico Nursing & Homecare Ltd,697.2, 21-May-2012
1053,Revenue,CCHD,Home Care - Elderly - South,Other Small Contracts,Medico Nursing & Homecare Ltd,2000.3, 21-May-2012
1054,Revenue,CCHD,Home Care - Elderly - North,Other Small Contracts,Medico Nursing & Homecare Ltd,10053.27, 21-May-2012
1055,Revenue,CCHD,Day Care - South,Private & Voluntary Day Care,Medico Nursing & Homecare Ltd,66.4, 21-May-2012
1056,Revenue,CCHD,Day Care - North,Private & Voluntary Day Care,Medico Nursing & Homecare Ltd,634.95, 21-May-2012
1057,Revenue,CCHD,Home care - Elderly MH - North,Other Small Contracts,Medico Nursing & Homecare Ltd,771.9, 21-May-2012
1058,Revenue,CCHD,Elderly MH Day Care North,Private & Voluntary Day Care,Medico Nursing & Homecare Ltd,116.2, 21-May-2012
1059,Revenue,CCHD,Home Care - LD Under 65 - South,Private & Voluntary Home Care,Medico Nursing & Homecare Ltd,273.9, 21-May-2012
1060,Revenue,CCHD,Home Care - LD Under 65 - North,Private & Voluntary Home Care,Medico Nursing & Homecare Ltd,124.5, 21-May-2012
1061,Revenue,CCHD,PWLD Home Care - Under 65 - KH,Private & Voluntary Home Care,Medico Nursing & Homecare Ltd,709.65, 21-May-2012
1062,Revenue,CCHD,Home Care - Elderly - South,Other Small Contracts,Medico Nursing & Homecare Ltd,2160.64, 21-May-2012
1063,Revenue,CCHD,Home Care - Elderly - North,Other Small Contracts,Medico Nursing & Homecare Ltd,10220.73, 21-May-2012
1064,Revenue,CCHD,Day Care - South,Private & Voluntary Day Care,Medico Nursing & Homecare Ltd,67.52, 21-May-2012
1065,Revenue,CCHD,Day Care - North,Private & Voluntary Day Care,Medico Nursing & Homecare Ltd,710.45, 21-May-2012
1066,Revenue,CCHD,Home care - Elderly MH - North,Other Small Contracts,Medico Nursing & Homecare Ltd,670.98, 21-May-2012
1067,Revenue,CCHD,Elderly MH Day Care North,Private & Voluntary Day Care,Medico Nursing & Homecare Ltd,118.16, 21-May-2012
1068,Revenue,CCHD,Home Care - LD Under 65 - South,Private & Voluntary Home Care,Medico Nursing & Homecare Ltd,265.86, 21-May-2012
1069,Revenue,CCHD,PWLD Home Care - Under 65 - KH,Private & Voluntary Home Care,Medico Nursing & Homecare Ltd,725.84, 21-May-2012
1070,Revenue,CCHD,Home Care - Elderly - South,Other Small Contracts,Medico Nursing & Homecare Ltd,2257.7, 21-May-2012
1071,Revenue,CCHD,Home Care - Elderly - North,Other Small Contracts,Medico Nursing & Homecare Ltd,10666.56, 21-May-2012
1072,Revenue,CCHD,Day Care - South,Private & Voluntary Day Care,Medico Nursing & Homecare Ltd,67.52, 21-May-2012
1073,Revenue,CCHD,Day Care - North,Private & Voluntary Day Care,Medico Nursing & Homecare Ltd,503.67, 21-May-2012
1074,Revenue,CCHD,Home care - Elderly MH - North,Other Small Contracts,Medico Nursing & Homecare Ltd,713.18, 21-May-2012
1075,Revenue,CCHD,Elderly MH Day Care North,Private & Voluntary Day Care,Medico Nursing & Homecare Ltd,118.16, 21-May-2012
1076,Revenue,CCHD,Home Care - LD Under 65 - South,Private & Voluntary Home Care,Medico Nursing & Homecare Ltd,274.3, 21-May-2012
1077,Revenue,CCHD,PWLD Home Care - Under 65 - KH,Private & Voluntary Home Care,Medico Nursing & Homecare Ltd,746.94, 21-May-2012
1078,Revenue,CCHD,Home Care - Elderly - South,Other Small Contracts,Medico Nursing & Homecare Ltd,2253.48, 16-May-2012
1079,Revenue,CCHD,Home Care - Elderly - North,Other Small Contracts,Medico Nursing & Homecare Ltd,10528.82, 16-May-2012
1080,Revenue,CCHD,Day Care - South,Private & Voluntary Day Care,Medico Nursing & Homecare Ltd,118.16, 16-May-2012
1081,Revenue,CCHD,Day Care - North,Private & Voluntary Day Care,Medico Nursing & Homecare Ltd,681.47, 16-May-2012
1082,Revenue,CCHD,Home care - Elderly MH - North,Other Small Contracts,Medico Nursing & Homecare Ltd,679.42, 16-May-2012
1083,Revenue,CCHD,Elderly MH Day Care North,Private & Voluntary Day Care,Medico Nursing & Homecare Ltd,118.16, 16-May-2012
1084,Revenue,CCHD,Home Care - LD Under 65 - South,Private & Voluntary Home Care,Medico Nursing & Homecare Ltd,278.52, 16-May-2012
1085,Revenue,CCHD,PWLD Home Care - Under 65 - KH,Private & Voluntary Home Care,Medico Nursing & Homecare Ltd,738.5, 16-May-2012
1086,Revenue,CCHD,Bed Purchasing - Under 65s PWLD - South,Residential Homes,Mencap,2198.88, 15-May-2012
1087,Revenue,CCHD,Supporting People Programme,Grants to Voluntary Bodies,Merlin Housing Society,2033.6, 01-May-2012
1088,Revenue,CCHD,Supporting People Programme,Grants to Voluntary Bodies,Merlin Housing Society,30504, 01-May-2012
1089,Revenue,CCHD,Supporting People Programme,Grants to Voluntary Bodies,Merlin Housing Society,4799.94, 01-May-2012
1090,Revenue,CCHD,Supporting People Programme,Grants to Voluntary Bodies,Merlin Housing Society,101680, 01-May-2012
1091,Revenue,CCHD,Housing Needs,Fees - General,Merlin Housing Society,7823.47, 15-May-2012
1092,Revenue,CCHD,Contracts & Commissioning Team,Other Small Contracts,Milestones Outreach Dementia Services,7935.3, 11-May-2012
1093,Revenue,CCHD,Supported Living - PS,Private & Voluntary Home Care,Milestones Trust,7723.3, 25-May-2012
1094,Revenue,CCHD,Supported Living - PS,Private & Voluntary Home Care,Milestones Trust,6178.64, 25-May-2012
1095,Revenue,CCHD,Supported Living - PS,Private & Voluntary Home Care,Milestones Trust,708.84, 08-May-2012
1096,Revenue,CCHD,Supported Living - PS,Private & Voluntary Home Care,Milestones Trust,816.85, 08-May-2012
1097,Revenue,CCHD,Supported Living - PS,Private & Voluntary Home Care,Milestones Trust,599.4, 04-May-2012
1098,Revenue,CCHD,Supported Living - PS,Private & Voluntary Home Care,Milestones Trust,998.89, 08-May-2012
1099,Revenue,CCHD,Supported Living - PS,Private & Voluntary Home Care,Milestones Trust,817.52, 08-May-2012
1100,Revenue,CCHD,Purchase of Non-Res Care - PS,Private & Voluntary Day Care,Milestones Trust,1200.94, 04-May-2012
1101,Revenue,CCHD,Purchase of Non-Res Care - PS,Private & Voluntary Day Care,Milestones Trust,1349.91, 08-May-2012
1102,Revenue,CCHD,Purchase of Non-Res Care - PS,Private & Voluntary Day Care,Milestones Trust,1110.62, 14-May-2012
1103,Revenue,CCHD,Purchase of Non-Res Care - PS,Private & Voluntary Day Care,Milestones Trust,1002.88, 22-May-2012
1104,Revenue,CCHD,Supported Living (S28a) North,Private & Voluntary Home Care,Milestones Trust,1037.27, 01-May-2012
1105,Revenue,CCHD,Supported Living - PS,Private & Voluntary Home Care,Milestones Trust,654.69, 22-May-2012
1106,Revenue,CCHD,Supported Living - PS,Private & Voluntary Home Care,Milestones Trust,778.55, 24-May-2012
1107,Revenue,CCHD,Supported Living - PS,Private & Voluntary Home Care,Milestones Trust,1030.75, 22-May-2012
1108,Revenue,CCHD,Supported Living - PS,Private & Voluntary Home Care,Milestones Trust,1628.16, 23-May-2012
1109,Revenue,CCHD,Supported Living - PS,Private & Voluntary Home Care,Milestones Trust,891.13, 24-May-2012
1110,Revenue,CCHD,Supported Living - KD,Private & Voluntary Home Care,Milestones Trust,4322.23, 14-May-2012
1111,Revenue,CCHD,Purchase of Non-Res Care - PS,Private & Voluntary Day Care,Milestones Trust,1200.93, 29-May-2012
1112,Revenue,CCHD,Purchase of Non-Res Care - PS,Private & Voluntary Day Care,Milestones Trust,1362.12, 29-May-2012
1113,Revenue,CCHD,Supported Living (S28a) North,Private & Voluntary Home Care,Milestones Trust,10626.84, 25-May-2012
1114,Revenue,CCHD,Supported Living (S28a) North,Private & Voluntary Home Care,Milestones Trust,1050.4, 29-May-2012
1115,Revenue,CCHD,Bed Purchasing - Under 65s PWLD - South,Residential Homes,Miller Farm,3349.08, 15-May-2012
1116,Revenue,CCHD,Bed purchasing - Elderly S117 - South,Nursing Homes,Mimosa Healthcare Holdings Ltd,1919.72, 15-May-2012
1117,Revenue,CCHD,Bed Purchasing - Under 65s PWLD - South,Residential Homes,Mmcg  Westcourt,12816.72, 15-May-2012
1118,Revenue,CCHD,Bed Purchasing - LD S28A- Over 65- South,Nursing Homes,Mortimer House Nursing Home,2553.84, 11-May-2012
1119,Revenue,CCHD,Bed Purchasing - LD S28A- Over 65- South,Nursing Homes,Mortimer House Nursing Home,2996.52, 11-May-2012
1120,Revenue,CCHD,Bed Purchasing - LD S28A- Over 65- South,Nursing Homes,Mortimer House Nursing Home,2553.84, 11-May-2012
1121,Revenue,CCHD,Bed Purchasing - LD S28A- Over 65- South,Nursing Homes,Mortimer House Nursing Home,3271.92, 11-May-2012
1122,Revenue,CCHD,Bed purchasing - Elderly PWLD - South,Nursing Homes,Mortimer House Nursing Home,3109.76, 11-May-2012
1123,Revenue,CCHD,Bed Purchasing - LD S28A- Over 65- South,Nursing Homes,Mortimer House Nursing Home,3277.24, 11-May-2012
1124,Revenue,CCHD,Frenchay Hospital Purchasing,Residential Homes,Mostyn Lodge Residential Home,1232.64, 15-May-2012
1125,Revenue,CCHD,Bed purchasing - Elderly S117 - South,Residential Homes,Mostyn Lodge Residential Home,1880, 15-May-2012
1126,Revenue,CCHD,Social Lettings Agency,Other Supplies & Services,Individual,505, 09-May-2012
1127,Revenue,CCHD,Tenancy Start Up Scheme,Other Supplies & Services,Individual,565, 24-May-2012
1128,Revenue,CCHD,Tenancy Start Up Scheme,Other Supplies & Services,Individual,1250, 04-May-2012
1129,Revenue,CCHD,Tenancy Start Up Scheme,Other Supplies & Services,Individual,623.31, 21-May-2012
1130,Revenue,CCHD,Social Lettings Agency,Other Supplies & Services,Individual,950, 04-May-2012
1131,Revenue,CCHD,Under 65s PWLD - KH,Residential Homes,Mr J Davis & Mrs S Davis,1840, 22-May-2012
1132,Revenue,CCHD,Social Lettings Agency,Other Supplies & Services,Individual,565, 04-May-2012
1133,Revenue,CCHD,Tenancy Start Up Scheme,Other Supplies & Services,Individual,760, 03-May-2012
1134,Revenue,CCHD,Social Lettings Agency,Other Supplies & Services,Individual,632.81, 28-May-2012
1135,Revenue,CCHD,Social Lettings Agency,Other Supplies & Services,Individual,551.44, 04-May-2012
1136,Revenue,CCHD,Rent in Advance,Other Supplies & Services,Mr Po Huen Wong,565, 10-May-2012
1137,Revenue,CCHD,Tenancy Start Up Scheme,Other Supplies & Services,Individual,598, 22-May-2012
1138,Revenue,CCHD,Non Priority Bond Scheme,Other Supplies & Services,Mr R North,575, 28-May-2012
1139,Revenue,CCHD,Social Lettings Agency,Other Supplies & Services,Individual,632.81, 14-May-2012
1140,Revenue,CCHD,Tenancy Start Up Scheme,Other Supplies & Services,Individual,1250, 16-May-2012
1141,Revenue,CCHD,Elderly MH Day Care North,Private & Voluntary Day Care,Mrs B Kimber,654.12, 31-May-2012
1142,Revenue,CCHD,Purchase of Non-Res Care - PS,Private & Voluntary Day Care,Mrs B Kimber,1074.72, 04-May-2012
1143,Revenue,CCHD,Supported Living - PS,Private & Voluntary Home Care,Mrs B Kimber,8475.36, 03-May-2012
1144,Revenue,CCHD,Supported Living - PS,Private & Voluntary Home Care,Mrs B Kimber,10440.58, 03-May-2012
1145,Revenue,CCHD,Day Care - South,Private & Voluntary Day Care,Mrs B Kimber,517.83, 15-May-2012
1146,Revenue,CCHD,Elderly MH Day Care North,Private & Voluntary Day Care,Mrs B Kimber,654.12, 21-May-2012
1147,Revenue,CCHD,Younger MH non-res purchasing,Private & Voluntary Day Care,Mrs B Kimber,658.66, 28-May-2012
1148,Revenue,CCHD,Supported Living - PS,Private & Voluntary Home Care,Mrs B Kimber,890.32, 03-May-2012
1149,Revenue,CCHD,Supported Living - PS,Private & Voluntary Home Care,Mrs B Kimber,1341.02, 03-May-2012
1150,Revenue,CCHD,Purchase of Non-Res Care - PS,Private & Voluntary Day Care,Mrs B Kimber,940.38, 03-May-2012
1151,Revenue,CCHD,Purchase of Non-Res Care - KD,Private & Voluntary Day Care,Mrs B Kimber,716.12, 25-May-2012
1152,Revenue,CCHD,Supported Living - KD,Private & Voluntary Home Care,Mrs B Kimber,1162.04, 25-May-2012
1153,Revenue,CCHD,Day Care - South,Private & Voluntary Day Care,Mrs B Kimber,8162.51, 31-May-2012
1154,Revenue,CCHD,Day Care - South,Private & Voluntary Day Care,Mrs B Kimber,10244.5, 31-May-2012
1155,Revenue,CCHD,Day Care - North,Private & Voluntary Day Care,Mrs B Kimber,541.04, 29-May-2012
1156,Revenue,CCHD,Day Care - North,Private & Voluntary Day Care,Mrs B Kimber,1215.42, 29-May-2012
1157,Revenue,CCHD,Home Care - Elderly - South,Other Small Contracts,Mrs B Kimber - Stepping Stones,2963.44, 30-May-2012
1158,Revenue,CCHD,Home Care - Elderly - North,Other Small Contracts,Mrs B Kimber - Stepping Stones,2591.43, 30-May-2012
1159,Revenue,CCHD,Day Care - South,Private & Voluntary Day Care,Mrs B Kimber - Stepping Stones,794.87, 30-May-2012
1160,Revenue,CCHD,Day Care - North,Private & Voluntary Day Care,Mrs B Kimber - Stepping Stones,260.33, 30-May-2012
1161,Revenue,CCHD,Under 65s -MH  Home Care Purch,Other Small Contracts,Mrs B Kimber - Stepping Stones,228.29, 30-May-2012
1162,Revenue,CCHD,Home care - Elderly MH - North,Other Small Contracts,Mrs B Kimber - Stepping Stones,312.44, 30-May-2012
1163,Revenue,CCHD,Elderly MH Day Care North,Private & Voluntary Day Care,Mrs B Kimber - Stepping Stones,345.84, 30-May-2012
1164,Revenue,CCHD,Supported Living - KD,Private & Voluntary Home Care,Mrs B Kimber - Stepping Stones,780.55, 30-May-2012
1165,Revenue,CCHD,Home Care - LD Under 65 - South,Private & Voluntary Home Care,Mrs B Kimber - Stepping Stones,112.14, 30-May-2012
1166,Revenue,CCHD,Home Care - LD Under 65 - North,Private & Voluntary Home Care,Mrs B Kimber - Stepping Stones,48.06, 30-May-2012
1167,Revenue,CCHD,PWLD Home Care - Under 65 - KH,Private & Voluntary Home Care,Mrs B Kimber - Stepping Stones,88.08, 30-May-2012
1168,Revenue,CCHD,Home Care - Elderly LD - North,Private & Voluntary Home Care,Mrs B Kimber - Stepping Stones,957.2, 30-May-2012
1169,Revenue,CCHD,Home Care - Elderly - South,Other Small Contracts,Mrs B Kimber - Stepping Stones,2983.5, 30-May-2012
1170,Revenue,CCHD,Home Care - Elderly - North,Other Small Contracts,Mrs B Kimber - Stepping Stones,2523.34, 30-May-2012
1171,Revenue,CCHD,Day Care - South,Private & Voluntary Day Care,Mrs B Kimber - Stepping Stones,786.6, 30-May-2012
1172,Revenue,CCHD,Day Care - North,Private & Voluntary Day Care,Mrs B Kimber - Stepping Stones,272.3, 30-May-2012
1173,Revenue,CCHD,Under 65s -MH  Home Care Purch,Other Small Contracts,Mrs B Kimber - Stepping Stones,200.25, 30-May-2012
1174,Revenue,CCHD,Home care - Elderly MH - North,Other Small Contracts,Mrs B Kimber - Stepping Stones,312.44, 30-May-2012
1175,Revenue,CCHD,Elderly MH Day Care North,Private & Voluntary Day Care,Mrs B Kimber - Stepping Stones,345.84, 30-May-2012
1176,Revenue,CCHD,Supported Living - KD,Private & Voluntary Home Care,Mrs B Kimber - Stepping Stones,873.09, 30-May-2012
1177,Revenue,CCHD,Home Care - LD Under 65 - South,Private & Voluntary Home Care,Mrs B Kimber - Stepping Stones,96.12, 30-May-2012
1178,Revenue,CCHD,Home Care - LD Under 65 - North,Private & Voluntary Home Care,Mrs B Kimber - Stepping Stones,48.06, 30-May-2012
1179,Revenue,CCHD,PWLD Home Care - Under 65 - KH,Private & Voluntary Home Care,Mrs B Kimber - Stepping Stones,88.11, 30-May-2012
1180,Revenue,CCHD,Home Care - Elderly LD - North,Private & Voluntary Home Care,Mrs B Kimber - Stepping Stones,869.09, 30-May-2012
1181,Revenue,CCHD,Home Care - Elderly - South,Other Small Contracts,Mrs B Kimber - Stepping Stones,2487.37, 10-May-2012
1182,Revenue,CCHD,Home Care - Elderly - North,Other Small Contracts,Mrs B Kimber - Stepping Stones,2503.32, 10-May-2012
1183,Revenue,CCHD,Day Care - South,Private & Voluntary Day Care,Mrs B Kimber - Stepping Stones,611.22, 10-May-2012
1184,Revenue,CCHD,Day Care - North,Private & Voluntary Day Care,Mrs B Kimber - Stepping Stones,180.23, 10-May-2012
1185,Revenue,CCHD,Under 65s -MH  Home Care Purch,Other Small Contracts,Mrs B Kimber - Stepping Stones,238.69, 10-May-2012
1186,Revenue,CCHD,Home care - Elderly MH - North,Other Small Contracts,Mrs B Kimber - Stepping Stones,320.44, 10-May-2012
1187,Revenue,CCHD,Elderly MH Day Care North,Private & Voluntary Day Care,Mrs B Kimber - Stepping Stones,428.64, 10-May-2012
1188,Revenue,CCHD,Supported Living - KD,Private & Voluntary Home Care,Mrs B Kimber - Stepping Stones,817.02, 10-May-2012
1189,Revenue,CCHD,Home Care - LD Under 65 - South,Private & Voluntary Home Care,Mrs B Kimber - Stepping Stones,112.14, 10-May-2012
1190,Revenue,CCHD,Home Care - LD Under 65 - North,Private & Voluntary Home Care,Mrs B Kimber - Stepping Stones,48.06, 10-May-2012
1191,Revenue,CCHD,PWLD Home Care - Under 65 - KH,Private & Voluntary Home Care,Mrs B Kimber - Stepping Stones,88.11, 10-May-2012
1192,Revenue,CCHD,Home Care - Elderly LD - North,Private & Voluntary Home Care,Mrs B Kimber - Stepping Stones,925.16, 10-May-2012
1193,Revenue,CCHD,Home Care - Elderly - South,Other Small Contracts,Mrs B Kimber - Stepping Stones,2731.16, 30-May-2012
1194,Revenue,CCHD,Home Care - Elderly - North,Other Small Contracts,Mrs B Kimber - Stepping Stones,2523.35, 30-May-2012
1195,Revenue,CCHD,Day Care - South,Private & Voluntary Day Care,Mrs B Kimber - Stepping Stones,586.24, 30-May-2012
1196,Revenue,CCHD,Day Care - North,Private & Voluntary Day Care,Mrs B Kimber - Stepping Stones,176.22, 30-May-2012
1197,Revenue,CCHD,Under 65s -MH  Home Care Purch,Other Small Contracts,Mrs B Kimber - Stepping Stones,204.26, 30-May-2012
1198,Revenue,CCHD,Home care - Elderly MH - North,Other Small Contracts,Mrs B Kimber - Stepping Stones,308.43, 30-May-2012
1199,Revenue,CCHD,Elderly MH Day Care North,Private & Voluntary Day Care,Mrs B Kimber - Stepping Stones,436.52, 30-May-2012
1200,Revenue,CCHD,Supported Living - KD,Private & Voluntary Home Care,Mrs B Kimber - Stepping Stones,873.09, 30-May-2012
1201,Revenue,CCHD,Home Care - LD Under 65 - South,Private & Voluntary Home Care,Mrs B Kimber - Stepping Stones,116.15, 30-May-2012
1202,Revenue,CCHD,Home Care - LD Under 65 - North,Private & Voluntary Home Care,Mrs B Kimber - Stepping Stones,48.06, 30-May-2012
1203,Revenue,CCHD,PWLD Home Care - Under 65 - KH,Private & Voluntary Home Care,Mrs B Kimber - Stepping Stones,88.11, 30-May-2012
1204,Revenue,CCHD,Home Care - Elderly LD - North,Private & Voluntary Home Care,Mrs B Kimber - Stepping Stones,861.09, 30-May-2012
1205,Revenue,CCHD,Home Care - Elderly - South,Other Small Contracts,Mrs B Kimber - Stepping Stones,2844.68, 01-May-2012
1206,Revenue,CCHD,Home Care - Elderly - North,Other Small Contracts,Mrs B Kimber - Stepping Stones,2214.28, 01-May-2012
1207,Revenue,CCHD,Day Care - South,Private & Voluntary Day Care,Mrs B Kimber - Stepping Stones,610.7, 01-May-2012
1208,Revenue,CCHD,Day Care - North,Private & Voluntary Day Care,Mrs B Kimber - Stepping Stones,74.86, 01-May-2012
1209,Revenue,CCHD,Under 65s -MH  Home Care Purch,Other Small Contracts,Mrs B Kimber - Stepping Stones,183.42, 01-May-2012
1210,Revenue,CCHD,Home care - Elderly MH - North,Other Small Contracts,Mrs B Kimber - Stepping Stones,283.68, 01-May-2012
1211,Revenue,CCHD,Elderly MH Day Care North,Private & Voluntary Day Care,Mrs B Kimber - Stepping Stones,437.34, 01-May-2012
1212,Revenue,CCHD,Supported Living - KD,Private & Voluntary Home Care,Mrs B Kimber - Stepping Stones,862.86, 01-May-2012
1213,Revenue,CCHD,Home Care - LD Under 65 - South,Private & Voluntary Home Care,Mrs B Kimber - Stepping Stones,110.32, 01-May-2012
1214,Revenue,CCHD,Home Care - LD Under 65 - North,Private & Voluntary Home Care,Mrs B Kimber - Stepping Stones,47.28, 01-May-2012
1215,Revenue,CCHD,PWLD Home Care - Under 65 - KH,Private & Voluntary Home Care,Mrs B Kimber - Stepping Stones,86.68, 01-May-2012
1216,Revenue,CCHD,Home Care - Elderly LD - North,Private & Voluntary Home Care,Mrs B Kimber - Stepping Stones,847.1, 01-May-2012
1217,Revenue,CCHD,Social Lettings Agency,Other Supplies & Services,Individual,632.81, 11-May-2012
1218,Revenue,CCHD,Social Lettings Agency,Other Supplies & Services,Individual,565, 31-May-2012
1219,Revenue,CCHD,Supported Living - KD,Residential Homes,Mrs I M Bowerman,720.54, 22-May-2012
1220,Revenue,CCHD,Social Lettings Agency,Other Supplies & Services,Individual,551.44, 04-May-2012
1221,Revenue,CCHD,Tenancy Start Up Scheme,Other Supplies & Services,Individual,1450, 08-May-2012
1222,Revenue,CCHD,Purchase of Non-Res Care - KD,Private & Voluntary Day Care,Mrs W Thompson,556.32, 08-May-2012
1223,Revenue,CCHD,Purchase of Non-Res Care - KD,Private & Voluntary Day Care,Mrs W Thompson,1391.88, 08-May-2012
1224,Revenue,CCHD,Social Lettings Agency,Other Supplies & Services,Individual,858.8, 16-May-2012
1225,Revenue,CCHD,Alexandra Way,Cleaning & Domestic Supplies,Muzzell Healthcare,673.75, 01-May-2012
1226,Revenue,CCHD,Alexandra Way,Cleaning & Domestic Supplies,Muzzell Healthcare,582, 09-May-2012
1227,Revenue,CCHD,Alexandra Way,Cleaning & Domestic Supplies,Muzzell Healthcare,477.94, 30-May-2012
1228,Revenue,CCHD,Bed Purchasing - Under 65s PWLD - South,Residential Homes,National Star College,4547.72, 15-May-2012
1229,Revenue,CCHD,Community Support ACM - South,Preventative Assistance,National Star College FDY Limited,5367.34, 23-May-2012
1230,Revenue,CCHD,Day Care - South,Private & Voluntary Day Care,National Star College FDY Limited,5539.33, 23-May-2012
1231,Revenue,CCHD,Home Care - Elderly - South,Other Small Contracts,Network Health & Social Care,1049.47, 11-May-2012
1232,Revenue,CCHD,Home Care - Elderly - North,Other Small Contracts,Network Health & Social Care,2583.23, 11-May-2012
1233,Revenue,CCHD,Home Care - Elderly - South,Other Small Contracts,Network Health & Social Care,1045.62, 11-May-2012
1234,Revenue,CCHD,Home Care - Elderly - North,Other Small Contracts,Network Health & Social Care,2533.21, 11-May-2012
1235,Revenue,CCHD,Home Care - Elderly - South,Other Small Contracts,Network Health & Social Care,1022.55, 11-May-2012
1236,Revenue,CCHD,Home Care - Elderly - North,Other Small Contracts,Network Health & Social Care,2675.44, 11-May-2012
1237,Revenue,CCHD,Home Care - Elderly - South,Other Small Contracts,Network Health & Social Care,1110.99, 16-May-2012
1238,Revenue,CCHD,Home Care - Elderly - North,Other Small Contracts,Network Health & Social Care,3213.63, 16-May-2012
1239,Revenue,CCHD,Bed Purchasing - Under 65s PWLD - South,Residential Homes,Nightingale Nursing Home,5384.12, 15-May-2012
1240,Revenue,CCHD,Under 65s PWLD - KH,Residential Homes,Nightingale Nursing Home,759.27, 15-May-2012
1241,Revenue,CCHD,Purchase of RAC places,Other L.A.'s - General,North Somerset Council,5852.5, 23-May-2012
1242,Revenue,CCHD,Information Systems - Software,Software Support & Maintenance,Northgate Information Solutions UK Limited,8200, 25-May-2012
1243,Revenue,CCHD,Bed Purchasing - Under 65s PWLD - South,Residential Homes,Norwood   Broadway House,4853.64, 15-May-2012
1244,Revenue,CCHD,Intermediate Care Accommodation,Electricity,npower,618.41, 03-May-2012
1245,Revenue,CCHD,Home Care - Elderly - South,Other Small Contracts,Nursing Solutions Limited,1017.57, 01-May-2012
1246,Revenue,CCHD,Day Care - South,Private & Voluntary Day Care,Nursing Solutions Limited,30.82, 01-May-2012
1247,Revenue,CCHD,Home care - Elderly MH - North,Other Small Contracts,Nursing Solutions Limited,192.72, 01-May-2012
1248,Revenue,CCHD,Elderly MH Day Care North,Private & Voluntary Day Care,Nursing Solutions Limited,199.58, 01-May-2012
1249,Revenue,CCHD,Home Care - Elderly - South,Other Small Contracts,Nursing Solutions Limited,1121.63, 21-May-2012
1250,Revenue,CCHD,Day Care - South,Private & Voluntary Day Care,Nursing Solutions Limited,30.82, 21-May-2012
1251,Revenue,CCHD,Home care - Elderly MH - North,Other Small Contracts,Nursing Solutions Limited,115.65, 21-May-2012
1252,Revenue,CCHD,Elderly MH Day Care North,Private & Voluntary Day Care,Nursing Solutions Limited,45.48, 21-May-2012
1253,Revenue,CCHD,Home Care - Elderly - South,Other Small Contracts,Nursing Solutions Limited,1102.35, 22-May-2012
1254,Revenue,CCHD,Day Care - South,Private & Voluntary Day Care,Nursing Solutions Limited,30.82, 22-May-2012
1255,Revenue,CCHD,Home care - Elderly MH - North,Other Small Contracts,Nursing Solutions Limited,123.36, 22-May-2012
1256,Revenue,CCHD,Elderly MH Day Care North,Private & Voluntary Day Care,Nursing Solutions Limited,45.48, 22-May-2012
1257,Revenue,CCHD,Home Care - Elderly - South,Other Small Contracts,Nursing Solutions Limited,1090.82, 29-May-2012
1258,Revenue,CCHD,Day Care - South,Private & Voluntary Day Care,Nursing Solutions Limited,30.82, 29-May-2012
1259,Revenue,CCHD,Home care - Elderly MH - North,Other Small Contracts,Nursing Solutions Limited,115.65, 29-May-2012
1260,Revenue,CCHD,Elderly MH Day Care North,Private & Voluntary Day Care,Nursing Solutions Limited,45.48, 29-May-2012
1261,Revenue,CCHD,Bed Purchasing - Elderly - South,Residential Homes,Oaktree Lodge,1267.76, 15-May-2012
1262,Revenue,CCHD,Woodleaze,Refuse Collection Charges,OCS Group UK Ltd,468.48, 03-May-2012
1263,Revenue,CCHD,Bed Purchasing - Elderly - North,Residential Homes,Osbourne Court,956.4, 15-May-2012
1264,Revenue,CCHD,Bed Purchasing - Elderly S117- North,Residential Homes,Osbourne Court,1879.04, 15-May-2012
1265,Revenue,CCHD,Bed Purchasing - Elderly S117- North,Residential Homes,Osbourne Court,1716, 15-May-2012
1266,Revenue,CCHD,Bed Purchasing - Elderly S117- North,Residential Homes,Osbourne Court,1707.43, 15-May-2012
1267,Revenue,CCHD,Frenchay Hospital Purchasing,Residential Homes,Osbourne Court,1088, 15-May-2012
1268,Revenue,CCHD,Bed Purchasing - Elderly - North,Residential Homes,Osbourne Court,884, 15-May-2012
1269,Revenue,CCHD,Bed purchasing - Elderly MH - North,Residential Homes,Osbourne Court,1434.24, 15-May-2012
1270,Revenue,CCHD,Bed Purchasing - Elderly S117- North,Residential Homes,Osbourne Court,4167.8, 15-May-2012
1271,Revenue,CCHD,Frenchay Hospital Purchasing,Residential Homes,Osbourne Court,1185.68, 15-May-2012
1272,Revenue,CCHD,Bed Purchasing - Under 65s PWLD - South,Residential Homes,Osprey Court,13250.02, 15-May-2012
1273,Revenue,CCHD,Bed purchasing - S28A Under 65 - South,Residential Homes,Osprey Court,8579.88, 15-May-2012
1274,Revenue,CCHD,Bed purchasing - S28A Under 65 - South,Residential Homes,Osprey Court,6212.81, 15-May-2012
1275,Revenue,CCHD,Bed Purchasing - Elderly MH - South,Residential Homes,Park Farm House,1330.8, 15-May-2012
1276,Revenue,CCHD,Frenchay Hospital Purchasing,Residential Homes,Park Farm House,816.48, 15-May-2012
1277,Revenue,CCHD,Bed Purchasing - Elderly - South,Residential Homes,Park Farm House,1520.68, 15-May-2012
1278,Revenue,CCHD,Bed purchasing - Elderly MH - North,Residential Homes,Park Farm House,843.32, 15-May-2012
1279,Revenue,CCHD,Bed purchasing - Elderly MH - North,Residential Homes,Park Farm House,501.14, 15-May-2012
1280,Revenue,CCHD,Bed Purchasing - Elderly MH - South,Residential Homes,Park Farm House,1582.64, 15-May-2012
1281,Revenue,CCHD,Bed Purchasing - Under 65s PWLD - South,Residential Homes,Park Hall,4882.38, 15-May-2012
1282,Revenue,CCHD,Bed purchasing - Elderly PWLD - North,Residential Homes,Park Hall,4855.8, 15-May-2012
1283,Revenue,CCHD,Bed purchasing - Under 65s PWLD - North,Residential Homes,Park Hall,4266.72, 15-May-2012
1284,Revenue,CCHD,Bed Purchasing - Under 65s PWLD - South,Residential Homes,Park Hall,10510.04, 15-May-2012
1285,Revenue,CCHD,Bed Purchasing - Under 65s PWLD - South,Residential Homes,Park Hall,5500, 15-May-2012
1286,Revenue,CCHD,Bed purchasing - Elderly PWLD - South,Residential Homes,Park Hall,2501.56, 15-May-2012
1287,Revenue,CCHD,Bed purchasing - Elderly PWLD - South,Residential Homes,Park Hall,2755.08, 15-May-2012
1288,Revenue,CCHD,Bed purchasing - S28A Under 65 - South,Residential Homes,Park Hall,4571.08, 15-May-2012
1289,Revenue,CCHD,Bed Purchasing - S28A - Over 65- North,Residential Homes,Park Hall,5240.84, 15-May-2012
1290,Revenue,CCHD,Bed purchasing - Under 65s PWLD - North,Residential Homes,Park Hall,5082.32, 15-May-2012
1291,Revenue,CCHD,Bed purchasing - Elderly PWLD - South,Residential Homes,Park Hall,2173.96, 15-May-2012
1292,Revenue,CCHD,Bed Purchasing - Under 65s PWLD - South,Residential Homes,Park Hall,4871.2, 15-May-2012
1293,Revenue,CCHD,Bed purchasing -S28A  Under 65 - North,Residential Homes,Park Hall,5789.4, 15-May-2012
1294,Revenue,CCHD,Bed purchasing - S28A Under 65 - South,Residential Homes,Park Hall,5529.44, 15-May-2012
1295,Revenue,CCHD,Southmead Hospital Purchasing,Nursing Homes,Park House,2737.38, 15-May-2012
1296,Revenue,CCHD,Bed Purchasing - Elderly - South,Residential Homes,Park Street Home,2042.6, 15-May-2012
1297,Revenue,CCHD,Bed Purchasing - Under 65s PWLD - South,Residential Homes,Penleigh House Care Home,4451.6, 15-May-2012
1298,Revenue,CCHD,Bed purchasing - Elderly PWLD - South,Residential Homes,Penleigh House Care Home,5175.52, 15-May-2012
1299,Revenue,CCHD,Bed purchasing - Elderly PWLD - South,Residential Homes,Penleigh House Care Home,4222.56, 15-May-2012
1300,Revenue,CCHD,Bed purchasing - Elderly PWLD - South,Residential Homes,Penleigh House Care Home,4613.76, 15-May-2012
1301,Revenue,CCHD,Bed purchasing - S28A Under 65 - South,Residential Homes,Penleigh House Care Home,5366.32, 15-May-2012
1302,Revenue,CCHD,Bed purchasing - Elderly PWLD - South,Residential Homes,Penleigh House Care Home,4847.56, 15-May-2012
1303,Revenue,CCHD,Training - Adult Services,Training Expenses,Peter Creed,575, 22-May-2012
1304,Revenue,CCHD,Southmead Hospital Purchasing,Residential Homes,Petersfield Ad Care Home,928.8, 15-May-2012
1305,Revenue,CCHD,Bed Purchasing - Elderly - North,Residential Homes,Petersfield Ad Care Home,1944.12, 15-May-2012
1306,Revenue,CCHD,Home Care - Elderly - North,Other Small Contracts,Premier Homecare Limited,15000, 23-May-2012
1307,Revenue,CCHD,Home Care - Elderly - South,Other Small Contracts,Prestige Nursing,785.68, 10-May-2012
1308,Revenue,CCHD,Home Care - Elderly - North,Other Small Contracts,Prestige Nursing,418.46, 10-May-2012
1309,Revenue,CCHD,Day Care - South,Private & Voluntary Day Care,Prestige Nursing,482.58, 10-May-2012
1310,Revenue,CCHD,Day Care - North,Private & Voluntary Day Care,Prestige Nursing,947.03, 10-May-2012
1311,Revenue,CCHD,Home care - Elderly MH - North,Other Small Contracts,Prestige Nursing,269.01, 10-May-2012
1312,Revenue,CCHD,Elderly MH Day Care North,Private & Voluntary Day Care,Prestige Nursing,783.44, 10-May-2012
1313,Revenue,CCHD,Home Care - Elderly - South,Other Small Contracts,Prestige Nursing,764.33, 28-May-2012
1314,Revenue,CCHD,Home Care - Elderly - North,Other Small Contracts,Prestige Nursing,768.6, 28-May-2012
1315,Revenue,CCHD,Day Care - South,Private & Voluntary Day Care,Prestige Nursing,486.85, 28-May-2012
1316,Revenue,CCHD,Day Care - North,Private & Voluntary Day Care,Prestige Nursing,1240.54, 28-May-2012
1317,Revenue,CCHD,Home care - Elderly MH - North,Other Small Contracts,Prestige Nursing,264.74, 28-May-2012
1318,Revenue,CCHD,Elderly MH Day Care North,Private & Voluntary Day Care,Prestige Nursing,745.01, 28-May-2012
1319,Revenue,CCHD,Home Care - Elderly - South,Other Small Contracts,Prestige Nursing,781.41, 28-May-2012
1320,Revenue,CCHD,Home Care - Elderly - North,Other Small Contracts,Prestige Nursing,580.72, 28-May-2012
1321,Revenue,CCHD,Day Care - South,Private & Voluntary Day Care,Prestige Nursing,407.4, 28-May-2012
1322,Revenue,CCHD,Day Care - North,Private & Voluntary Day Care,Prestige Nursing,951.09, 28-May-2012
1323,Revenue,CCHD,Home care - Elderly MH - North,Other Small Contracts,Prestige Nursing,281.82, 28-May-2012
1324,Revenue,CCHD,Elderly MH Day Care North,Private & Voluntary Day Care,Prestige Nursing,660.17, 28-May-2012
1325,Revenue,CCHD,Newton House,Equipment Maintenance,Professional Hygiene Ltd,494.45, 21-May-2012
1326,Revenue,CCHD,Newton House,Furniture & Fittings Loose,Professional Hygiene Ltd,507.19, 28-May-2012
1327,Revenue,CCHD,Kingswood Centre - Maples Suite,"Provisions (Food, etc)",R Jays Cafe,500, 09-May-2012
1328,Revenue,CCHD,Kingswood Centre - Maples Suite,"Provisions (Food, etc)",R Jays Cafe,555, 09-May-2012
1329,Revenue,CCHD,Kingswood Centre - Maples Suite,"Provisions (Food, etc)",R Jays Cafe,510, 22-May-2012
1330,Revenue,CCHD,Tenancy Start Up Scheme,Other Supplies & Services,Individual,1250, 10-May-2012
1331,Revenue,CCHD,Bed purchasing - Elderly MH - North,Nursing Homes,Ravenswood,1265.84, 15-May-2012
1332,Revenue,CCHD,Bed Purchasing - Elderly MH - South,Residential Homes,Ravenswood,2152.08, 15-May-2012
1333,Revenue,CCHD,Bed Purchasing - Elderly - North,Nursing Homes,Ravenswood,2370.24, 15-May-2012
1334,Revenue,CCHD,Bed Purchasing - Elderly - South,Nursing Homes,Regent House,1637.96, 15-May-2012
1335,Revenue,CCHD,Southmead Hospital Purchasing,Nursing Homes,Regent House,975.84, 15-May-2012
1336,Revenue,CCHD,Bed Purchasing - Elderly - South,Nursing Homes,Regent House,2029.8, 15-May-2012
1337,Revenue,CCHD,Bed Purchasing - Elderly - North,Nursing Homes,Regent House,1311.2, 15-May-2012
1338,Revenue,CCHD,Bed Purchasing - Elderly - South,Nursing Homes,Regent House,1637.96, 15-May-2012
1339,Revenue,CCHD,Bed Purchasing - Elderly - South,Nursing Homes,Regent House,632.92, 15-May-2012
1340,Revenue,CCHD,Southmead Hospital Purchasing,Nursing Homes,Regent House,1379.88, 15-May-2012
1341,Revenue,CCHD,Bed Purchasing - Elderly - South,Nursing Homes,Regent House,1635.28, 15-May-2012
1342,Revenue,CCHD,Bed Purchasing - Elderly MH - South,Nursing Homes,Regent House,1928.12, 15-May-2012
1343,Revenue,CCHD,Bed Purchasing - Elderly - North,Nursing Homes,Regent House,1623.08, 15-May-2012
1344,Revenue,CCHD,Bed Purchasing - Elderly MH - South,Nursing Homes,Regent House,1195.08, 15-May-2012
1345,Revenue,CCHD,Bed Purchasing - Elderly MH - South,Nursing Homes,Regent House,896.31, 15-May-2012
1346,Revenue,CCHD,Bed purchasing - Elderly MH - North,Nursing Homes,Regent House,1276.8, 15-May-2012
1347,Revenue,CCHD,Bed Purchasing - Under 65s PWLD - South,Residential Homes,Ridgeway House,3418.56, 15-May-2012
1348,Revenue,CCHD,Bed Purchasing - Under 65s PWLD - South,Residential Homes,Riverside House,3512.58, 15-May-2012
1349,Revenue,CCHD,Bed Purchasing - Elderly - South,Nursing Homes,Riversway Nursing Home,1156.6, 15-May-2012
1350,Revenue,CCHD,Southmead Hospital Purchasing,Nursing Homes,Riversway Nursing Home,5186.92, 15-May-2012
1351,Revenue,CCHD,Southmead Hospital Purchasing,Nursing Homes,Riversway Nursing Home,1605.36, 15-May-2012
1352,Revenue,CCHD,Southmead Hospital Purchasing,Nursing Homes,Riversway Nursing Home,1708.52, 15-May-2012
1353,Revenue,CCHD,Bed purchasing - Elderly PWLD - South,Residential Homes,Rockleaze,2159.92, 15-May-2012
1354,Revenue,CCHD,Bed purchasing - Elderly PWLD - South,Residential Homes,Rockleaze,1399.76, 15-May-2012
1355,Revenue,CCHD,Bed Purchasing - LD S28A- Over 65- South,Residential Homes,Rockleaze,2039.28, 15-May-2012
1356,Revenue,CCHD,Bed Purchasing - Under 65s PWLD - South,Residential Homes,Rockleaze,2364.24, 15-May-2012
1357,Revenue,CCHD,Bed purchasing - Elderly PWLD - South,Residential Homes,Rockleaze,1399.76, 15-May-2012
1358,Revenue,CCHD,Bed purchasing - Under 65s PWLD - North,Residential Homes,Rolle Quay House,651.29, 15-May-2012
1359,Revenue,CCHD,Bed Purchasing - Under 65s PWLD - South,Residential Homes,Rosewood Lodge & Brook House,7946.1, 15-May-2012
1360,Revenue,CCHD,Bed Purchasing - Elderly MH - South,Residential Homes,Ross Healthcare,1280.12, 15-May-2012
1361,Revenue,CCHD,Frenchay Hospital Purchasing,Residential Homes,Roundham Court,1239.2, 15-May-2012
1362,Revenue,CCHD,Housing Needs,Fees - General,Safe I S Ltd,1495, 25-May-2012
1363,Revenue,CCHD,Home Care - Elderly - North,Other Small Contracts,Saga Homecare,994.56, 08-May-2012
1364,Revenue,CCHD,Home Care - Elderly - North,Other Small Contracts,Saga Homecare,994.56, 08-May-2012
1365,Revenue,CCHD,Home Care - Elderly - North,Other Small Contracts,Saga Homecare,994.56, 08-May-2012
1366,Revenue,CCHD,Home Care - Elderly - North,Other Small Contracts,Saga Homecare,994.56, 08-May-2012
1367,Revenue,CCHD,Home Care - Elderly - North,Other Small Contracts,Saga Homecare,994.56, 08-May-2012
1368,Revenue,CCHD,Home Care - Elderly - North,Other Small Contracts,Saga Homecare,852.48, 08-May-2012
1369,Revenue,CCHD,Home Care - Elderly - North,Other Small Contracts,Saga Homecare,1156.94, 08-May-2012
1370,Revenue,CCHD,Home Care - Elderly - North,Other Small Contracts,Saga Homecare,852.48, 08-May-2012
1371,Revenue,CCHD,Home Care - Elderly - North,Other Small Contracts,Saga Homecare,994.56, 08-May-2012
1372,Revenue,CCHD,Home Care - Elderly - North,Other Small Contracts,Saga Homecare,994.56, 08-May-2012
1373,Revenue,CCHD,Home Care - Elderly - North,Other Small Contracts,Saga Homecare,1927.55, 08-May-2012
1374,Revenue,CCHD,Home Care - Elderly - North,Other Small Contracts,Saga Homecare,994.56, 08-May-2012
1375,Revenue,CCHD,Home Care - Elderly - North,Other Small Contracts,Saga Homecare,19277.3, 08-May-2012
1376,Revenue,CCHD,Home Care - Elderly - North,Other Small Contracts,Saga Homecare,710.4, 08-May-2012
1377,Revenue,CCHD,Home Care - Elderly - North,Other Small Contracts,Saga Homecare,994.56, 08-May-2012
1378,Revenue,CCHD,Home Care - Elderly - North,Other Small Contracts,Saga Homecare,1936.47, 08-May-2012
1379,Revenue,CCHD,Home Care - Elderly - North,Other Small Contracts,Saga Homecare,994.56, 08-May-2012
1380,Revenue,CCHD,Home Care - Elderly - North,Other Small Contracts,Saga Homecare,1943.09, 08-May-2012
1381,Revenue,CCHD,Home Care - Elderly - North,Other Small Contracts,Saga Homecare,994.56, 08-May-2012
1382,Revenue,CCHD,Home Care - Elderly - North,Other Small Contracts,Saga Homecare,1829.49, 08-May-2012
1383,Revenue,CCHD,Home Care - Elderly - North,Other Small Contracts,Saga Homecare,994.56, 08-May-2012
1384,Revenue,CCHD,Home Care - Elderly - North,Other Small Contracts,Saga Homecare,1928.09, 08-May-2012
1385,Revenue,CCHD,Home Care - Elderly - North,Other Small Contracts,Saga Homecare,994.56, 08-May-2012
1386,Revenue,CCHD,Home Care - Elderly - North,Other Small Contracts,Saga Homecare,1927.55, 08-May-2012
1387,Revenue,CCHD,Home Care - Elderly - North,Other Small Contracts,Saga Homecare,994.56, 08-May-2012
1388,Revenue,CCHD,Home Care - Elderly - North,Other Small Contracts,Saga Homecare,1847.18, 08-May-2012
1389,Revenue,CCHD,Home Care - Elderly - North,Other Small Contracts,Saga Homecare,1136.64, 08-May-2012
1390,Revenue,CCHD,Home Care - Elderly - North,Other Small Contracts,Saga Homecare,1817.81, 08-May-2012
1391,Revenue,CCHD,Home Care - Elderly - North,Other Small Contracts,Saga Homecare,994.56, 08-May-2012
1392,Revenue,CCHD,Home Care - Elderly - North,Other Small Contracts,Saga Homecare,1886.89, 08-May-2012
1393,Revenue,CCHD,Home Care - Elderly - North,Other Small Contracts,Saga Homecare,1916.46, 08-May-2012
1394,Revenue,CCHD,Communications Service,Interpreting & Translation,Sally Walker Language Services,480, 01-May-2012
1395,Revenue,CCHD,Bed Purchasing - Under 65s PWLD - South,Residential Homes,Salters Hill Barn,1989.5, 15-May-2012
1396,Revenue,CCHD,Learning Difficulties PSL,Rent,Individual,1400, 01-May-2012
1397,Revenue,CCHD,Woodleaze,"Provisions (Food, etc)",School Milk Services Limited,790.77, 30-May-2012
1398,Revenue,CCHD,Charlton,"Provisions (Food, etc)",School Milk Services Limited,568.27, 30-May-2012
1399,Revenue,CCHD,Bed purchasing - Under 65s PWLD - North,Residential Homes,Scope   Accounts Dept,4897.9, 15-May-2012
1400,Revenue,CCHD,Bed Purchasing - Under 65s PWLD - South,Residential Homes,Scope   Accounts Dept,2999.88, 15-May-2012
1401,Revenue,CCHD,Supported Living - KD,Private & Voluntary Home Care,SeeAbility,1056, 22-May-2012
1402,Revenue,CCHD,Supported Living - KD,Private & Voluntary Home Care,SeeAbility,6098.29, 22-May-2012
1403,Revenue,CCHD,Supported Living - PS,Private & Voluntary Home Care,SeeAbility,1056, 15-May-2012
1404,Revenue,CCHD,Supported Living - PS,Private & Voluntary Home Care,SeeAbility,6518.86, 15-May-2012
1405,Revenue,CCHD,Supported Living - PS,Private & Voluntary Home Care,Selborne Care Ltd,1706.4, 15-May-2012
1406,Revenue,CCHD,Supported Living - PS,Private & Voluntary Home Care,Selborne Care Ltd,2614.88, 15-May-2012
1407,Revenue,CCHD,Supported Living - PS,Private & Voluntary Home Care,Selborne Care Ltd,1133.76, 15-May-2012
1408,Revenue,CCHD,Supported Living - PS,Private & Voluntary Home Care,Selborne Care Ltd,4885.2, 15-May-2012
1409,Revenue,CCHD,Supported Living - PS,Private & Voluntary Home Care,Selborne Care Ltd,4997.44, 23-May-2012
1410,Revenue,CCHD,Supported Living - PS,Private & Voluntary Home Care,Selborne Care Ltd,1123.8, 23-May-2012
1411,Revenue,CCHD,Supported Living - PS,Private & Voluntary Home Care,Selborne Care Ltd,501.76, 24-May-2012
1412,Revenue,CCHD,Supported Living - PS,Private & Voluntary Home Care,Selborne Care Ltd,4557, 15-May-2012
1413,Revenue,CCHD,Supported Living - PS,Private & Voluntary Home Care,Selborne Care Ltd,540.44, 24-May-2012
1414,Revenue,CCHD,Supported Living - PS,Private & Voluntary Home Care,Selborne Care Ltd,1849.36, 15-May-2012
1415,Revenue,CCHD,Purchase of Non-Res Care - KD,Private & Voluntary Day Care,Selborne Care Ltd,1413.56, 21-May-2012
1416,Revenue,CCHD,Purchase of Non-Res Care - KD,Private & Voluntary Day Care,Selborne Care Ltd,885.36, 22-May-2012
1417,Revenue,CCHD,Purchase of Non-Res Care - KD,Private & Voluntary Day Care,Selborne Care Ltd,849.68, 22-May-2012
1418,Revenue,CCHD,Purchase of Non-Res Care - KD,Private & Voluntary Day Care,Selborne Care Ltd,774.04, 22-May-2012
1419,Revenue,CCHD,Purchase of Non-Res Care - KD,Private & Voluntary Day Care,Selborne Care Ltd,894.12, 22-May-2012
1420,Revenue,CCHD,Purchase of Non-Res Care - PS,Private & Voluntary Day Care,Servoca Nursing & Care,1238.77, 31-May-2012
1421,Revenue,CCHD,Purchase of Non-Res Care - PS,Private & Voluntary Day Care,Servoca Nursing & Care,1238.77, 31-May-2012
1422,Revenue,CCHD,Purchase of Non-Res Care - PS,Private & Voluntary Day Care,Servoca Nursing & Care,1238.77, 31-May-2012
1423,Revenue,CCHD,Purchase of Non-Res Care - PS,Private & Voluntary Day Care,Servoca Nursing & Care,1238.77, 31-May-2012
1424,Revenue,CCHD,Home Energy Conservation Act Activities,Membership Fees,Severn Wye Energy Agency Ltd,5000, 17-May-2012
1425,Revenue,CCHD,Southmead Hospital Purchasing,Nursing Homes,Shaw Healthcare Ltd,1467.2, 15-May-2012
1426,Revenue,CCHD,Bed Purchasing - Elderly S117- North,Nursing Homes,Shaw Healthcare Ltd,1944, 15-May-2012
1427,Revenue,CCHD,Bed Purchasing - Elderly S117- North,Nursing Homes,Shaw Healthcare Ltd,1338.96, 15-May-2012
1428,Revenue,CCHD,Bed purchasing - Elderly MH - North,Nursing Homes,Shaw Healthcare Ltd,1226.36, 15-May-2012
1429,Revenue,CCHD,Bed purchasing - S28A Under 65 - South,Residential Homes,Shaw Healthcare Ltd,10408.68, 15-May-2012
1430,Revenue,CCHD,Bed purchasing - S28A Under 65 - South,Residential Homes,Shaw Healthcare Ltd,7647, 15-May-2012
1431,Revenue,CCHD,Bed purchasing - S28A Under 65 - South,Residential Homes,Shaw Healthcare Ltd,10410.04, 15-May-2012
1432,Revenue,CCHD,Bed purchasing - S28A Under 65 - South,Residential Homes,Shaw Healthcare Ltd,7773.09, 15-May-2012
1433,Revenue,CCHD,Bed purchasing - S28A Under 65 - South,Residential Homes,Shaw Healthcare Ltd,10243.28, 15-May-2012
1434,Revenue,CCHD,Bed purchasing - S28A Under 65 - South,Residential Homes,Shaw Healthcare Ltd,7522.95, 15-May-2012
1435,Revenue,CCHD,S117 Placements PCT,Residential Homes,Shaw Healthcare Ltd,15360.76, 15-May-2012
1436,Revenue,CCHD,Bed Purchasing - Under 65s PWLD - South,Nursing Homes,Shaw Healthcare Ltd,9662.08, 15-May-2012
1437,Revenue,CCHD,Bed purchasing - Elderly PWLD - South,Residential Homes,Shaw Healthcare Ltd,8892.88, 15-May-2012
1438,Revenue,CCHD,Bed purchasing - Elderly PWLD - South,Residential Homes,Shaw Healthcare Ltd,6533.37, 15-May-2012
1439,Revenue,CCHD,Bed purchasing - Under 65s PWLD - North,Residential Homes,Shaw Healthcare Ltd,2586.34, 15-May-2012
1440,Revenue,CCHD,Bed purchasing - Elderly PWLD - South,Residential Homes,Shaw Healthcare Ltd,3875.12, 15-May-2012
1441,Revenue,CCHD,Bed purchasing - S28A Under 65 - South,Residential Homes,Shaw Healthcare Ltd,10295.84, 15-May-2012
1442,Revenue,CCHD,Bed purchasing - S28A Under 65 - South,Residential Homes,Shaw Healthcare Ltd,11942.52, 15-May-2012
1443,Revenue,CCHD,Bed purchasing -S28A  Under 65 - North,Residential Homes,Shaw Healthcare Ltd,4218.4, 15-May-2012
1444,Revenue,CCHD,Bed purchasing -S28A  Under 65 - North,Residential Homes,Shaw Healthcare Ltd,2904.51, 15-May-2012
1445,Revenue,CCHD,Bed Purchasing - LD S28A- Over 65- South,Residential Homes,Shaw Healthcare Ltd,4404, 15-May-2012
1446,Revenue,CCHD,Bed Purchasing - LD S28A- Over 65- South,Residential Homes,Shaw Healthcare Ltd,3043.71, 15-May-2012
1447,Revenue,CCHD,Bed Purchasing - Under 65s PWLD - South,Nursing Homes,Shaw Healthcare Ltd,9995.92, 15-May-2012
1448,Revenue,CCHD,Bed Purchasing - LD S28A- Over 65- South,Residential Homes,Shaw Healthcare Ltd,4412.12, 15-May-2012
1449,Revenue,CCHD,Bed Purchasing - LD S28A- Over 65- South,Residential Homes,Shaw Healthcare Ltd,4404, 15-May-2012
1450,Revenue,CCHD,Bed Purchasing - LD S28A- Over 65- South,Residential Homes,Shaw Healthcare Ltd,3043.71, 15-May-2012
1451,Revenue,CCHD,Bed Purchasing - LD S28A- Over 65- South,Residential Homes,Shaw Healthcare Ltd,4411.68, 15-May-2012
1452,Revenue,CCHD,Bed Purchasing - LD S28A- Over 65- South,Residential Homes,Shaw Healthcare Ltd,3049.47, 15-May-2012
1453,Revenue,CCHD,Bed purchasing -S28A  Under 65 - North,Residential Homes,Shaw Healthcare Ltd,9087.56, 15-May-2012
1454,Revenue,CCHD,Bed purchasing -S28A  Under 65 - North,Residential Homes,Shaw Healthcare Ltd,6676.38, 15-May-2012
1455,Revenue,CCHD,Bed purchasing - S28A Under 65 - South,Residential Homes,Shaw Healthcare Ltd,4934.11, 15-May-2012
1456,Revenue,CCHD,Bed Purchasing - S28A - Over 65- North,Residential Homes,Shaw Healthcare Ltd,8894.24, 15-May-2012
1457,Revenue,CCHD,Bed Purchasing - S28A - Over 65- North,Residential Homes,Shaw Healthcare Ltd,6534.39, 15-May-2012
1458,Revenue,CCHD,Purchase of Non-Res Care - KD,Private & Voluntary Day Care,Shaw Healthcare Specialist Services Ltd,691.13, 29-May-2012
1459,Revenue,CCHD,Supported Living - PS,Private & Voluntary Home Care,Silva Care Limited,4415.44, 24-May-2012
1460,Revenue,CCHD,Day Care - North,Private & Voluntary Day Care,Silva Care Limited,708.8, 08-May-2012
1461,Revenue,CCHD,Supported Living - PS,Private & Voluntary Home Care,Silva Care Limited,4415.44, 31-May-2012
1462,Revenue,CCHD,Day Care - North,Private & Voluntary Day Care,Silva Care Limited,788.54, 25-May-2012
1463,Revenue,CCHD,Bed purchasing - Under 65s PWLD - North,Residential Homes,Small House Homes Limited,35101.97, 15-May-2012
1464,Revenue,CCHD,Elderly MH Day Care North,Private & Voluntary Day Care,Smile Independent Living Support Limited,634.6, 28-May-2012
1465,Revenue,CCHD,Purchase of Non-Res Care - PS,Private & Voluntary Day Care,Smile Independent Living Support Limited,547.24, 22-May-2012
1466,Revenue,CCHD,Purchase of Non-Res Care - PS,Private & Voluntary Day Care,Smile Independent Living Support Limited,606.28, 22-May-2012
1467,Revenue,CCHD,Supported Living - KD,Private & Voluntary Home Care,Smile Independent Living Support Limited,3194.14, 25-May-2012
1468,Revenue,CCHD,Purchase of Non-Res Care - KD,Private & Voluntary Day Care,Smile Independent Living Support Limited,1151.92, 23-May-2012
1469,Revenue,CCHD,Supported Living - KD,Private & Voluntary Home Care,Smile Independent Living Support Limited,3194.14, 23-May-2012
1470,Revenue,CCHD,Purchase of Non-Res Care - KD,Private & Voluntary Day Care,Smile Independent Living Support Limited,1182.28, 25-May-2012
1471,Revenue,CCHD,Purchase of Non-Res Care - KD,Private & Voluntary Day Care,Smile Independent Living Support Limited,503.33, 25-May-2012
1472,Revenue,CCHD,Supported Living - PS,Private & Voluntary Home Care,Smile Independent Living Support Limited,903.6, 28-May-2012
1473,Revenue,CCHD,Purchase of Non-Res Care - KD,Private & Voluntary Day Care,Smile Independent Living Support Limited,1173.53, 23-May-2012
1474,Revenue,CCHD,Purchase of Non-Res Care - KD,Private & Voluntary Day Care,Smile Independent Living Support Limited,842.66, 23-May-2012
1475,Revenue,CCHD,Purchase of Non-Res Care - KD,Private & Voluntary Day Care,Smile Independent Living Support Limited,1085.4, 25-May-2012
1476,Revenue,CCHD,Purchase of Non-Res Care - KD,Private & Voluntary Day Care,Smile Independent Living Support Limited,555.5, 23-May-2012
1477,Revenue,CCHD,Day Care - South,Private & Voluntary Day Care,Smile Independent Living Support Limited,585.35, 18-May-2012
1478,Revenue,CCHD,Supported Living - KD,Private & Voluntary Home Care,Smile Independent Living Support Limited,2743.21, 23-May-2012
1479,Revenue,CCHD,Minor Adaptations Service,Maintenance by Contractor,Southern Electric Contracting Limited,372.51, 01-May-2012
1480,Revenue,CCHD,Minor Adaptations Service,Maintenance by Contractor,Southern Electric Contracting Limited,147.29, 03-May-2012
1481,Revenue,CCHD,Bed Purchasing - Under 65s PWLD - South,Residential Homes,St Brigas,2036.8, 15-May-2012
1482,Revenue,CCHD,Bed Purchasing - Under 65s PWLD - South,Residential Homes,St Brigas,2944.64, 15-May-2012
1483,Revenue,CCHD,Bed Purchasing - Under 65s PWLD - South,Residential Homes,St Brigas,1985.08, 15-May-2012
1484,Revenue,CCHD,Frenchay Hospital Purchasing,Nursing Homes,St George Nursing Home,1295.2, 15-May-2012
1485,Revenue,CCHD,Bed Purchasing - Elderly - South,Nursing Homes,St George Nursing Home,1304.48, 15-May-2012
1486,Revenue,CCHD,Bed Purchasing - Elderly - South,Nursing Homes,St Roses School,7147.28, 11-May-2012
1487,Revenue,CCHD,Bed Purchasing - Under 65s PWLD - South,Residential Homes,Stepping Stones Re-Sett. Unit,8597.28, 15-May-2012
1488,Revenue,CCHD,Bed Purchasing - Elderly MH - South,Residential Homes,Stuart House,1839.64, 15-May-2012
1489,Revenue,CCHD,Southmead Hospital Purchasing,Residential Homes,Stuart House,1362.84, 15-May-2012
1490,Revenue,CCHD,Younger MH non-res purchasing,Private & Voluntary Day Care,Supported Independence Ltd,994.5, 25-May-2012
1491,Revenue,CCHD,Supported Living - PS,Private & Voluntary Home Care,Supported Independence Ltd,663, 04-May-2012
1492,Revenue,CCHD,Section 117 Placements MH Younger,Private & Voluntary Day Care,Supported Independence Ltd,682.5, 25-May-2012
1493,Revenue,CCHD,Younger MH non-res purchasing,Private & Voluntary Day Care,Supported Independence Ltd,526.4, 25-May-2012
1494,Revenue,CCHD,Younger MH non-res purchasing,Private & Voluntary Day Care,Supported Independence Ltd,663, 25-May-2012
1495,Revenue,CCHD,Younger MH non-res purchasing,Private & Voluntary Day Care,Supported Independence Ltd,702, 25-May-2012
1496,Revenue,CCHD,Day Care - North,Private & Voluntary Day Care,Supported Independence Ltd,507, 02-May-2012
1497,Revenue,CCHD,Supported Living - KD,Private & Voluntary Home Care,Supported Independence Ltd,819, 14-May-2012
1498,Revenue,CCHD,Supported Living - KD,Private & Voluntary Home Care,Supported Independence Ltd,1725.75, 21-May-2012
1499,Revenue,CCHD,Younger MH non-res purchasing,Private & Voluntary Day Care,Supported Independence Ltd,1014, 25-May-2012
1500,Revenue,CCHD,Supported Living - PS,Private & Voluntary Home Care,Supported Independence Ltd,663, 15-May-2012
1501,Revenue,CCHD,Younger MH non-res purchasing,Private & Voluntary Day Care,Supported Independence Ltd,760.5, 25-May-2012
1502,Revenue,CCHD,Younger MH non-res purchasing,Private & Voluntary Day Care,Supported Independence Ltd,507, 25-May-2012
1503,Revenue,CCHD,Younger MH non-res purchasing,Private & Voluntary Day Care,Supported Independence Ltd,702, 25-May-2012
1504,Revenue,CCHD,Younger MH non-res purchasing,Private & Voluntary Day Care,Supported Independence Ltd,507.6, 25-May-2012
1505,Revenue,CCHD,Supported Living - KD,Private & Voluntary Home Care,Supported Independence Ltd,829.56, 31-May-2012
1506,Revenue,CCHD,Supporting People Programme,Grants to Voluntary Bodies,Supported Independence Ltd,5917.09, 01-May-2012
1507,Revenue,CCHD,Supporting People Programme,Grants to Voluntary Bodies,Supported Independence Ltd,12235.01, 01-May-2012
1508,Revenue,CCHD,Supporting People Programme,Grants to Voluntary Bodies,Supported Independent Living Schemes,21091.34, 01-May-2012
1509,Revenue,CCHD,Frenchay Hospital Purchasing,Residential Homes,T/A Stonebow House Residential Home,1290.2, 15-May-2012
1510,Revenue,CCHD,Southmead Hospital Purchasing,Residential Homes,The Beeches,2458, 15-May-2012
1511,Revenue,CCHD,Southmead Hospital Purchasing,Residential Homes,The Beeches,1227.4, 15-May-2012
1512,Revenue,CCHD,Frenchay Hospital Purchasing,Residential Homes,The Beeches,1141.52, 15-May-2012
1513,Revenue,CCHD,Southmead Hospital Purchasing,Residential Homes,The Beeches,1239.2, 15-May-2012
1514,Revenue,CCHD,Purchase of Non-Res Care - KD,Private & Voluntary Day Care,The Brandon Trust,758.5, 14-May-2012
1515,Revenue,CCHD,Purchase of Non-Res Care - PS,Private & Voluntary Day Care,The Brandon Trust,574, 14-May-2012
1516,Revenue,CCHD,Purchase of Non-Res Care - PS,Private & Voluntary Day Care,The Brandon Trust,3280, 14-May-2012
1517,Revenue,CCHD,Supported Living - PS,Private & Voluntary Home Care,The Brandon Trust,684.42, 23-May-2012
1518,Revenue,CCHD,Purchase of Non-Res Care - PS,Private & Voluntary Day Care,The Brandon Trust,746.64, 14-May-2012
1519,Revenue,CCHD,Supported Living - PS,Private & Voluntary Home Care,The Brandon Trust,615, 14-May-2012
1520,Revenue,CCHD,Purchase of Non-Res Care - PS,Private & Voluntary Day Care,The Brandon Trust,3874.5, 24-May-2012
1521,Revenue,CCHD,Purchase of Non-Res Care - PS,Private & Voluntary Day Care,The Brandon Trust,1128.86, 14-May-2012
1522,Revenue,CCHD,Purchase of Non-Res Care - PS,Private & Voluntary Day Care,The Brandon Trust,933.3, 22-May-2012
1523,Revenue,CCHD,Purchase of Non-Res Care - PS,Private & Voluntary Day Care,The Brandon Trust,5740, 24-May-2012
1524,Revenue,CCHD,Purchase of Non-Res Care - KD,Private & Voluntary Day Care,The Brandon Trust,794.38, 18-May-2012
1525,Revenue,CCHD,Purchase of Non-Res Care - KD,Private & Voluntary Day Care,The Brandon Trust,4592, 21-May-2012
1526,Revenue,CCHD,Purchase of Non-Res Care - KD,Private & Voluntary Day Care,The Brandon Trust,933.3, 21-May-2012
1527,Revenue,CCHD,Purchase of Non-Res Care - KD,Private & Voluntary Day Care,The Brandon Trust,1030.13, 21-May-2012
1528,Revenue,CCHD,Purchase of Non-Res Care - KD,Private & Voluntary Day Care,The Brandon Trust,615, 14-May-2012
1529,Revenue,CCHD,Purchase of Non-Res Care - KD,Private & Voluntary Day Care,The Brandon Trust,1148, 23-May-2012
1530,Revenue,CCHD,Purchase of Non-Res Care - KD,Private & Voluntary Day Care,The Brandon Trust,1286.38, 21-May-2012
1531,Revenue,CCHD,Day Care - South,Private & Voluntary Day Care,The Brandon Trust,622.2, 15-May-2012
1532,Revenue,CCHD,Purchase of Non-Res Care - KD,Private & Voluntary Day Care,The Brandon Trust,1117.25, 14-May-2012
1533,Revenue,CCHD,Purchase of Non-Res Care - KD,Private & Voluntary Day Care,The Brandon Trust,799.5, 21-May-2012
1534,Revenue,CCHD,Supported Living - KD,Private & Voluntary Home Care,The Brandon Trust,8965.15, 25-May-2012
1535,Revenue,CCHD,Detained,Nursing Homes,The Brandon Trust,27633.66, 29-May-2012
1536,Revenue,CCHD,Day Care - North,Private & Voluntary Day Care,The Brandon Trust,676.5, 25-May-2012
1537,Revenue,CCHD,Bed Purchasing - Under 65s PWLD - South,Nursing Homes,The Brandon Trust  Olympus House,5724.32, 15-May-2012
1538,Revenue,CCHD,Bed Purchasing - S28A - Over 65- North,Residential Homes,The Brandon Trust  Olympus House,3587.32, 15-May-2012
1539,Revenue,CCHD,Bed Purchasing - Under 65s PWLD - South,Residential Homes,The Brandon Trust  Olympus House,11325.76, 15-May-2012
1540,Revenue,CCHD,Bed purchasing - Elderly PWLD - South,Residential Homes,The Brandon Trust  Olympus House,3270.6, 15-May-2012
1541,Revenue,CCHD,Bed purchasing - Under 65s PWLD - North,Residential Homes,The Brandon Trust  Olympus House,5182.6, 15-May-2012
1542,Revenue,CCHD,Bed purchasing - Elderly PWLD - South,Residential Homes,The Brandon Trust  Olympus House,3370.81, 15-May-2012
1543,Revenue,CCHD,Bed Purchasing - LD S28A- Over 65- South,Residential Homes,The Brandon Trust  Olympus House,3835.12, 15-May-2012
1544,Revenue,CCHD,Bed Purchasing - Under 65s PWLD - South,Nursing Homes,The Brandon Trust  Olympus House,5127.6, 15-May-2012
1545,Revenue,CCHD,Bed purchasing - S28A Under 65 - South,Residential Homes,The Brandon Trust  Olympus House,6032.96, 15-May-2012
1546,Revenue,CCHD,Bed purchasing - S28A Under 65 - South,Residential Homes,The Brandon Trust  Olympus House,4996.72, 15-May-2012
1547,Revenue,CCHD,Bed purchasing - S28A Under 65 - South,Residential Homes,The Brandon Trust  Olympus House,6032.96, 15-May-2012
1548,Revenue,CCHD,Bed purchasing - S28A Under 65 - South,Residential Homes,The Brandon Trust  Olympus House,5867.56, 15-May-2012
1549,Revenue,CCHD,Bed Purchasing - LD S28A- Over 65- South,Nursing Homes,The Brandon Trust  Olympus House,5454.32, 15-May-2012
1550,Revenue,CCHD,Bed Purchasing - S28A - Over 65- North,Nursing Homes,The Brandon Trust  Olympus House,5806.76, 15-May-2012
1551,Revenue,CCHD,Bed purchasing - S28A Under 65 - South,Residential Homes,The Brandon Trust  Olympus House,5265.24, 15-May-2012
1552,Revenue,CCHD,Bed purchasing - S28A Under 65 - South,Residential Homes,The Brandon Trust  Olympus House,5339, 15-May-2012
1553,Revenue,CCHD,Bed Purchasing - S28A - Over 65- North,Residential Homes,The Brandon Trust  Olympus House,7213.64, 15-May-2012
1554,Revenue,CCHD,Bed purchasing - S28A Under 65 - South,Residential Homes,The Brandon Trust  Olympus House,6032.96, 15-May-2012
1555,Revenue,CCHD,Bed purchasing - S28A Under 65 - South,Residential Homes,The Brandon Trust  Olympus House,6032.92, 15-May-2012
1556,Revenue,CCHD,Bed purchasing -S28A  Under 65 - North,Residential Homes,The Brandon Trust  Olympus House,4668.96, 15-May-2012
1557,Revenue,CCHD,Bed purchasing - S28A Under 65 - South,Residential Homes,The Brandon Trust  Olympus House,5339.04, 15-May-2012
1558,Revenue,CCHD,Bed Purchasing - LD S28A- Over 65- South,Residential Homes,The Brandon Trust  Olympus House,4731.08, 15-May-2012
1559,Revenue,CCHD,Bed Purchasing - LD S28A- Over 65- South,Residential Homes,The Brandon Trust  Olympus House,7380.56, 15-May-2012
1560,Revenue,CCHD,Purchase of Non-Res Care - KD,Private & Voluntary Day Care,The Camphill Village Trust,5693.88, 23-May-2012
1561,Revenue,CCHD,Purchase of Non-Res Care - KD,Private & Voluntary Day Care,The Camphill Village Trust,6925.19, 23-May-2012
1562,Revenue,CCHD,Bed purchasing - Elderly MH - North,Residential Homes,The Cidermill,851.94, 15-May-2012
1563,Revenue,CCHD,Bed purchasing - Elderly MH - North,Nursing Homes,The Cidermill,933.88, 15-May-2012
1564,Revenue,CCHD,Bed purchasing - Elderly MH - North,Residential Homes,The Cidermill,1403.2, 15-May-2012
1565,Revenue,CCHD,Bed purchasing - Elderly MH - North,Residential Homes,The Cidermill,1403.2, 15-May-2012
1566,Revenue,CCHD,Bed purchasing - Elderly MH - North,Nursing Homes,The Cidermill,1205.8, 15-May-2012
1567,Revenue,CCHD,Bed Purchasing - Under 65s PWLD - South,Residential Homes,The Conifers,8153.84, 15-May-2012
1568,Revenue,CCHD,Bed Purchasing - Elderly MH - South,Residential Homes,The Gables Residential Home,1180.52, 15-May-2012
1569,Revenue,CCHD,Bed purchasing - Elderly S117 - South,Residential Homes,The Gables Residential Home,2193.08, 15-May-2012
1570,Revenue,CCHD,Bed Purchasing - Elderly - South,Residential Homes,The Gables Residential Home,1372.72, 15-May-2012
1571,Revenue,CCHD,Bed Purchasing - Elderly - South,Residential Homes,The Gables Residential Home,1029.54, 15-May-2012
1572,Revenue,CCHD,Bed purchasing - Elderly MH - North,Residential Homes,The Grove,972.12, 15-May-2012
1573,Revenue,CCHD,Bed purchasing - Elderly MH - North,Residential Homes,The Grove,1590.64, 15-May-2012
1574,Revenue,CCHD,Bed purchasing - Elderly MH - North,Residential Homes,The Grove,573.44, 15-May-2012
1575,Revenue,CCHD,Bed Purchasing - Elderly S117- North,Residential Homes,The Grove,2074.28, 15-May-2012
1576,Revenue,CCHD,Bed purchasing - Elderly MH - North,Residential Homes,The Grove,1760.16, 15-May-2012
1577,Revenue,CCHD,Frenchay Hospital Purchasing,Residential Homes,The Grove,1984.29, 15-May-2012
1578,Revenue,CCHD,Frenchay Hospital Purchasing,Residential Homes,The Grove,562.45, 15-May-2012
1579,Revenue,CCHD,Bed purchasing - Elderly MH - North,Residential Homes,The Grove,1490.64, 15-May-2012
1580,Revenue,CCHD,Southmead Hospital Purchasing,Residential Homes,The Grove,1335.12, 15-May-2012
1581,Revenue,CCHD,Bed purchasing - Elderly MH - North,Residential Homes,The Grove,1499.52, 15-May-2012
1582,Revenue,CCHD,Frenchay Hospital Purchasing,Residential Homes,The Grove,808.48, 15-May-2012
1583,Revenue,CCHD,Supporting People Programme,Grants to Voluntary Bodies,The Hatch Camphill Community,8166.7, 01-May-2012
1584,Revenue,CCHD,Frenchay Hospital Purchasing,Nursing Homes,The Heathers,1295.2, 15-May-2012
1585,Revenue,CCHD,Bed Purchasing - Elderly - North,Nursing Homes,The Heathers,1295.2, 15-May-2012
1586,Revenue,CCHD,Frenchay Hospital Purchasing,Nursing Homes,The Heathers,691, 15-May-2012
1587,Revenue,CCHD,Southmead Hospital Purchasing,Nursing Homes,The Heathers,1267.08, 15-May-2012
1588,Revenue,CCHD,Frenchay Hospital Purchasing,Nursing Homes,The Heathers,1295.2, 15-May-2012
1589,Revenue,CCHD,Bed purchasing - Elderly MH - North,Nursing Homes,The Heathers,1071.16, 15-May-2012
1590,Revenue,CCHD,Frenchay Hospital Purchasing,Nursing Homes,The Heathers,1229.16, 15-May-2012
1591,Revenue,CCHD,Frenchay Hospital Purchasing,Nursing Homes,The Heathers,1301.52, 15-May-2012
1592,Revenue,CCHD,Southmead Hospital Purchasing,Nursing Homes,The Heathers,730.72, 15-May-2012
1593,Revenue,CCHD,Bed purchasing - Elderly MH - North,Residential Homes,The Hollies,1277.48, 15-May-2012
1594,Revenue,CCHD,Bed Purchasing - Elderly - North,Nursing Homes,The Hollies Nursing Home,1295.2, 15-May-2012
1595,Revenue,CCHD,Bed purchasing - Under 65s PWLD - North,Residential Homes,The Manor House,780.2, 15-May-2012
1596,Revenue,CCHD,Bed Purchasing - Under 65s PWLD - South,Residential Homes,The Manor House,4848.44, 15-May-2012
1597,Revenue,CCHD,Bed Purchasing - Under 65s PWLD - South,Residential Homes,The Manor House,3443.84, 15-May-2012
1598,Revenue,CCHD,Bed Purchasing - Under 65s PWLD - South,Residential Homes,The Manor House,2649.08, 15-May-2012
1599,Revenue,CCHD,Bed purchasing - Under 65s PWLD - North,Residential Homes,The Manor House,2747.12, 15-May-2012
1600,Revenue,CCHD,Bed Purchasing - Under 65s PWLD - South,Residential Homes,The Manor House,3219.12, 15-May-2012
1601,Revenue,CCHD,Bed purchasing - Under 65s PWLD - North,Residential Homes,The Manor House,2790.24, 15-May-2012
1602,Revenue,CCHD,Bed Purchasing - Under 65s PWLD - South,Residential Homes,The Manor House,2649.08, 15-May-2012
1603,Revenue,CCHD,Bed Purchasing - Under 65s PWLD - South,Residential Homes,The Manor House,3292.6, 15-May-2012
1604,Revenue,CCHD,Bed Purchasing - Under 65s PWLD - South,Residential Homes,The Manor House,5937.48, 15-May-2012
1605,Revenue,CCHD,Bed purchasing - S28A Under 65 - South,Residential Homes,The Manor House,4791.52, 15-May-2012
1606,Revenue,CCHD,Bed Purchasing - Under 65s PWLD - South,Residential Homes,The Manor House,2688.84, 15-May-2012
1607,Revenue,CCHD,Bed Purchasing - Under 65s PWLD - South,Residential Homes,The Manor House,3361.48, 15-May-2012
1608,Revenue,CCHD,Bed Purchasing - Under 65s PWLD - South,Residential Homes,The Manor House,2945.16, 15-May-2012
1609,Revenue,CCHD,Bed Purchasing - Under 65s PWLD - South,Residential Homes,The Manor House,3269.96, 15-May-2012
1610,Revenue,CCHD,Bed Purchasing - Under 65s PWLD - South,Residential Homes,The Manor House,4868.52, 15-May-2012
1611,Revenue,CCHD,Bed Purchasing - Under 65s PWLD - South,Residential Homes,The Manor House,3050.88, 15-May-2012
1612,Revenue,CCHD,Bed Purchasing - Under 65s PWLD - South,Residential Homes,The Manor House,2865.96, 15-May-2012
1613,Revenue,CCHD,Bed Purchasing - Under 65s PWLD - South,Residential Homes,The Manor House,4383.48, 15-May-2012
1614,Revenue,CCHD,Bed Purchasing - Under 65s PWLD - South,Residential Homes,The Manor House,4264.16, 15-May-2012
1615,Revenue,CCHD,Bed purchasing - Elderly PWLD - South,Residential Homes,The Manor House,3196.88, 15-May-2012
1616,Revenue,CCHD,Bed purchasing - Under 65s PWLD - North,Residential Homes,The Manor House,999.12, 15-May-2012
1617,Revenue,CCHD,Bed Purchasing - Under 65s PWLD - South,Residential Homes,The Manor House,3181.6, 15-May-2012
1618,Revenue,CCHD,Bed Purchasing - Under 65s PWLD - South,Residential Homes,The Manor House,1024.07, 15-May-2012
1619,Revenue,CCHD,Bed Purchasing - Under 65s PWLD - South,Residential Homes,The Manor House,4763.28, 15-May-2012
1620,Revenue,CCHD,Bed Purchasing - Under 65s PWLD - South,Residential Homes,The Manor House,2688.84, 15-May-2012
1621,Revenue,CCHD,Home Care - Elderly - South,Other Small Contracts,The Royal Bank of Scotland Commercial,1078.64, 09-May-2012
1622,Revenue,CCHD,Home Care - Elderly - North,Other Small Contracts,The Royal Bank of Scotland Commercial,2400.52, 09-May-2012
1623,Revenue,CCHD,Day Care - South,Private & Voluntary Day Care,The Royal Bank of Scotland Commercial,209.52, 09-May-2012
1624,Revenue,CCHD,Day Care - North,Private & Voluntary Day Care,The Royal Bank of Scotland Commercial,46.55, 09-May-2012
1625,Revenue,CCHD,Home care - Elderly MH - North,Other Small Contracts,The Royal Bank of Scotland Commercial,360.84, 09-May-2012
1626,Revenue,CCHD,Elderly MH Day Care North,Private & Voluntary Day Care,The Royal Bank of Scotland Commercial,170.72, 09-May-2012
1627,Revenue,CCHD,Home Care - Elderly - South,Other Small Contracts,The Royal Bank of Scotland Commercial,1070.88, 09-May-2012
1628,Revenue,CCHD,Home Care - Elderly - North,Other Small Contracts,The Royal Bank of Scotland Commercial,3482.81, 09-May-2012
1629,Revenue,CCHD,Day Care - South,Private & Voluntary Day Care,The Royal Bank of Scotland Commercial,197.88, 09-May-2012
1630,Revenue,CCHD,Day Care - North,Private & Voluntary Day Care,The Royal Bank of Scotland Commercial,62.08, 09-May-2012
1631,Revenue,CCHD,Home care - Elderly MH - North,Other Small Contracts,The Royal Bank of Scotland Commercial,391.88, 09-May-2012
1632,Revenue,CCHD,Elderly MH Day Care North,Private & Voluntary Day Care,The Royal Bank of Scotland Commercial,170.72, 09-May-2012
1633,Revenue,CCHD,Home Care - Elderly - South,Other Small Contracts,The Royal Bank of Scotland Commercial,1144.6, 09-May-2012
1634,Revenue,CCHD,Home Care - Elderly - North,Other Small Contracts,The Royal Bank of Scotland Commercial,3451.59, 09-May-2012
1635,Revenue,CCHD,Day Care - South,Private & Voluntary Day Care,The Royal Bank of Scotland Commercial,170.72, 09-May-2012
1636,Revenue,CCHD,Home care - Elderly MH - North,Other Small Contracts,The Royal Bank of Scotland Commercial,430.68, 09-May-2012
1637,Revenue,CCHD,Elderly MH Day Care North,Private & Voluntary Day Care,The Royal Bank of Scotland Commercial,147.44, 09-May-2012
1638,Revenue,CCHD,Bed purchasing - Under 65s PWLD - North,Residential Homes,The Thomas Moore Project,1914.72, 15-May-2012
1639,Revenue,CCHD,Bed Purchasing - Elderly MH - South,Residential Homes,The Worthies,1405, 15-May-2012
1640,Revenue,CCHD,Bed Purchasing - Elderly MH - South,Residential Homes,The Worthies,1292.16, 15-May-2012
1641,Revenue,CCHD,Southmead Hospital Purchasing,Residential Homes,The Worthies,840.2, 15-May-2012
1642,Revenue,CCHD,Frenchay Hospital Purchasing,Residential Homes,The Worthies,1403.2, 15-May-2012
1643,Revenue,CCHD,Bed Purchasing - Elderly - South,Nursing Homes,Thornhill House,1818, 15-May-2012
1644,Revenue,CCHD,Bed purchasing - Under 65s PWLD - North,Residential Homes,Three Roses Home,1875.72, 15-May-2012
1645,Revenue,CCHD,Learning Difficulties PSL,Rent,Individual,650, 22-May-2012
1646,Revenue,CCHD,Learning Difficulties PSL,Rent,Individual,750, 22-May-2012
1647,Revenue,CCHD,Learning Difficulties PSL,Rent,Individual,488, 22-May-2012
1648,Revenue,CCHD,Bed Purchasing - Under 65s PWLD - South,Residential Homes,Tomlen,6472.42, 15-May-2012
1649,Revenue,CCHD,Woodleaze,Maintenance by Contractor,Tower Joinery Specialists Limited,1920, 11-May-2012
1650,Revenue,CCHD,Bed purchasing - Phys Dis - North,Residential Homes,Tracs Group Ltd,6215.08, 15-May-2012
1651,Revenue,CCHD,Bed purchasing - Phys Dis - North,Residential Homes,Tracs Group Ltd,4531.28, 15-May-2012
1652,Revenue,CCHD,Bed Purchasing - Under 65s PWLD - South,Residential Homes,Tracs Group Ltd,6510.68, 15-May-2012
1653,Revenue,CCHD,Telecare,Other Supplies & Services,Tunstall Healthcare (UK) Limited,469, 31-May-2012
1654,Revenue,CCHD,Preventative Technology Grant,Other Supplies & Services,Tunstall Healthcare (UK) Limited,5050, 04-May-2012
1655,Revenue,CCHD,Minor Adaptations Service,Daily Living Equipment,TVM Cheltenham Limited,768.25, 11-May-2012
1656,Revenue,CCHD,Minor Adaptations Service,Daily Living Equipment,TVM Cheltenham Limited,1800.83, 15-May-2012
1657,Revenue,CCHD,Minor Adaptations Service,Daily Living Equipment,TVM Cheltenham Limited,560.25, 11-May-2012
1658,Revenue,CCHD,Minor Adaptations Service,Daily Living Equipment,TVM Cheltenham Limited,793.25, 11-May-2012
1659,Revenue,CCHD,Minor Adaptations Service,Daily Living Equipment,TVM Cheltenham Limited,702.25, 11-May-2012
1660,Revenue,CCHD,Bed purchasing - Under 65s PWLD - North,Residential Homes,Ty Hafod Tudor,3827.06, 15-May-2012
1661,Revenue,CCHD,Bed purchasing - S28A Under 65 - South,Residential Homes,United Response,175302.4, 25-May-2012
1662,Revenue,CCHD,Bed purchasing - S28A Under 65 - South,Residential Homes,United Response,343876, 25-May-2012
1663,Revenue,CCHD,Supported Living - PS,Private & Voluntary Home Care,United Response,2760.78, 25-May-2012
1664,Revenue,CCHD,Training - Adult Services,Training Expenses,University Of The West Of England,1120, 31-May-2012
1665,Revenue,CCHD,Training - Adult Services,Training Expenses,University Of The West Of England,1120, 31-May-2012
1666,Revenue,CCHD,Southmead Hospital Purchasing,Residential Homes,Vaughan Lee House,1172.8, 15-May-2012
1667,Revenue,CCHD,Bed Purchasing - Under 65s PWLD - South,Residential Homes,Victoria Court,11197.12, 15-May-2012
1668,Revenue,CCHD,Bed purchasing - Elderly PWLD - North,Residential Homes,Victoria Court,8668.64, 15-May-2012
1669,Revenue,CCHD,Bed Purchasing - Under 65s PWLD - South,Residential Homes,Visions,3590.64, 15-May-2012
1670,Revenue,CCHD,Housing Needs,Telephones,Vodafone Corporate Limited,611.79, 08-May-2012
1671,Revenue,CCHD,Training - Adult Services,Radio Pager/Mobile Phones,Vodafone Corporate Limited,48.39, 17-May-2012
1672,Revenue,CCHD,Private Sector Housing,Radio Pager/Mobile Phones,Vodafone Corporate Limited,37.5, 17-May-2012
1673,Revenue,CCHD,Employment Support Service,Radio Pager/Mobile Phones,Vodafone Corporate Limited,118.11, 17-May-2012
1674,Revenue,CCHD,Community Care Contact Centre,Telephones,Vodafone Corporate Limited,722.6, 25-May-2012
1675,Revenue,CCHD,Community Care Contact Centre,Telephones,Vodafone Corporate Limited,556.19, 25-May-2012
1676,Revenue,CCHD,Mental Capacity Act - Advocacy,Radio Pager/Mobile Phones,Vodafone Corporate Limited,88.23, 30-May-2012
1677,Revenue,CCHD,Preventative Technology Grant,Radio Pager/Mobile Phones,Vodafone Corporate Limited,54, 30-May-2012
1678,Revenue,CCHD,Home Care - General,Radio Pager/Mobile Phones,Vodafone Corporate Limited,8.83, 30-May-2012
1679,Revenue,CCHD,Directorate,Radio Pager/Mobile Phones,Vodafone Corporate Limited,131.58, 30-May-2012
1680,Revenue,CCHD,Finance,Radio Pager/Mobile Phones,Vodafone Corporate Limited,206.6, 30-May-2012
1681,Revenue,CCHD,Finance - FAB,Radio Pager/Mobile Phones,Vodafone Corporate Limited,132.99, 30-May-2012
1682,Revenue,CCHD,Contracts & Commissioning Team,Radio Pager/Mobile Phones,Vodafone Corporate Limited,57.37, 30-May-2012
1683,Revenue,CCHD,Performance Management Support,Radio Pager/Mobile Phones,Vodafone Corporate Limited,35.61, 30-May-2012
1684,Revenue,CCHD,Communications Service,Radio Pager/Mobile Phones,Vodafone Corporate Limited,6, 30-May-2012
1685,Revenue,CCHD,Planning and Partnerships Team,Radio Pager/Mobile Phones,Vodafone Corporate Limited,64.58, 30-May-2012
1686,Revenue,CCHD,Information Systems Team,Radio Pager/Mobile Phones,Vodafone Corporate Limited,62.76, 30-May-2012
1687,Revenue,CCHD,Senior Management,Radio Pager/Mobile Phones,Vodafone Corporate Limited,207.29, 30-May-2012
1688,Revenue,CCHD,Community Care Contact Centre,Telephones,Vodafone Corporate Limited,835.42, 25-May-2012
1689,Revenue,CCHD,Bed Purchasing - Under 65s PWLD - South,Residential Homes,Voyage Ltd,2787.66, 15-May-2012
1690,Revenue,CCHD,Bed purchasing - Elderly PWLD - South,Residential Homes,Voyage Ltd,11536.18, 15-May-2012
1691,Revenue,CCHD,Bed purchasing - Under 65s PWLD - North,Residential Homes,Voyage Ltd,7676.63, 15-May-2012
1692,Revenue,CCHD,Bed purchasing - S28A Under 65 - South,Residential Homes,Voyage Ltd,5852.08, 15-May-2012
1693,Revenue,CCHD,Bed purchasing - S28A Under 65 - South,Residential Homes,Voyage Ltd,4253.04, 15-May-2012
1694,Revenue,CCHD,Bed Purchasing - Under 65s PWLD - South,Residential Homes,Voyage Ltd,6206.96, 15-May-2012
1695,Revenue,CCHD,Bed Purchasing - Under 65s PWLD - South,Residential Homes,Voyage Ltd,4511.22, 15-May-2012
1696,Revenue,CCHD,Bed Purchasing - Under 65s PWLD - South,Residential Homes,Voyage Ltd,5372.28, 15-May-2012
1697,Revenue,CCHD,Bed Purchasing - Under 65s PWLD - South,Residential Homes,Voyage Ltd,5370.34, 15-May-2012
1698,Revenue,CCHD,Bed Purchasing - Under 65s PWLD - South,Residential Homes,Voyage Ltd,5796.85, 15-May-2012
1699,Revenue,CCHD,Bed Purchasing - Under 65s PWLD - South,Residential Homes,Voyage Ltd,6145.72, 15-May-2012
1700,Revenue,CCHD,Bed Purchasing - Under 65s PWLD - South,Residential Homes,Voyage Ltd,4466.7, 15-May-2012
1701,Revenue,CCHD,Bed purchasing - Phys Dis - South,Residential Homes,Voyage Ltd,4241.09, 15-May-2012
1702,Revenue,CCHD,Under 65s PWLD - KH,Residential Homes,Voyage Ltd,5815.8, 15-May-2012
1703,Revenue,CCHD,Bed Purchasing - Under 65s PWLD - South,Residential Homes,Voyage Ltd,5322.88, 15-May-2012
1704,Revenue,CCHD,Under 65s PWLD - KH,Residential Homes,Voyage Ltd,5287.56, 15-May-2012
1705,Revenue,CCHD,Frenchay Hospital Purchasing,Residential Homes,Walton-On-Thames Charity,1250.92, 15-May-2012
1706,Revenue,CCHD,Bed purchasing - Elderly MH - North,Residential Homes,Wayside Residential Care Home,1403.2, 15-May-2012
1707,Revenue,CCHD,Bed Purchasing - Elderly MH - South,Residential Homes,Wayside Residential Care Home,1338.36, 15-May-2012
1708,Revenue,CCHD,Frenchay Hospital Purchasing,Residential Homes,Wayside Residential Care Home,1321.48, 15-May-2012
1709,Revenue,CCHD,Bed purchasing - Elderly MH - North,Residential Homes,Wayside Residential Care Home,1170.12, 15-May-2012
1710,Revenue,CCHD,Southmead Hospital Purchasing,Residential Homes,Wayside Residential Care Home,1278.24, 15-May-2012
1711,Revenue,CCHD,Bed Purchasing - Elderly - South,Residential Homes,Wayside Residential Care Home,1194.88, 15-May-2012
1712,Revenue,CCHD,Homeless - Private Sector Leasing,Prop.Serv. General Repairs,WE Care & Repair,774, 31-May-2012
1713,Revenue,CCHD,Tenancy Start Up Scheme,Prop.Serv. General Repairs,WE Care & Repair,884.5, 31-May-2012
1714,Revenue,CCHD,Homeless - Private Sector Leasing,Prop.Serv. General Repairs,WE Care & Repair,734.7, 31-May-2012
1715,Revenue,CCHD,Homeless - Private Sector Leasing,Prop.Serv. General Repairs,WE Care & Repair,447.5, 31-May-2012
1716,Revenue,CCHD,Woodleaze,Furniture & Fittings Loose,Webber & Spencer Limited,1140, 18-May-2012
1717,Revenue,CCHD,Bed Purchasing - PWLD S 117 Placements,Residential Homes,West Court,7904.04, 15-May-2012
1718,Revenue,CCHD,Bed Purchasing - Elderly - North,Nursing Homes,Westbury Nursing Home,1629.76, 15-May-2012
1719,Revenue,CCHD,Southmead Hospital Purchasing,Nursing Homes,Westbury Nursing Home,1850.29, 15-May-2012
1720,Revenue,CCHD,Bed purchasing - Elderly MH - North,Residential Homes,Westbury Nursing Home,1748.88, 15-May-2012
1721,Revenue,CCHD,Bed Purchasing - Elderly - North,Residential Homes,Wickwar Nursing Home  Castle House,1148.56, 15-May-2012
1722,Revenue,CCHD,Bed Purchasing - Elderly - North,Residential Homes,Wickwar Nursing Home  Castle House,1402.24, 15-May-2012
1723,Revenue,CCHD,Frenchay Hospital Purchasing,Nursing Homes,Wickwar Nursing Home  Castle House,954.68, 15-May-2012
1724,Revenue,CCHD,South Glos Users in South Glos Homes,Nursing Homes,Wickwar Nursing Home  Castle House,1552.86, 15-May-2012
1725,Revenue,CCHD,Bed Purchasing - Elderly - North,Residential Homes,Wickwar Nursing Home  Castle House,1396.16, 15-May-2012
1726,Revenue,CCHD,Bed Purchasing - Elderly - North,Nursing Homes,Wickwar Nursing Home  Castle House,1295.2, 15-May-2012
1727,Revenue,CCHD,Bed Purchasing - Elderly - North,Residential Homes,Wickwar Nursing Home  Castle House,1232.12, 15-May-2012
1728,Revenue,CCHD,Bed Purchasing - Elderly - North,Nursing Homes,Wickwar Nursing Home  Castle House,1614.8, 15-May-2012
1729,Revenue,CCHD,Frenchay Hospital Purchasing,Nursing Homes,Wickwar Nursing Home  Castle House,1008, 15-May-2012
1730,Revenue,CCHD,Bed Purchasing - Elderly - North,Nursing Homes,Wickwar Nursing Home  Castle House,1295.2, 15-May-2012
1731,Revenue,CCHD,Bed Purchasing - Elderly - North,Residential Homes,Wickwar Nursing Home  Castle House,1239.2, 15-May-2012
1732,Revenue,CCHD,Bed Purchasing - Elderly - North,Nursing Homes,Wickwar Nursing Home  Castle House,1393.16, 15-May-2012
1733,Revenue,CCHD,Bed purchasing - Phys Dis - North,Nursing Homes,Wickwar Nursing Home  Castle House,1061.76, 15-May-2012
1734,Revenue,CCHD,Frenchay Hospital Purchasing,Residential Homes,Willow Cottage,1039.96, 15-May-2012
1735,Revenue,CCHD,Bed Purchasing - Elderly - North,Residential Homes,Willow Cottage,2120, 15-May-2012
1736,Revenue,CCHD,Bed Purchasing - Elderly - North,Residential Homes,Willow Cottage,984.29, 15-May-2012
1737,Revenue,CCHD,Southmead Hospital Purchasing,Residential Homes,Willow Cottage,1400.48, 15-May-2012
1738,Revenue,CCHD,Southmead Hospital Purchasing,Residential Homes,Willow Cottage,2228.57, 15-May-2012
1739,Revenue,CCHD,Frenchay Hospital Purchasing,Nursing Homes,Willow Cottage,1582.44, 15-May-2012
1740,Revenue,CCHD,South Glos Users in South Glos Homes,Nursing Homes,Willow Cottage,745.37, 15-May-2012
1741,Revenue,CCHD,Frenchay Hospital Purchasing,Nursing Homes,Willow Cottage,956.64, 15-May-2012
1742,Revenue,CCHD,Bed Purchasing - Elderly - North,Nursing Homes,Willow Cottage,1978.12, 15-May-2012
1743,Revenue,CCHD,Bed purchasing - Phys Dis - North,Nursing Homes,Willow Cottage,1668.4, 15-May-2012
1744,Revenue,CCHD,Bed Purchasing - Elderly - North,Nursing Homes,Willow Cottage,1224.12, 15-May-2012
1745,Revenue,CCHD,South Glos Users in South Glos Homes,Nursing Homes,Willow Cottage,947.24, 15-May-2012
1746,Revenue,CCHD,Southmead Hospital Purchasing,Nursing Homes,Willow Cottage,1312.64, 15-May-2012
1747,Revenue,CCHD,Supported Living - KD,Private & Voluntary Home Care,Willowbank Care Limited,1920, 08-May-2012
1748,Revenue,CCHD,Supported Living - KD,Private & Voluntary Home Care,Willowbank Care Limited,2076.52, 25-May-2012
1749,Revenue,CCHD,Supported Living - KD,Private & Voluntary Home Care,Willowbank Care Limited,6191.18, 08-May-2012
1750,Revenue,CCHD,Supported Living - KD,Private & Voluntary Home Care,Willowbank Care Limited,4784.82, 22-May-2012
1751,Revenue,CCHD,Supported Living - KD,Private & Voluntary Home Care,Willowbank Care Limited,4237.16, 08-May-2012
1752,Revenue,CCHD,Supported Living - KD,Private & Voluntary Home Care,Willowbank Care Limited,3564.84, 25-May-2012
1753,Revenue,CCHD,Supported Living - KD,Private & Voluntary Home Care,Willowbank Care Limited,1358.28, 14-May-2012
1754,Revenue,CCHD,Supported Living - KD,Private & Voluntary Home Care,Willowbank Care Limited,4091.56, 08-May-2012
1755,Revenue,CCHD,Supported Living - KD,Private & Voluntary Home Care,Willowbank Care Limited,3512.44, 25-May-2012
1756,Revenue,CCHD,Supported Living - KD,Private & Voluntary Home Care,Willowbank Care Limited,2756.94, 08-May-2012
1757,Revenue,CCHD,Supported Living - KD,Private & Voluntary Home Care,Willowbank Care Limited,3104.06, 22-May-2012
1758,Revenue,CCHD,Supported Living - KD,Private & Voluntary Home Care,Willowbank Care Limited,917.42, 08-May-2012
1759,Revenue,CCHD,Supported Living - KD,Private & Voluntary Home Care,Willowbank Care Limited,983.58, 22-May-2012
1760,Revenue,CCHD,Supported Living - KD,Private & Voluntary Home Care,Willowbank Care Limited,4743.08, 08-May-2012
1761,Revenue,CCHD,Supported Living - KD,Private & Voluntary Home Care,Willowbank Care Limited,4543.98, 22-May-2012
1762,Revenue,CCHD,Supported Living - KD,Private & Voluntary Home Care,Willowbank Care Limited,2048.78, 08-May-2012
1763,Revenue,CCHD,Supported Living - KD,Private & Voluntary Home Care,Willowbank Care Limited,1850.22, 22-May-2012
1764,Revenue,CCHD,Supported Living - KD,Private & Voluntary Home Care,Willowbank Care Limited,2598.36, 08-May-2012
1765,Revenue,CCHD,Supported Living - KD,Private & Voluntary Home Care,Willowbank Care Limited,2597.84, 22-May-2012
1766,Revenue,CCHD,Supported Living (S28a) North,Private & Voluntary Home Care,Willowbank Care Limited,4371.02, 01-May-2012
1767,Revenue,CCHD,Supported Living (S28a) North,Private & Voluntary Home Care,Willowbank Care Limited,3760.98, 25-May-2012
1768,Revenue,CCHD,Supported Living (S28a) North,Private & Voluntary Home Care,Willowbank Care Limited,4066, 29-May-2012
1769,Revenue,CCHD,Supported Living (S28a) North,Private & Voluntary Home Care,Willowbank Care Limited,4616.5, 01-May-2012
1770,Revenue,CCHD,Supported Living (S28a) North,Private & Voluntary Home Care,Willowbank Care Limited,4620, 29-May-2012
1771,Revenue,CCHD,Supported Living - KD,Private & Voluntary Home Care,Willowbank Care Limited,2999.98, 08-May-2012
1772,Revenue,CCHD,Supported Living - KD,Private & Voluntary Home Care,Willowbank Care Limited,2658.22, 22-May-2012
1773,Revenue,CCHD,Supported Living - KD,Private & Voluntary Home Care,Willowbank Care Limited,3024.78, 08-May-2012
1774,Revenue,CCHD,Supported Living - KD,Private & Voluntary Home Care,Willowbank Care Limited,3397.22, 22-May-2012
1775,Revenue,CCHD,Supported Living - KD,Private & Voluntary Home Care,Willowbank Care Limited,2251.48, 08-May-2012
1776,Revenue,CCHD,Under 65s PWLD - KH,Residential Homes,Wiltshire County Council,4498.3, 03-May-2012
1777,Revenue,CCHD,Day Care - North,Private & Voluntary Day Care,Windmill Care Limited,720, 29-May-2012
1778,Revenue,CCHD,Day Care - North,Private & Voluntary Day Care,Windmill Care Limited,840, 02-May-2012
1779,Revenue,CCHD,Bed Purchasing - Elderly - North,Residential Homes,Windmill House,1117.48, 15-May-2012
1780,Revenue,CCHD,Bed purchasing - Elderly MH - North,Residential Homes,Windmill House,1182.84, 15-May-2012
1781,Revenue,CCHD,Frenchay Hospital Purchasing,Residential Homes,Windmill House,741.52, 15-May-2012
1782,Revenue,CCHD,Bed Purchasing - Elderly - North,Residential Homes,Windmill House,866.2, 15-May-2012
1783,Revenue,CCHD,Bed Purchasing - Elderly S117- North,Residential Homes,Windmill House,1716, 15-May-2012
1784,Revenue,CCHD,Bed Purchasing - Elderly S117- North,Residential Homes,Windmill House,749.29, 15-May-2012
1785,Revenue,CCHD,Frenchay Hospital Purchasing,Residential Homes,Wisteria House,824.68, 15-May-2012
1786,Revenue,CCHD,Bed Purchasing - Elderly - North,Nursing Homes,Woodlands Manor,1610.08, 15-May-2012
